Body Name,Date Paid,Transaction Number,Amount,Supplier Name,Supplier Type,Expense Area,Cost Centre Description,Expense Type
Cambridgeshire County Council,01-Dec-23,51302108783,"-197,868.00",React2it (Building Refurbishments) Limited,COMPANY,Building Maintenance,33 Haviland Way CB4 2RE,"New Construction, Conversion and Renovation"
Cambridgeshire County Council,01-Dec-23,65300040415,"-57,281.20",Wrightspace Ltd,COMPANY,Temporary Accommodation,Temporary Accommodation,Mobile - Buildings
Cambridgeshire County Council,01-Dec-23,51302110145,"-8,812.80",Serenity Welfare Limited,CARE ESTABLISHMENT,LAC Placements,Placements - supported accommodation,Agency Placements - In County
Cambridgeshire County Council,01-Dec-23,51302110596,"-2,280.00",FEVACA,CARE ESTABLISHMENT,LAC Placements,Placements - supported accommodation,Agency Placements - In County
Cambridgeshire County Council,01-Dec-23,51302110599,"-2,280.00",FEVACA,CARE ESTABLISHMENT,LAC Placements,Placements - supported accommodation,Agency Placements - In County
Cambridgeshire County Council,01-Dec-23,51302110602,"-2,280.00",FEVACA,CARE ESTABLISHMENT,LAC Placements,Placements - supported accommodation,Agency Placements - In County
Cambridgeshire County Council,01-Dec-23,51302110605,"-2,280.00",FEVACA,CARE ESTABLISHMENT,LAC Placements,Placements - supported accommodation,Agency Placements - In County
Cambridgeshire County Council,01-Dec-23,51302110608,"-2,280.00",FEVACA,CARE ESTABLISHMENT,LAC Placements,Placements - supported accommodation,Agency Placements - In County
Cambridgeshire County Council,01-Dec-23,51302110611,"-2,280.00",FEVACA,CARE ESTABLISHMENT,LAC Placements,Placements - supported accommodation,Agency Placements - In County
Cambridgeshire County Council,01-Dec-23,51302110614,"-2,280.00",FEVACA,CARE ESTABLISHMENT,LAC Placements,Placements - supported accommodation,Agency Placements - In County
Cambridgeshire County Council,01-Dec-23,51302110624,"-2,280.00",FEVACA,CARE ESTABLISHMENT,LAC Placements,Placements - supported accommodation,Agency Placements - In County
Cambridgeshire County Council,01-Dec-23,51302110617,"-1,628.57",FEVACA,CARE ESTABLISHMENT,LAC Placements,Placements - supported accommodation,Agency Placements - In County
Cambridgeshire County Council,01-Dec-23,51302110642,-756.32,MENCAP,CARE ESTABLISHMENT,LD - City Locality - Cost of Care,LD - City - Care,Residential Care - Property Voids
Cambridgeshire County Council,01-Dec-23,51302110618,-651.43,FEVACA,CARE ESTABLISHMENT,LAC Placements,Placements - supported accommodation,Agency Placements - In County
Cambridgeshire County Council,01-Dec-23,51302110621,-651.43,FEVACA,CARE ESTABLISHMENT,LAC Placements,Placements - supported accommodation,Agency Placements - In County
Cambridgeshire County Council,01-Dec-23,51302110785,504.00,Ammar Cabs Ltd,COMPANY,Home to School Transport - Special,Home to School Transport Special - Out of County,Home to School - Contract
Cambridgeshire County Council,01-Dec-23,51302110364,506.83,PEOPLESCOUT LIMITED,TRADE SUPPLIER,"County Planning, Minerals & Waste","County Planning, Minerals & Waste",Advertising / Publicity (non Recruitment)
Cambridgeshire County Council,01-Dec-23,51302110186,524.06,HOPWELLS LTD,TRADE SUPPLIER,Grafham Water,Grafham Water Centre,Catering Provisions
Cambridgeshire County Council,01-Dec-23,51302109482,528.58,BEAUMONT HEALTHCARE LTD,CARE ESTABLISHMENT,Community Support Service,Community Support Service ECF,Grants to Voluntary Bodies
Cambridgeshire County Council,01-Dec-23,51302110569,530.42,South Holland District Council,OTHER PUBLIC BODIES,Corporate Parenting Leaving Care,Care Leavers Council tax,Leaving Care Grants
Cambridgeshire County Council,01-Dec-23,51302098533,533.80,CROMWELL COMMUNITY COLLEGE,EDUCATION,Early Years Specialist Support,SEND - Childcare Access Funding,Independent School Placements
Cambridgeshire County Council,01-Dec-23,51302110481,535.71,MOVING UP CARE,CARE ESTABLISHMENT,Unaccompanied Asylum Seeking Children,Separated Migrant Children < 18,Asylum Seekers
Cambridgeshire County Council,01-Dec-23,51302110471,535.71,MOVING UP CARE,CARE ESTABLISHMENT,Unaccompanied Asylum Seeking Children,Separated Migrant Children < 18,Asylum Seekers
Cambridgeshire County Council,01-Dec-23,51302110312,551.00,Redacted Personal Data,INDIVIDUAL,Registrars,Registrars General,Non Staff expenses
Cambridgeshire County Council,01-Dec-23,51302100560,562.50,Achieve Occupational Therapy Ltd,EDUCATION,Regional Adoption Agency,Adoption Support Fund,Professional Fees and Hired Services
Cambridgeshire County Council,01-Dec-23,51302095535,570.00,Achieve Occupational Therapy Ltd,EDUCATION,Early Years Specialist Support,SEND - Independent Therapy,Independent School Placements
Cambridgeshire County Council,01-Dec-23,51302110783,572.35,A2B TAXIS,TRADE SUPPLIER,LD - Young Adults Team,LD - Young Adults - Care,Social Care Transport
Cambridgeshire County Council,01-Dec-23,51302109466,575.21,PSL Print Management LTD,COMPANY,Shared Services Business Systems,Business Systems,Printing
Cambridgeshire County Council,01-Dec-23,51302097112,582.92,SKAT Limited,COMPANY,EY - Oasis,Trumpington Park Early Years,Agency Staff
Cambridgeshire County Council,01-Dec-23,51302110543,584.64,BUSY BEES PRE-SCHOOL PLAYGROUP,NURSERY,Nursery Schools,Early Years - Funded 3s/4s,Care & Ed Childcare Settings
Cambridgeshire County Council,01-Dec-23,51302098374,603.12,AG FAMILY SUPPORT LTD,COMPANY,Contact,Contact Relief,Professional Fees and Hired Services
Cambridgeshire County Council,01-Dec-23,51302110540,609.00,ALPHABET DAY NURSERY SCHOOLS LTD,NURSERY,Nursery Schools,Early Years - Funded 3s/4s,Care & Ed Childcare Settings
Cambridgeshire County Council,01-Dec-23,51302110649,611.50,BATEMANS TRANSPORT & TAXI LTD,TRADE SUPPLIER,Home to School Transport - Special,Home to School Transport Special - Post 16,Home to School - Contract
Cambridgeshire County Council,01-Dec-23,51302100644,625.00,Achieve Occupational Therapy Ltd,EDUCATION,Regional Adoption Agency,Adoption Support Fund,Professional Fees and Hired Services
Cambridgeshire County Council,01-Dec-23,51302100636,625.00,Achieve Occupational Therapy Ltd,EDUCATION,Regional Adoption Agency,Adoption Support Fund,Professional Fees and Hired Services
Cambridgeshire County Council,01-Dec-23,51302110473,625.00,MOVING UP CARE,CARE ESTABLISHMENT,Unaccompanied Asylum Seeking Children,Separated Migrant Children < 18,Asylum Seekers
Cambridgeshire County Council,01-Dec-23,51302110475,625.00,MOVING UP CARE,CARE ESTABLISHMENT,Unaccompanied Asylum Seeking Children,Separated Migrant Children < 18,Asylum Seekers
Cambridgeshire County Council,01-Dec-23,51302110477,625.00,MOVING UP CARE,CARE ESTABLISHMENT,Unaccompanied Asylum Seeking Children,Separated Migrant Children < 18,Asylum Seekers
Cambridgeshire County Council,01-Dec-23,51302110479,625.00,MOVING UP CARE,CARE ESTABLISHMENT,Unaccompanied Asylum Seeking Children,Separated Migrant Children < 18,Asylum Seekers
Cambridgeshire County Council,01-Dec-23,51302110394,625.00,MOVING UP CARE,CARE ESTABLISHMENT,Unaccompanied Asylum Seeking Children,Separated Migrant Children < 18,Asylum Seekers
Cambridgeshire County Council,01-Dec-23,51302110395,625.00,MOVING UP CARE,CARE ESTABLISHMENT,Unaccompanied Asylum Seeking Children,Separated Migrant Children < 18,Asylum Seekers
Cambridgeshire County Council,01-Dec-23,51302110396,625.00,MOVING UP CARE,CARE ESTABLISHMENT,Unaccompanied Asylum Seeking Children,Separated Migrant Children < 18,Asylum Seekers
Cambridgeshire County Council,01-Dec-23,51302110397,625.00,MOVING UP CARE,CARE ESTABLISHMENT,Unaccompanied Asylum Seeking Children,Separated Migrant Children < 18,Asylum Seekers
Cambridgeshire County Council,01-Dec-23,51302110398,625.00,MOVING UP CARE,CARE ESTABLISHMENT,Unaccompanied Asylum Seeking Children,Separated Migrant Children < 18,Asylum Seekers
Cambridgeshire County Council,01-Dec-23,51302110399,625.00,MOVING UP CARE,CARE ESTABLISHMENT,Unaccompanied Asylum Seeking Children,Separated Migrant Children < 18,Asylum Seekers
Cambridgeshire County Council,01-Dec-23,51302110400,625.00,MOVING UP CARE,CARE ESTABLISHMENT,Unaccompanied Asylum Seeking Children,Separated Migrant Children < 18,Asylum Seekers
Cambridgeshire County Council,01-Dec-23,51302110411,625.00,MOVING UP CARE,CARE ESTABLISHMENT,Unaccompanied Asylum Seeking Children,Separated Migrant Children < 18,Asylum Seekers
Cambridgeshire County Council,01-Dec-23,51302110412,625.00,MOVING UP CARE,CARE ESTABLISHMENT,Unaccompanied Asylum Seeking Children,Separated Migrant Children < 18,Asylum Seekers
Cambridgeshire County Council,01-Dec-23,51302110413,625.00,MOVING UP CARE,CARE ESTABLISHMENT,Unaccompanied Asylum Seeking Children,Separated Migrant Children < 18,Asylum Seekers
Cambridgeshire County Council,01-Dec-23,51302110414,625.00,MOVING UP CARE,CARE ESTABLISHMENT,Unaccompanied Asylum Seeking Children,Separated Migrant Children < 18,Asylum Seekers
Cambridgeshire County Council,01-Dec-23,51302110416,625.00,MOVING UP CARE,CARE ESTABLISHMENT,Unaccompanied Asylum Seeking Children,Separated Migrant Children < 18,Asylum Seekers
Cambridgeshire County Council,01-Dec-23,51302110418,625.00,MOVING UP CARE,CARE ESTABLISHMENT,Unaccompanied Asylum Seeking Children,Separated Migrant Children < 18,Asylum Seekers
Cambridgeshire County Council,01-Dec-23,51302110420,625.00,MOVING UP CARE,CARE ESTABLISHMENT,Unaccompanied Asylum Seeking Children,Separated Migrant Children < 18,Asylum Seekers
Cambridgeshire County Council,01-Dec-23,51302110425,625.00,MOVING UP CARE,CARE ESTABLISHMENT,Unaccompanied Asylum Seeking Children,Separated Migrant Children < 18,Asylum Seekers
Cambridgeshire County Council,01-Dec-23,51302110426,625.00,MOVING UP CARE,CARE ESTABLISHMENT,Unaccompanied Asylum Seeking Children,Separated Migrant Children < 18,Asylum Seekers
Cambridgeshire County Council,01-Dec-23,51302110427,625.00,MOVING UP CARE,CARE ESTABLISHMENT,Unaccompanied Asylum Seeking Children,Separated Migrant Children < 18,Asylum Seekers
Cambridgeshire County Council,01-Dec-23,51302110428,625.00,MOVING UP CARE,CARE ESTABLISHMENT,Unaccompanied Asylum Seeking Children,Separated Migrant Children < 18,Asylum Seekers
Cambridgeshire County Council,01-Dec-23,51302110430,625.00,MOVING UP CARE,CARE ESTABLISHMENT,Unaccompanied Asylum Seeking Children,Separated Migrant Children < 18,Asylum Seekers
Cambridgeshire County Council,01-Dec-23,51302110432,625.00,MOVING UP CARE,CARE ESTABLISHMENT,Unaccompanied Asylum Seeking Children,Separated Migrant Children < 18,Asylum Seekers
Cambridgeshire County Council,01-Dec-23,51302110434,625.00,MOVING UP CARE,CARE ESTABLISHMENT,Unaccompanied Asylum Seeking Children,Separated Migrant Children < 18,Asylum Seekers
Cambridgeshire County Council,01-Dec-23,51302110439,625.00,MOVING UP CARE,CARE ESTABLISHMENT,Unaccompanied Asylum Seeking Children,Separated Migrant Children < 18,Asylum Seekers
Cambridgeshire County Council,01-Dec-23,51302110440,625.00,MOVING UP CARE,CARE ESTABLISHMENT,Unaccompanied Asylum Seeking Children,Separated Migrant Children < 18,Asylum Seekers
Cambridgeshire County Council,01-Dec-23,51302110441,625.00,MOVING UP CARE,CARE ESTABLISHMENT,Unaccompanied Asylum Seeking Children,Separated Migrant Children < 18,Asylum Seekers
Cambridgeshire County Council,01-Dec-23,51302110442,625.00,MOVING UP CARE,CARE ESTABLISHMENT,Unaccompanied Asylum Seeking Children,Separated Migrant Children < 18,Asylum Seekers
Cambridgeshire County Council,01-Dec-23,51302110443,625.00,MOVING UP CARE,CARE ESTABLISHMENT,Unaccompanied Asylum Seeking Children,Separated Migrant Children < 18,Asylum Seekers
Cambridgeshire County Council,01-Dec-23,51302110445,625.00,MOVING UP CARE,CARE ESTABLISHMENT,Unaccompanied Asylum Seeking Children,Separated Migrant Children < 18,Asylum Seekers
Cambridgeshire County Council,01-Dec-23,51302110447,625.00,MOVING UP CARE,CARE ESTABLISHMENT,Unaccompanied Asylum Seeking Children,Separated Migrant Children < 18,Asylum Seekers
Cambridgeshire County Council,01-Dec-23,51302110454,625.00,MOVING UP CARE,CARE ESTABLISHMENT,Unaccompanied Asylum Seeking Children,Separated Migrant Children < 18,Asylum Seekers
Cambridgeshire County Council,01-Dec-23,51302110455,625.00,MOVING UP CARE,CARE ESTABLISHMENT,Unaccompanied Asylum Seeking Children,Separated Migrant Children < 18,Asylum Seekers
Cambridgeshire County Council,01-Dec-23,51302110456,625.00,MOVING UP CARE,CARE ESTABLISHMENT,Unaccompanied Asylum Seeking Children,Separated Migrant Children < 18,Asylum Seekers
Cambridgeshire County Council,01-Dec-23,51302110457,625.00,MOVING UP CARE,CARE ESTABLISHMENT,Unaccompanied Asylum Seeking Children,Separated Migrant Children < 18,Asylum Seekers
Cambridgeshire County Council,01-Dec-23,51302110458,625.00,MOVING UP CARE,CARE ESTABLISHMENT,Unaccompanied Asylum Seeking Children,Separated Migrant Children < 18,Asylum Seekers
Cambridgeshire County Council,01-Dec-23,51302110459,625.00,MOVING UP CARE,CARE ESTABLISHMENT,Unaccompanied Asylum Seeking Children,Separated Migrant Children < 18,Asylum Seekers
Cambridgeshire County Council,01-Dec-23,51302110461,625.00,MOVING UP CARE,CARE ESTABLISHMENT,Unaccompanied Asylum Seeking Children,Separated Migrant Children < 18,Asylum Seekers
Cambridgeshire County Council,01-Dec-23,51302110463,625.00,MOVING UP CARE,CARE ESTABLISHMENT,Unaccompanied Asylum Seeking Children,Separated Migrant Children < 18,Asylum Seekers
Cambridgeshire County Council,01-Dec-23,51302110640,639.96,VOYAGE (LICHFIELD),CARE ESTABLISHMENT,LD - City Locality - Cost of Care,LD - City - Care,Residential Care - Property Voids
Cambridgeshire County Council,01-Dec-23,51302110767,648.00,RAY-AL COACHES LTD,TRADE SUPPLIER,LAC Transport,LAC Transport -  Short Breaks,Social Care Transport
Cambridgeshire County Council,01-Dec-23,51302097931,650.00,RH ACUITY LIMITED,TRADE SUPPLIER,Fostering,Foster Care Panels,Professional Fees and Hired Services
Cambridgeshire County Council,01-Dec-23,51302110622,651.43,FEVACA,CARE ESTABLISHMENT,LAC Placements,Placements - supported accommodation,Agency Placements - In County
Cambridgeshire County Council,01-Dec-23,51302109467,657.04,PSL Print Management LTD,COMPANY,Shared Services Business Systems,Business Systems,Printing
Cambridgeshire County Council,01-Dec-23,51302110192,660.00,Redacted Personal Data,INDIVIDUAL,Regional Adoption Agency,Adoption Support Fund,Professional Fees and Hired Services
Cambridgeshire County Council,01-Dec-23,51302110250,660.00,WALKER FIRE UK,TRADE SUPPLIER,Health & Safety,POD - Health & Safety,Fire Prevention Equipment
Cambridgeshire County Council,01-Dec-23,51302110254,660.00,WALKER FIRE UK,TRADE SUPPLIER,Health & Safety,POD - Health & Safety,Fire Prevention Equipment
Cambridgeshire County Council,01-Dec-23,51302110255,660.00,WALKER FIRE UK,TRADE SUPPLIER,Health & Safety,POD - Health & Safety,Fire Prevention Equipment
Cambridgeshire County Council,01-Dec-23,51302095512,665.00,Achieve Occupational Therapy Ltd,EDUCATION,Early Years Specialist Support,SEND - Independent Therapy,Independent School Placements
Cambridgeshire County Council,01-Dec-23,51302098393,679.68,CAMCAB LTD,TRADE SUPPLIER,RSS - Haviland Way,RSS - Haviland Way,Public Transport Fares
Cambridgeshire County Council,01-Dec-23,51302100571,680.00,Achieve Occupational Therapy Ltd,EDUCATION,Regional Adoption Agency,Adoption Support Fund,Professional Fees and Hired Services
Cambridgeshire County Council,01-Dec-23,51302110292,690.82,CAMBRIDGESHIRE HOMECARE (J&M CARE LTD),CARE ESTABLISHMENT,Community Support Service,Community Support Service ECF,Grants to Voluntary Bodies
Cambridgeshire County Council,01-Dec-23,51302110155,691.74,GUYS AND ST THOMAS NHS FOUNDATION TRUST,TRUST (OTHER),SH STI - PH Sexual Health & Health Checks,SH STI - Hospital SH Services - Out of Area Trusts,Professional Fees and Hired Services
Cambridgeshire County Council,01-Dec-23,51302110721,696.00,Sam Private Hire,COMPANY,Home to School Transport - Special,Home to School Transport Special - Special School,Home to School - Contract
Cambridgeshire County Council,01-Dec-23,51302110780,701.10,Private Hire 2 Go Ltd,COMPANY,LD - South Locality - Cost of Care,LD - South Cambs - Care,Social Care Transport
Cambridgeshire County Council,01-Dec-23,51302097376,706.92,AG FAMILY SUPPORT LTD,COMPANY,Contact,Contact Relief,Professional Fees and Hired Services
Cambridgeshire County Council,01-Dec-23,51302098559,709.73,ONLINE ERGONOMICS LTD,TRADE SUPPLIER,Technology Enabled Care,Technology Enabled Care (TEC),Specialist Equipment For Service Delivery
Cambridgeshire County Council,01-Dec-23,51302110634,716.76,VOYAGE (LICHFIELD),CARE ESTABLISHMENT,LD - City Locality - Cost of Care,LD - City - Care,Residential Care - Property Voids
Cambridgeshire County Council,01-Dec-23,51302110636,716.76,VOYAGE (LICHFIELD),CARE ESTABLISHMENT,LD - City Locality - Cost of Care,LD - City - Care,Residential Care - Property Voids
Cambridgeshire County Council,01-Dec-23,51302110638,716.76,VOYAGE (LICHFIELD),CARE ESTABLISHMENT,LD - City Locality - Cost of Care,LD - City - Care,Residential Care - Property Voids
Cambridgeshire County Council,01-Dec-23,51302110770,748.80,RAY-AL COACHES LTD,TRADE SUPPLIER,LD - Young Adults Team,LD - Young Adults - Care,Social Care Transport
Cambridgeshire County Council,01-Dec-23,51302100601,750.00,Achieve Occupational Therapy Ltd,EDUCATION,Regional Adoption Agency,Adoption Support Fund,Professional Fees and Hired Services
Cambridgeshire County Council,01-Dec-23,51302100610,750.00,Achieve Occupational Therapy Ltd,EDUCATION,Regional Adoption Agency,Adoption Support Fund,Professional Fees and Hired Services
Cambridgeshire County Council,01-Dec-23,51302110790,758.78,Shaz Travels Ltd,TRADE SUPPLIER,LAC Transport,LAC Transport - Out of county,Social Care Transport
Cambridgeshire County Council,01-Dec-23,51302110660,766.15,24 X 7 LTD,TRADE SUPPLIER,Home to School Transport - Mainstream,Home to School Transport Mainstream - Primary,Home to School - Contract
Cambridgeshire County Council,01-Dec-23,51302095531,789.70,Achieve Occupational Therapy Ltd,EDUCATION,Early Years Specialist Support,SEND - Independent Therapy,Independent School Placements
Cambridgeshire County Council,01-Dec-23,51302110521,792.00,AERO CARS,TRADE SUPPLIER,Home to School Transport - Special,Home to School Transport Special - Out of County,Home to School - Contract
Cambridgeshire County Council,01-Dec-23,51302110564,797.80,Felicity Ferguson,SOLETRADER,SIS Head of Service,SIS Numeracy & Literacy Team,Professional Fees and Hired Services
Cambridgeshire County Council,01-Dec-23,51302110123,800.00,THE K9 PROJECT,TRADE SUPPLIER,Early Years Specialist Support,SEND - Independent Therapy,Independent School Placements
Cambridgeshire County Council,01-Dec-23,51302095491,814.50,Powerful Voices Ltd,EDUCATION,Early Years Specialist Support,SEND - Independent Therapy,Independent School Placements
Cambridgeshire County Council,01-Dec-23,51302110776,826.00,Taxi2day,COMPANY,LAC Transport,LAC Transport - Home to School,Social Care Transport
Cambridgeshire County Council,01-Dec-23,51302110202,833.33,ROMSEY MILL TRUST LTD,TRUST (OTHER),Youth and Community Services,YS - National Citizen Service,Grants to Voluntary Bodies
Cambridgeshire County Council,01-Dec-23,51302110724,836.76,T & T PRIVATE HIRE LTD,TRADE SUPPLIER,Home to School Transport - Mainstream,Home to School Transport Mainstream - Secondary,Home to School - Contract
Cambridgeshire County Council,01-Dec-23,51302110532,842.11,UniQ Cars,COMPANY,Home to School Transport - Special,Home to School Transport Special - Post 16,Home to School - Contract
Cambridgeshire County Council,01-Dec-23,51302095784,863.70,RSP LTD,TRADE SUPPLIER,Safeguarding Hunts and Fenland,Family Safeguarding Hunts and Fenland,Concessions - payments to transport operators
Cambridgeshire County Council,01-Dec-23,51302100616,875.00,Achieve Occupational Therapy Ltd,EDUCATION,Regional Adoption Agency,Adoption Support Fund,Professional Fees and Hired Services
Cambridgeshire County Council,01-Dec-23,51302110777,882.00,Private Hire 2 Go Ltd,COMPANY,LD - South Locality - Cost of Care,LD - South Cambs - Care,Social Care Transport
Cambridgeshire County Council,01-Dec-23,51302110642,900.40,MENCAP,CARE ESTABLISHMENT,LD - City Locality - Cost of Care,LD - City - Care,Residential Care - Property Voids
Cambridgeshire County Council,01-Dec-23,51302110642,900.40,MENCAP,CARE ESTABLISHMENT,LD - City Locality - Cost of Care,LD - City - Care,Residential Care - Property Voids
Cambridgeshire County Council,01-Dec-23,51302110642,900.40,MENCAP,CARE ESTABLISHMENT,LD - City Locality - Cost of Care,LD - City - Care,Residential Care - Property Voids
Cambridgeshire County Council,01-Dec-23,51302109464,911.85,PSL Print Management LTD,COMPANY,Shared Services Business Systems,Business Systems,Printing
Cambridgeshire County Council,01-Dec-23,51302110134,912.44,Redacted Personal Data,INDIVIDUAL,Home to School Transport - Special,Home to School Transport Special - Special School,Contribution To Transport Related Provisions
Cambridgeshire County Council,01-Dec-23,51302110545,950.04,CLARENCE HOUSE MARCH,NURSERY,Nursery Schools,Early Years - Funded 3s/4s,Care & Ed Childcare Settings
Cambridgeshire County Council,01-Dec-23,51302110549,957.00,Hartford Infants Pre School,NURSERY,Nursery Schools,Early Years - Funded 3s/4s,Care & Ed Childcare Settings
Cambridgeshire County Council,01-Dec-23,51302110629,969.28,MIDDLE FEN & MERE INTERNAL DRAINAGE BOARD,OTHER PUBLIC BODIES,Renewable Energy Investments,"Triangle Solar Farm, Soham",Business rates
Cambridgeshire County Council,01-Dec-23,51302110535,976.50,FIRST CHOICE BETTA CARS LTD,COMPANY,Home to School Transport - Special,Home to School Transport Special - Post 16,Home to School - Contract
Cambridgeshire County Council,01-Dec-23,51302096262,980.70,Achieve Occupational Therapy Ltd,EDUCATION,Early Years Specialist Support,SEND - Independent Therapy,Independent School Placements
Cambridgeshire County Council,01-Dec-23,51302110686,981.60,CAMCAB LTD,TRADE SUPPLIER,Home to School Transport - Mainstream,Home to School Transport Mainstream - Primary,Home to School - Contract
Cambridgeshire County Council,01-Dec-23,51302095220,"1,000.00",Minima,TRADE SUPPLIER,Cultural Services,The Library Presents,Professional Fees and Hired Services
Cambridgeshire County Council,01-Dec-23,51302110306,"1,000.00",APT Care LTd,COMPANY,OPMH - City & South,Older People Mental Health City & South,Domiciliary Care
Cambridgeshire County Council,01-Dec-23,51302110300,"1,000.00",EMPATHY CARE SERVICES LIMITED,CARE ESTABLISHMENT,OPPD - Cost of Care - East Cambs - Over 65,East Cambs - O P Team - Care,Domiciliary Care
Cambridgeshire County Council,01-Dec-23,51302110237,"1,000.00",Irwin Mitchell Solicitors LLP,PARTNERSHIP,Insurance Fund,Liability,Insurance Claims Paid
Cambridgeshire County Council,01-Dec-23,51302100562,"1,000.00",Achieve Occupational Therapy Ltd,EDUCATION,Regional Adoption Agency,Adoption Support Fund,Professional Fees and Hired Services
Cambridgeshire County Council,01-Dec-23,51302100634,"1,000.00",Achieve Occupational Therapy Ltd,EDUCATION,Regional Adoption Agency,Adoption Support Fund,Professional Fees and Hired Services
Cambridgeshire County Council,01-Dec-23,51302100643,"1,000.00",Achieve Occupational Therapy Ltd,EDUCATION,Regional Adoption Agency,Adoption Support Fund,Professional Fees and Hired Services
Cambridgeshire County Council,01-Dec-23,51302110301,"1,000.00",Trust Homecare,CARE ESTABLISHMENT,OPPD - Cost of Care - City South - Over 65,Older People - City & South - Care,Domiciliary Care
Cambridgeshire County Council,01-Dec-23,51302110305,"1,000.00",Trust Homecare,CARE ESTABLISHMENT,OPPD - Cost of Care - City South - Over 65,Older People - City & South - Care,Domiciliary Care
Cambridgeshire County Council,01-Dec-23,51302110304,"1,000.00",Fuchsia Homecare Cambridge,COMPANY,OPPD - Cost of Care - City South - Over 65,Older People - City & South - Care,Domiciliary Care
Cambridgeshire County Council,01-Dec-23,51302110303,"1,000.00",EMPATHY CARE SERVICES LIMITED,CARE ESTABLISHMENT,OPPD - Cost of Care - Huntingdon - Over 65,Hunts OP Team - Care,Domiciliary Care
Cambridgeshire County Council,01-Dec-23,51302110302,"1,000.00",Frontal Care Ltd,COMPANY,OPPD - Cost of Care - Huntingdon - Over 65,Hunts OP Team - Care,Domiciliary Care
Cambridgeshire County Council,01-Dec-23,51302098373,"1,006.56",AG FAMILY SUPPORT LTD,COMPANY,Contact,Contact Relief,Professional Fees and Hired Services
Cambridgeshire County Council,01-Dec-23,51302110152,"1,028.57",FEVACA,CARE ESTABLISHMENT,LAC Placements,Placements - supported accommodation,Agency Placements - In County
Cambridgeshire County Council,01-Dec-23,51302110771,"1,044.00",Drivero Taxi Ltd,COMPANY,LD - South Locality - Cost of Care,LD - South Cambs - Care,Social Care Transport
Cambridgeshire County Council,01-Dec-23,51302110772,"1,044.00",Drivero Taxi Ltd,COMPANY,LD - South Locality - Cost of Care,LD - South Cambs - Care,Social Care Transport
Cambridgeshire County Council,01-Dec-23,51302110773,"1,044.00",Drivero Taxi Ltd,COMPANY,LD - City Locality - Staffing,LD - City - Staffing,Social Care Transport
Cambridgeshire County Council,01-Dec-23,51302108684,"1,053.66",CARING TOGETHER CHARITY,CARE ESTABLISHMENT,Community Support Service,Community Support Service ECF,Grants to Voluntary Bodies
Cambridgeshire County Council,01-Dec-23,51302110748,"1,067.39",T & T PRIVATE HIRE LTD,TRADE SUPPLIER,Home to School Transport - Special,Home to School Transport Special - Out of County,Home to School - Contract
Cambridgeshire County Council,01-Dec-23,51302110544,"1,079.40",CARING KINDERGARTENS,NURSERY,Nursery Schools,Early Years - Funded 3s/4s,Care & Ed Childcare Settings
Cambridgeshire County Council,01-Dec-23,51302110644,"1,080.00",CAMCAB LTD,TRADE SUPPLIER,Home to School Transport - Mainstream,Home to School Transport Mainstream - Primary,Home to School - Contract
Cambridgeshire County Council,01-Dec-23,51302110118,"1,080.00",THE K9 PROJECT,TRADE SUPPLIER,Out of School Tuition,Out of School Provision EHCPs,Independent School Placements
Cambridgeshire County Council,01-Dec-23,51302110708,"1,092.00",KHOLYO CARS,TRADE SUPPLIER,Home to School Transport - Special,Home to School Transport Special - Out of County,Home to School - Contract
Cambridgeshire County Council,01-Dec-23,51302110215,"1,092.00",NATIONAL TEACHING & ADVISORY SERVICE FOR LOOKED AFTER CHILDREN (NT & AS),OTHER PUBLIC BODIES,SEND - PEX support,SEND - Support for PEX without EHCP,Professional Fees and Hired Services
Cambridgeshire County Council,01-Dec-23,51302110318,"1,092.00",NATIONAL TEACHING & ADVISORY SERVICE FOR LOOKED AFTER CHILDREN (NT & AS),OTHER PUBLIC BODIES,Out of School Tuition,Out of School Provision EHCPs,Independent School Placements
Cambridgeshire County Council,01-Dec-23,51302110201,"1,125.00",Vision Learning Therapeutic Farm,SOLETRADER,Early Years Specialist Support,SEND - Independent Therapy,Independent School Placements
Cambridgeshire County Council,01-Dec-23,51302100572,"1,125.00",Achieve Occupational Therapy Ltd,EDUCATION,Regional Adoption Agency,Adoption Support Fund,Professional Fees and Hired Services
Cambridgeshire County Council,01-Dec-23,51302100594,"1,125.00",Achieve Occupational Therapy Ltd,EDUCATION,Regional Adoption Agency,Adoption Support Fund,Professional Fees and Hired Services
Cambridgeshire County Council,01-Dec-23,51302100597,"1,125.00",Achieve Occupational Therapy Ltd,EDUCATION,Regional Adoption Agency,Adoption Support Fund,Professional Fees and Hired Services
Cambridgeshire County Council,01-Dec-23,51302100613,"1,125.00",Achieve Occupational Therapy Ltd,EDUCATION,Regional Adoption Agency,Adoption Support Fund,Professional Fees and Hired Services
Cambridgeshire County Council,01-Dec-23,51302110762,"1,192.00",MD Ripon Miah Kamali t/a Greenline Private Hire Ltd,COMPANY,LAC Transport,LAC Transport - Home to School,Social Care Transport
Cambridgeshire County Council,01-Dec-23,51302100599,"1,200.00",Achieve Occupational Therapy Ltd,EDUCATION,Regional Adoption Agency,Adoption Support Fund,Professional Fees and Hired Services
Cambridgeshire County Council,01-Dec-23,51302110710,"1,240.56",Panther Cambridge Ltd,COMPANY,Home to School Transport - Mainstream,Home to School Transport Mainstream - Secondary,Home to School - Contract
Cambridgeshire County Council,01-Dec-23,51302110528,"1,246.40",BREEZE TAXIS LTD,COMPANY,Home to School Transport - Special,Home to School Transport Special - Secondary,Home to School - Contract
Cambridgeshire County Council,01-Dec-23,51302110654,"1,248.00",Darwin Cambridge Ltd T/A Hyfly Taxis,COMPANY,Home to School Transport - Special,Home to School Transport Special - Out of County,Home to School - Contract
Cambridgeshire County Council,01-Dec-23,51302100639,"1,250.00",Achieve Occupational Therapy Ltd,EDUCATION,Regional Adoption Agency,Adoption Support Fund,Professional Fees and Hired Services
Cambridgeshire County Council,01-Dec-23,51302100642,"1,250.00",Achieve Occupational Therapy Ltd,EDUCATION,Regional Adoption Agency,Adoption Support Fund,Professional Fees and Hired Services
Cambridgeshire County Council,01-Dec-23,51302110646,"1,252.28",BATEMANS TRANSPORT & TAXI LTD,TRADE SUPPLIER,Home to School Transport - Special,Home to School Transport Special - Post 16,Home to School - Contract
Cambridgeshire County Council,01-Dec-23,51302110788,"1,260.00",Ammar Cabs Ltd,COMPANY,Home to School Transport - Mainstream,Home to School Transport Mainstream - Out of County,Social Care Transport
Cambridgeshire County Council,01-Dec-23,51302110273,"1,273.46",NHS CAMBRIDGESHIRE&PETERBOROUGH ICB,CARE ESTABLISHMENT,Community Support Service,Community Support Service ECF,Childcare Costs
Cambridgeshire County Council,01-Dec-23,51302109483,"1,308.84",BEAUMONT HEALTHCARE LTD,CARE ESTABLISHMENT,Community Support Service,Community Support Service ECF,Grants to Voluntary Bodies
Cambridgeshire County Council,01-Dec-23,51302110745,"1,327.79",T & T PRIVATE HIRE LTD,TRADE SUPPLIER,Home to School Transport - Special,Home to School Transport Special - Out of County,Home to School - Contract
Cambridgeshire County Council,01-Dec-23,51302110722,"1,342.32",Smart Cars UK,COMPANY,Home to School Transport - Special,Home to School Transport Special - Out of County,Home to School - Contract
Cambridgeshire County Council,01-Dec-23,51302095224,"1,347.60",Achieve Occupational Therapy Ltd,EDUCATION,Early Years Specialist Support,SEND - Independent Therapy,Independent School Placements
Cambridgeshire County Council,01-Dec-23,51302110623,"1,371.43",FEVACA,CARE ESTABLISHMENT,LAC Placements,Placements - supported accommodation,Agency Placements - In County
Cambridgeshire County Council,01-Dec-23,51302100566,"1,375.00",Achieve Occupational Therapy Ltd,EDUCATION,Regional Adoption Agency,Adoption Support Fund,Professional Fees and Hired Services
Cambridgeshire County Council,01-Dec-23,51302110517,"1,378.00",Redacted Personal Data,PARENT/GUARDIAN,Children's Disability Direct Payments,CSC Direct Payments,Direct Payments
Cambridgeshire County Council,01-Dec-23,51302110133,"1,382.40",Redacted Personal Data,INDIVIDUAL,Home to School Transport - Special,Home to School Transport Special - Post 16,Contribution To Transport Related Provisions
Cambridgeshire County Council,01-Dec-23,51302097354,"1,396.55",AVAILL HEALTHCARE,CARE ESTABLISHMENT,IHPS - South Accommodation Services,IHPS Jasmine House,Agency Staff
Cambridgeshire County Council,01-Dec-23,51302110241,"1,404.00",NATIONAL TEACHING & ADVISORY SERVICE FOR LOOKED AFTER CHILDREN (NT & AS),OTHER PUBLIC BODIES,Out of School Tuition,Out of School Provision EHCPs,Independent School Placements
Cambridgeshire County Council,01-Dec-23,51302057441,"1,416.12",Pathfinder Legal Services Ltd,TRADE SUPPLIER,Debt Team,Debt Team,External Legal Fees
Cambridgeshire County Council,01-Dec-23,51302096195,"1,420.80",Thriiver Ltd,COMPANY,Reablement - Management,Reablement - Management,Computer software - purchase
Cambridgeshire County Council,01-Dec-23,51302100608,"1,430.00",Achieve Occupational Therapy Ltd,EDUCATION,Regional Adoption Agency,Adoption Support Fund,Professional Fees and Hired Services
Cambridgeshire County Council,01-Dec-23,51302110778,"1,443.00",Private Hire 2 Go Ltd,COMPANY,LD - South Locality - Cost of Care,LD - South Cambs - Care,Social Care Transport
Cambridgeshire County Council,01-Dec-23,51302110779,"1,443.00",Private Hire 2 Go Ltd,COMPANY,LD - East Locality - Cost of Care,LD - East Cambs - Care,Social Care Transport
Cambridgeshire County Council,01-Dec-23,51302110688,"1,453.20",Darwin Cambridge Ltd T/A Hyfly Taxis,COMPANY,Home to School Transport - Special,Home to School Transport Special - Special School,Home to School - Contract
Cambridgeshire County Council,01-Dec-23,51302108696,"1,480.00",ANGLIAN WATER SERVICES LIMITED,COMPANY,County Farms,County Farms,County Farms Maintenance unplanned
Cambridgeshire County Council,01-Dec-23,51302110562,"1,481.09",VANTAGE PARK DAY NURSERY,EDUCATION,Nursery Schools,Early Years - Funded 3s/4s,Care & Ed Childcare Settings
Cambridgeshire County Council,01-Dec-23,51302110222,"1,482.00",NATIONAL TEACHING & ADVISORY SERVICE FOR LOOKED AFTER CHILDREN (NT & AS),OTHER PUBLIC BODIES,Out of School Tuition,Out of School Provision EHCPs,Independent School Placements
Cambridgeshire County Council,01-Dec-23,51302110516,"1,495.00",Redacted Personal Data,INDIVIDUAL,Children's Disability Direct Payments,CSC Direct Payments,Direct Payments
Cambridgeshire County Council,01-Dec-23,51302100623,"1,500.00",Achieve Occupational Therapy Ltd,EDUCATION,Regional Adoption Agency,Adoption Support Fund,Professional Fees and Hired Services
Cambridgeshire County Council,01-Dec-23,51302110534,"1,513.00",FIRST CHOICE BETTA CARS LTD,COMPANY,Home to School Transport - Special,Home to School Transport Special - Out of County,Home to School - Contract
Cambridgeshire County Council,01-Dec-23,51302110307,"1,522.49",Redacted Personal Data,INDIVIDUAL,Children's Disability Direct Payments,CSC Direct Payments,Direct Payments
Cambridgeshire County Council,01-Dec-23,51302110630,"1,557.82",Redacted Personal Data,PARENT/GUARDIAN,Home to School Transport - Special,Home to School Transport Special - Special School,Contribution To Transport Related Provisions
Cambridgeshire County Council,01-Dec-23,51302110226,"1,560.54",BEAUMONT HEALTHCARE LTD,CARE ESTABLISHMENT,Community Support Service,Community Support Service ECF,Grants to Voluntary Bodies
Cambridgeshire County Council,01-Dec-23,51302100629,"1,575.00",Achieve Occupational Therapy Ltd,EDUCATION,Regional Adoption Agency,Adoption Support Fund,Professional Fees and Hired Services
Cambridgeshire County Council,01-Dec-23,51302110531,"1,634.69",UniQ Cars,COMPANY,Home to School Transport - Special,Home to School Transport Special - Special School,Home to School - Contract
Cambridgeshire County Council,01-Dec-23,51302110219,"1,638.00",NATIONAL TEACHING & ADVISORY SERVICE FOR LOOKED AFTER CHILDREN (NT & AS),OTHER PUBLIC BODIES,Out of School Tuition,Out of School Provision EHCPs,Independent School Placements
Cambridgeshire County Council,01-Dec-23,51302110234,"1,638.00",NATIONAL TEACHING & ADVISORY SERVICE FOR LOOKED AFTER CHILDREN (NT & AS),OTHER PUBLIC BODIES,Out of School Tuition,Out of School Provision EHCPs,Independent School Placements
Cambridgeshire County Council,01-Dec-23,51302110670,"1,683.00",ADAMS CABS,TRADE SUPPLIER,Home to School Transport - Special,Home to School Transport Special - Primary,Home to School - Contract
Cambridgeshire County Council,01-Dec-23,51302110555,"1,705.20",LONGSTANTON PRE-SCHOOL & OUT OF SCHOOL CLUBS,EDUCATION,Nursery Schools,Early Years - Funded 3s/4s,Care & Ed Childcare Settings
Cambridgeshire County Council,01-Dec-23,51302110527,"1,712.00",Ely Cab,COMPANY,Home to School Transport - Mainstream,Home to School Transport Mainstream - Secondary,Home to School - Contract
Cambridgeshire County Council,01-Dec-23,51302110213,"1,794.00",NATIONAL TEACHING & ADVISORY SERVICE FOR LOOKED AFTER CHILDREN (NT & AS),OTHER PUBLIC BODIES,SEND - PEX support,SEND - Support for PEX without EHCP,Professional Fees and Hired Services
Cambridgeshire County Council,01-Dec-23,51302110537,"1,819.00",FIRST CHOICE BETTA CARS LTD,COMPANY,Home to School Transport - Mainstream,Home to School Transport Mainstream - Secondary,Home to School - Contract
Cambridgeshire County Council,01-Dec-23,51302110648,"1,834.49",BATEMANS TRANSPORT & TAXI LTD,TRADE SUPPLIER,Home to School Transport - Special,Home to School Transport Special - Special School,Home to School - Contract
Cambridgeshire County Council,01-Dec-23,51302110782,"1,872.00",Private Hire 2 Go Ltd,COMPANY,LAC Transport,LAC Transport - Home to School,Social Care Transport
Cambridgeshire County Council,01-Dec-23,51302110704,"1,876.80",KHOLYO CARS,TRADE SUPPLIER,Home to School Transport - Mainstream,Home to School Transport Mainstream - Secondary,Home to School - Contract
Cambridgeshire County Council,01-Dec-23,51302110693,"1,895.04",F & S TAXIS,TRADE SUPPLIER,Home to School Transport - Special,Home to School Transport Special - Secondary,Home to School - Contract
Cambridgeshire County Council,01-Dec-23,51302098043,"1,902.97",SOYL,OTHER PUBLIC BODIES,County Farms,County Farms,Professional Fees and Hired Services
Cambridgeshire County Council,01-Dec-23,51302110533,"1,919.84",UniQ Cars,COMPANY,Home to School Transport - Special,Home to School Transport Special - Special School,Home to School - Contract
Cambridgeshire County Council,01-Dec-23,51302100564,"1,937.50",Achieve Occupational Therapy Ltd,EDUCATION,Regional Adoption Agency,Adoption Support Fund,Professional Fees and Hired Services
Cambridgeshire County Council,01-Dec-23,51302110270,"1,950.00",NATIONAL TEACHING & ADVISORY SERVICE FOR LOOKED AFTER CHILDREN (NT & AS),OTHER PUBLIC BODIES,Out of School Tuition,Out of School Provision EHCPs,Independent School Placements
Cambridgeshire County Council,01-Dec-23,51302110659,"1,999.10",24 X 7 LTD,TRADE SUPPLIER,Home to School Transport - Special,Home to School Transport Special - Primary,Home to School - Contract
Cambridgeshire County Council,01-Dec-23,51302110203,"2,000.00",Inspire2Ignite CIC,COMPANY,Youth and Community Services,YS - National Citizen Service,Grants to Voluntary Bodies
Cambridgeshire County Council,01-Dec-23,51302110744,"2,000.63",T & T PRIVATE HIRE LTD,TRADE SUPPLIER,Home to School Transport - Mainstream,Home to School Transport Mainstream - Primary,Home to School - Contract
Cambridgeshire County Council,01-Dec-23,51302110728,"2,000.63",T & T PRIVATE HIRE LTD,TRADE SUPPLIER,Home to School Transport - Special,Home to School Transport Special - Special School,Home to School - Contract
Cambridgeshire County Council,01-Dec-23,51302110786,"2,039.80",Ammar Cabs Ltd,COMPANY,LAC Transport,LAC Transport - Home to School,Social Care Transport
Cambridgeshire County Council,01-Dec-23,51302110699,"2,070.00",Fencabs Ltd,TRADE SUPPLIER,Home to School Transport - Special,Home to School Transport Special - Secondary,Home to School - Contract
Cambridgeshire County Council,01-Dec-23,51302095436,"2,072.04",TIDEY ELECTRICAL LTD,TRADE SUPPLIER,Libraries - Open access & touchdown facilities - further 22 Libraries,Open access & touchdown facilities - further 22 Libraries,IT Hardware
Cambridgeshire County Council,01-Dec-23,51302110643,"2,118.31",BATEMANS TRANSPORT & TAXI LTD,TRADE SUPPLIER,Home to School Transport - Mainstream,Home to School Transport Mainstream - Primary,Home to School - Contract
Cambridgeshire County Council,01-Dec-23,51302098041,"2,145.61",SOYL,OTHER PUBLIC BODIES,County Farms,County Farms,Professional Fees and Hired Services
Cambridgeshire County Council,01-Dec-23,51302110294,"2,169.60",TLC Education Group,EDUCATION,Out of School Tuition,Out of School Provision EHCPs,Independent School Placements
Cambridgeshire County Council,01-Dec-23,51302096155,"2,175.12",CHS GROUP,CARE ESTABLISHMENT,LD - Head of Service,Head of LDP,Domiciliary Care
Cambridgeshire County Council,01-Dec-23,51302110536,"2,184.50",FIRST CHOICE BETTA CARS LTD,COMPANY,Home to School Transport - Special,Home to School Transport Special - Special School,Home to School - Contract
Cambridgeshire County Council,01-Dec-23,51302110685,"2,188.80",Cambs Private Hire,COMPANY,Home to School Transport - Mainstream,Home to School Transport Mainstream - Secondary,Home to School - Contract
Cambridgeshire County Council,01-Dec-23,51302109230,"2,215.00",Pathfinder Legal Services Limited,TRADE SUPPLIER,Legal Proceedings,Legal Proceedings,External Legal Fees
Cambridgeshire County Council,01-Dec-23,51302100568,"2,250.00",Achieve Occupational Therapy Ltd,EDUCATION,Regional Adoption Agency,Adoption Support Fund,Professional Fees and Hired Services
Cambridgeshire County Council,01-Dec-23,51302110620,"2,280.00",FEVACA,CARE ESTABLISHMENT,LAC Placements,Placements - supported accommodation,Agency Placements - In County
Cambridgeshire County Council,01-Dec-23,51302110615,"2,280.00",FEVACA,CARE ESTABLISHMENT,LAC Placements,Placements - supported accommodation,Agency Placements - In County
Cambridgeshire County Council,01-Dec-23,51302110612,"2,280.00",FEVACA,CARE ESTABLISHMENT,LAC Placements,Placements - supported accommodation,Agency Placements - In County
Cambridgeshire County Council,01-Dec-23,51302110609,"2,280.00",FEVACA,CARE ESTABLISHMENT,LAC Placements,Placements - supported accommodation,Agency Placements - In County
Cambridgeshire County Council,01-Dec-23,51302110606,"2,280.00",FEVACA,CARE ESTABLISHMENT,LAC Placements,Placements - supported accommodation,Agency Placements - In County
Cambridgeshire County Council,01-Dec-23,51302110603,"2,280.00",FEVACA,CARE ESTABLISHMENT,LAC Placements,Placements - supported accommodation,Agency Placements - In County
Cambridgeshire County Council,01-Dec-23,51302110600,"2,280.00",FEVACA,CARE ESTABLISHMENT,LAC Placements,Placements - supported accommodation,Agency Placements - In County
Cambridgeshire County Council,01-Dec-23,51302110597,"2,280.00",FEVACA,CARE ESTABLISHMENT,LAC Placements,Placements - supported accommodation,Agency Placements - In County
Cambridgeshire County Council,01-Dec-23,51302110625,"2,280.00",FEVACA,CARE ESTABLISHMENT,LAC Placements,Placements - supported accommodation,Agency Placements - In County
Cambridgeshire County Council,01-Dec-23,51302110098,"2,301.00",NATIONAL TEACHING & ADVISORY SERVICE FOR LOOKED AFTER CHILDREN (NT & AS),OTHER PUBLIC BODIES,Out of School Tuition,Out of School Provision EHCPs,Independent School Placements
Cambridgeshire County Council,01-Dec-23,51302110096,"2,340.00",NATIONAL TEACHING & ADVISORY SERVICE FOR LOOKED AFTER CHILDREN (NT & AS),OTHER PUBLIC BODIES,Out of School Tuition,Out of School Provision EHCPs,Independent School Placements
Cambridgeshire County Council,01-Dec-23,51302110763,"2,384.00",MD Ripon Miah Kamali t/a Greenline Private Hire Ltd,COMPANY,LAC Transport,LAC Transport - Home to School,Social Care Transport
Cambridgeshire County Council,01-Dec-23,51302110689,"2,386.80",Darwin Cambridge Ltd T/A Hyfly Taxis,COMPANY,Home to School Transport - Special,Home to School Transport Special - Special School,Home to School - Contract
Cambridgeshire County Council,01-Dec-23,51302110661,"2,399.94",A2B TAXIS,TRADE SUPPLIER,Home to School Transport - Special,Home to School Transport Special - Out of County,Home to School - Contract
Cambridgeshire County Council,01-Dec-23,51302110574,"2,400.00",FEVACA,CARE ESTABLISHMENT,LAC Placements,Placements - supported accommodation,Agency Placements - In County
Cambridgeshire County Council,01-Dec-23,51302110276,"2,428.80",TLC Education Group,EDUCATION,Out of School Tuition,Out of School Provision EHCPs,Independent School Placements
Cambridgeshire County Council,01-Dec-23,51302110645,"2,430.91",BATEMANS TRANSPORT & TAXI LTD,TRADE SUPPLIER,Home to School Transport - Special,Home to School Transport Special - Special School,Home to School - Contract
Cambridgeshire County Council,01-Dec-23,51302097872,"2,435.00",Achieve Occupational Therapy Ltd,EDUCATION,Early Years Specialist Support,SEND - Independent Therapy,Independent School Placements
Cambridgeshire County Council,01-Dec-23,51302110684,"2,451.84",Cambs Private Hire,COMPANY,Home to School Transport - Special,Home to School Transport Special - Secondary,Home to School - Contract
Cambridgeshire County Council,01-Dec-23,51302110520,"2,465.00",AERO CARS,TRADE SUPPLIER,Home to School Transport - Special,Home to School Transport Special - Special School,Home to School - Contract
Cambridgeshire County Council,01-Dec-23,51302110315,"2,466.00",NATIONAL TEACHING & ADVISORY SERVICE FOR LOOKED AFTER CHILDREN (NT & AS),OTHER PUBLIC BODIES,Out of School Tuition,Out of School Provision EHCPs,Independent School Placements
Cambridgeshire County Council,01-Dec-23,51302109231,"2,485.00",Pathfinder Legal Services Limited,TRADE SUPPLIER,Legal Proceedings,Legal Proceedings,External Legal Fees
Cambridgeshire County Council,01-Dec-23,51302110706,"2,496.00",KHOLYO CARS,TRADE SUPPLIER,Home to School Transport - Mainstream,Home to School Transport - Post 16,Home to School - Contract
Cambridgeshire County Council,01-Dec-23,51302110700,"2,496.96",GOLDSTAR CABS LTD,TRADE SUPPLIER,Home to School Transport - Special,Home to School Transport Special - Out of County,Home to School - Contract
Cambridgeshire County Council,01-Dec-23,51302110671,"2,499.84",Akmal cabs Ltd,COMPANY,Home to School Transport - Mainstream,Home to School Transport Mainstream - Secondary,Home to School - Contract
Cambridgeshire County Council,01-Dec-23,51302101800,"2,500.00",Sen Si Limited,COMPANY,Regional Adoption Agency,Adoption Support Fund,Professional Fees and Hired Services
Cambridgeshire County Council,01-Dec-23,51302110723,"2,510.27",T & T PRIVATE HIRE LTD,TRADE SUPPLIER,Home to School Transport - Special,Home to School Transport Special - Secondary,Home to School - Contract
Cambridgeshire County Council,01-Dec-23,51302097130,"2,520.00",Redstone Psychology and PBS Ltd,COMPANY,RSS Therapeutic Hub,RSS Therapeutic Hub,Staff Training & Development
Cambridgeshire County Council,01-Dec-23,51302110690,"2,614.56",Darwin Cambridge Ltd T/A Hyfly Taxis,COMPANY,Home to School Transport - Special,Home to School Transport Special - Secondary,Home to School - Contract
Cambridgeshire County Council,01-Dec-23,51302110787,"2,652.00",Ammar Cabs Ltd,COMPANY,LAC Transport,LAC Transport - Home to School,Social Care Transport
Cambridgeshire County Council,01-Dec-23,51302110662,"2,653.20",A2B TAXIS,TRADE SUPPLIER,Home to School Transport - Special,Home to School Transport Special - Special School,Home to School - Contract
Cambridgeshire County Council,01-Dec-23,51302102096,"2,663.00",Pathfinder Legal Services Limited,TRADE SUPPLIER,Legal Proceedings,Legal Proceedings,External Legal Fees
Cambridgeshire County Council,01-Dec-23,51302110518,"2,672.00",Elite Travel Peterborough,COMPANY,Home to School Transport - Special,Home to School Transport Special - Secondary,Home to School - Contract
Cambridgeshire County Council,01-Dec-23,51302110742,"2,796.23",T & T PRIVATE HIRE LTD,TRADE SUPPLIER,Home to School Transport - Special,Home to School Transport Special - Out of County,Home to School - Contract
Cambridgeshire County Council,01-Dec-23,51302110240,"2,808.00",NATIONAL TEACHING & ADVISORY SERVICE FOR LOOKED AFTER CHILDREN (NT & AS),OTHER PUBLIC BODIES,Out of School Tuition,Out of School Provision EHCPs,Independent School Placements
Cambridgeshire County Council,01-Dec-23,51302110720,"2,870.21",Panther Cambridge Ltd,COMPANY,Home to School Transport - Special,Home to School Transport Special - Post 16,Home to School - Contract
Cambridgeshire County Council,01-Dec-23,51302110236,"2,886.00",NATIONAL TEACHING & ADVISORY SERVICE FOR LOOKED AFTER CHILDREN (NT & AS),OTHER PUBLIC BODIES,Out of School Tuition,Out of School Provision EHCPs,Independent School Placements
Cambridgeshire County Council,01-Dec-23,51302110522,"2,890.00",AERO CARS,TRADE SUPPLIER,Home to School Transport - Mainstream,Home to School Transport Mainstream - Secondary,Home to School - Contract
Cambridgeshire County Council,01-Dec-23,51302095475,"2,927.57",CAMBRIDGE UNIVERSITY HOSPITALS NHS FOUNDATION TRUST,TRUST (OTHER),Coroners,Coroners General,Payments to Other Establishments
Cambridgeshire County Council,01-Dec-23,51302110530,"2,959.84",UniQ Cars,COMPANY,Home to School Transport - Special,Home to School Transport Special - Special School,Home to School - Contract
Cambridgeshire County Council,01-Dec-23,51302110743,"2,974.78",T & T PRIVATE HIRE LTD,TRADE SUPPLIER,Home to School Transport - Special,Home to School Transport Special - Post 16,Home to School - Contract
Cambridgeshire County Council,01-Dec-23,51302110733,"2,999.82",T & T PRIVATE HIRE LTD,TRADE SUPPLIER,Home to School Transport - Special,Home to School Transport Special - Special School,Home to School - Contract
Cambridgeshire County Council,01-Dec-23,51302110370,"3,000.00",Carers UK,COMPANY,Technology Enabled Care,Technology Enabled Care (TEC),Specialist Equipment For Service Delivery
Cambridgeshire County Council,01-Dec-23,51302110725,"3,020.63",T & T PRIVATE HIRE LTD,TRADE SUPPLIER,Home to School Transport - Special,Home to School Transport Special - Special School,Home to School - Contract
Cambridgeshire County Council,01-Dec-23,51302110242,"3,024.00",NATIONAL TEACHING & ADVISORY SERVICE FOR LOOKED AFTER CHILDREN (NT & AS),OTHER PUBLIC BODIES,Out of School Tuition,Out of School Provision EHCPs,Independent School Placements
Cambridgeshire County Council,01-Dec-23,51302110264,"3,042.00",NATIONAL TEACHING & ADVISORY SERVICE FOR LOOKED AFTER CHILDREN (NT & AS),OTHER PUBLIC BODIES,Out of School Tuition,Out of School Provision EHCPs,Independent School Placements
Cambridgeshire County Council,01-Dec-23,51302110282,"3,042.00",NATIONAL TEACHING & ADVISORY SERVICE FOR LOOKED AFTER CHILDREN (NT & AS),OTHER PUBLIC BODIES,Out of School Tuition,Out of School Provision EHCPs,Independent School Placements
Cambridgeshire County Council,01-Dec-23,51302110678,"3,058.98",Cambridge and Huntingdon Airport Travel Service,COMPANY,Home to School Transport - Special,Home to School Transport Special - Post 16,Home to School - Contract
Cambridgeshire County Council,01-Dec-23,51302110705,"3,121.20",KHOLYO CARS,TRADE SUPPLIER,Home to School Transport - Special,Home to School Transport Special - Secondary,Home to School - Contract
Cambridgeshire County Council,01-Dec-23,51302110214,"3,168.00",NATIONAL TEACHING & ADVISORY SERVICE FOR LOOKED AFTER CHILDREN (NT & AS),OTHER PUBLIC BODIES,Out of School Tuition,Out of School Provision EHCPs,Independent School Placements
Cambridgeshire County Council,01-Dec-23,51302110691,"3,233.66",Drivero Taxi Ltd,COMPANY,Home to School Transport - Mainstream,Home to School Transport Mainstream - Secondary,Home to School - Contract
Cambridgeshire County Council,01-Dec-23,51302110768,"3,240.00",RAY-AL COACHES LTD,TRADE SUPPLIER,LD - Young Adults Team,LD - Young Adults - Care,Social Care Transport
Cambridgeshire County Council,01-Dec-23,51302110702,"3,264.00",Hello Carz Ltd,COMPANY,Home to School Transport - Special,Home to School Transport Special - Special School,Home to School - Contract
Cambridgeshire County Council,01-Dec-23,51302110218,"3,276.00",NATIONAL TEACHING & ADVISORY SERVICE FOR LOOKED AFTER CHILDREN (NT & AS),OTHER PUBLIC BODIES,Out of School Tuition,Out of School Provision EHCPs,Independent School Placements
Cambridgeshire County Council,01-Dec-23,51302095471,"3,300.00",WSP UK Limited,COMPANY,Flood Risk Management,Flood Team,Professional Fees and Hired Services
Cambridgeshire County Council,01-Dec-23,51302110674,"3,363.35",BATEMANS TRANSPORT & TAXI LTD,TRADE SUPPLIER,Home to School Transport - Special,Home to School Transport Special - Special School,Home to School - Contract
Cambridgeshire County Council,01-Dec-23,51302110524,"3,374.84",ALANS TAXI LTD,TRADE SUPPLIER,Home to School Transport - Mainstream,Home to School Transport Mainstream - Secondary,Home to School - Contract
Cambridgeshire County Council,01-Dec-23,51302110774,"3,379.20",Drivero Taxi Ltd,COMPANY,LD - East Locality - Cost of Care,LD - East Cambs - Care,Social Care Transport
Cambridgeshire County Council,01-Dec-23,51302110715,"3,399.29",Panther Cambridge Ltd,COMPANY,Home to School Transport - Special,Home to School Transport Special - Post 16,Home to School - Contract
Cambridgeshire County Council,01-Dec-23,51302110740,"3,408.23",T & T PRIVATE HIRE LTD,TRADE SUPPLIER,Home to School Transport - Special,Home to School Transport Special - Special School,Home to School - Contract
Cambridgeshire County Council,01-Dec-23,51302110712,"3,409.49",Panther Cambridge Ltd,COMPANY,Home to School Transport - Mainstream,Home to School Transport Mainstream - Primary,Home to School - Contract
Cambridgeshire County Council,01-Dec-23,51302110650,"3,420.00",CAMCAB LTD,TRADE SUPPLIER,Home to School Transport - Special,Home to School Transport Special - Special School,Home to School - Contract
Cambridgeshire County Council,01-Dec-23,51302110526,"3,425.50",D A PAYNE COACH HIRE LTD,TRADE SUPPLIER,Home to School Transport - Mainstream,Home to School Transport Mainstream - Secondary,Home to School - Contract
Cambridgeshire County Council,01-Dec-23,51302110658,"3,427.20",TK Transport Solutions LTD,COMPANY,Home to School Transport - Special,Home to School Transport Special - Post 16,Home to School - Contract
Cambridgeshire County Council,01-Dec-23,51302110619,"3,428.57",FEVACA,CARE ESTABLISHMENT,LAC Placements,Placements - supported accommodation,Agency Placements - In County
Cambridgeshire County Council,01-Dec-23,51302110738,"3,428.63",T & T PRIVATE HIRE LTD,TRADE SUPPLIER,Home to School Transport - Special,Home to School Transport Special - Special School,Home to School - Contract
Cambridgeshire County Council,01-Dec-23,51302110229,"3,448.30",BEAUMONT HEALTHCARE LTD,CARE ESTABLISHMENT,Community Support Service,Community Support Service ECF,Grants to Voluntary Bodies
Cambridgeshire County Council,01-Dec-23,51302110316,"3,480.00",DEWS COACHES,TRADE SUPPLIER,Unaccompanied Asylum Seeking Children,Separated Migrant Children > 18,Car mileage and allowances - other
Cambridgeshire County Council,01-Dec-23,51302110351,"3,480.00",DEWS COACHES,TRADE SUPPLIER,Unaccompanied Asylum Seeking Children,Separated Migrant Children > 18,Car mileage and allowances - other
Cambridgeshire County Council,01-Dec-23,51302110284,"3,510.00",NATIONAL TEACHING & ADVISORY SERVICE FOR LOOKED AFTER CHILDREN (NT & AS),OTHER PUBLIC BODIES,Out of School Tuition,Out of School Provision EHCPs,Independent School Placements
Cambridgeshire County Council,01-Dec-23,51302110221,"3,510.00",NATIONAL TEACHING & ADVISORY SERVICE FOR LOOKED AFTER CHILDREN (NT & AS),OTHER PUBLIC BODIES,Out of School Tuition,Out of School Provision EHCPs,Independent School Placements
Cambridgeshire County Council,01-Dec-23,51302098398,"3,552.00",OFFICE UPDATE LTD,TRADE SUPPLIER,Corporate Offices,County Offices General,"Fixtures, Fittings and Furnishings"
Cambridgeshire County Council,01-Dec-23,51302110695,"3,555.84",Fencabs Ltd,TRADE SUPPLIER,Home to School Transport - Special,Home to School Transport Special - Out of County,Home to School - Contract
Cambridgeshire County Council,01-Dec-23,51302110656,"3,577.20",KHOLYO CARS,TRADE SUPPLIER,Home to School Transport - Mainstream,Home to School Transport Mainstream - Secondary,Home to School - Contract
Cambridgeshire County Council,01-Dec-23,51302110095,"3,588.00",NATIONAL TEACHING & ADVISORY SERVICE FOR LOOKED AFTER CHILDREN (NT & AS),OTHER PUBLIC BODIES,Out of School Tuition,Out of School Provision EHCPs,Independent School Placements
Cambridgeshire County Council,01-Dec-23,51302110262,"3,618.00",NATIONAL TEACHING & ADVISORY SERVICE FOR LOOKED AFTER CHILDREN (NT & AS),OTHER PUBLIC BODIES,Out of School Tuition,Out of School Provision EHCPs,Independent School Placements
Cambridgeshire County Council,01-Dec-23,51302110266,"3,744.00",NATIONAL TEACHING & ADVISORY SERVICE FOR LOOKED AFTER CHILDREN (NT & AS),OTHER PUBLIC BODIES,Out of School Tuition,Out of School Provision EHCPs,Independent School Placements
Cambridgeshire County Council,01-Dec-23,51302110216,"3,744.00",NATIONAL TEACHING & ADVISORY SERVICE FOR LOOKED AFTER CHILDREN (NT & AS),OTHER PUBLIC BODIES,Out of School Tuition,Out of School Provision EHCPs,Independent School Placements
Cambridgeshire County Council,01-Dec-23,51302110233,"3,783.00",NATIONAL TEACHING & ADVISORY SERVICE FOR LOOKED AFTER CHILDREN (NT & AS),OTHER PUBLIC BODIES,Out of School Tuition,Out of School Provision EHCPs,Independent School Placements
Cambridgeshire County Council,01-Dec-23,51302110727,"3,836.63",T & T PRIVATE HIRE LTD,TRADE SUPPLIER,Home to School Transport - Special,Home to School Transport Special - Special School,Home to School - Contract
Cambridgeshire County Council,01-Dec-23,51302110730,"3,836.63",T & T PRIVATE HIRE LTD,TRADE SUPPLIER,Home to School Transport - Special,Home to School Transport Special - Special School,Home to School - Contract
Cambridgeshire County Council,01-Dec-23,51302110099,"3,900.00",NATIONAL TEACHING & ADVISORY SERVICE FOR LOOKED AFTER CHILDREN (NT & AS),OTHER PUBLIC BODIES,Out of School Tuition,Out of School Provision EHCPs,Independent School Placements
Cambridgeshire County Council,01-Dec-23,51302110529,"3,910.00",Private Hire 2 Go Ltd,COMPANY,Home to School Transport - Special,Home to School Transport Special - Out of County,Home to School - Contract
Cambridgeshire County Council,01-Dec-23,51302110572,"3,942.60",TRANSITION CARE PETERBOROUGH LTD,CARE ESTABLISHMENT,LAC Placements,Placements - supported accommodation,Agency Placements - In County
Cambridgeshire County Council,01-Dec-23,51302110573,"3,942.60",TRANSITION CARE PETERBOROUGH LTD,CARE ESTABLISHMENT,LAC Placements,Placements - supported accommodation,Agency Placements - In County
Cambridgeshire County Council,01-Dec-23,51302110220,"3,978.00",NATIONAL TEACHING & ADVISORY SERVICE FOR LOOKED AFTER CHILDREN (NT & AS),OTHER PUBLIC BODIES,SEND - PEX support,SEND - Support for PEX without EHCP,Professional Fees and Hired Services
Cambridgeshire County Council,01-Dec-23,51302110707,"3,978.00",KHOLYO CARS,TRADE SUPPLIER,Home to School Transport - Mainstream,Home to School Transport Mainstream - Secondary,Home to School - Contract
Cambridgeshire County Council,01-Dec-23,51302110243,"3,978.00",NATIONAL TEACHING & ADVISORY SERVICE FOR LOOKED AFTER CHILDREN (NT & AS),OTHER PUBLIC BODIES,Out of School Tuition,Out of School Provision EHCPs,Independent School Placements
Cambridgeshire County Council,01-Dec-23,51302110283,"3,978.00",NATIONAL TEACHING & ADVISORY SERVICE FOR LOOKED AFTER CHILDREN (NT & AS),OTHER PUBLIC BODIES,Out of School Tuition,Out of School Provision EHCPs,Independent School Placements
Cambridgeshire County Council,01-Dec-23,51302110265,"3,978.00",NATIONAL TEACHING & ADVISORY SERVICE FOR LOOKED AFTER CHILDREN (NT & AS),OTHER PUBLIC BODIES,Out of School Tuition,Out of School Provision EHCPs,Independent School Placements
Cambridgeshire County Council,01-Dec-23,51302110663,"4,002.82",A2B TAXIS,TRADE SUPPLIER,Home to School Transport - Special,Home to School Transport Special - Post 16,Home to School - Contract
Cambridgeshire County Council,01-Dec-23,51302110687,"4,012.80",Darwin Cambridge Ltd T/A Hyfly Taxis,COMPANY,Home to School Transport - Special,Home to School Transport Special - Special School,Home to School - Contract
Cambridgeshire County Council,01-Dec-23,51302110747,"4,020.23",T & T PRIVATE HIRE LTD,TRADE SUPPLIER,Home to School Transport - Special,Home to School Transport Special - Out of County,Home to School - Contract
Cambridgeshire County Council,01-Dec-23,51302110741,"4,020.23",T & T PRIVATE HIRE LTD,TRADE SUPPLIER,Home to School Transport - Special,Home to School Transport Special - Out of County,Home to School - Contract
Cambridgeshire County Council,01-Dec-23,51302110657,"4,033.68",T & T PRIVATE HIRE LTD,TRADE SUPPLIER,Home to School Transport - Special,Home to School Transport Special - Special School,Home to School - Contract
Cambridgeshire County Council,01-Dec-23,51302110736,"4,040.63",T & T PRIVATE HIRE LTD,TRADE SUPPLIER,Home to School Transport - Special,Home to School Transport Special - Post 16,Home to School - Contract
Cambridgeshire County Council,01-Dec-23,51302110519,"4,165.00",Private Hire 2 Go Ltd,COMPANY,Home to School Transport - Special,Home to School Transport Special - Out of County,Home to School - Contract
Cambridgeshire County Council,01-Dec-23,51302109227,"4,228.52",PSL Print Management LTD,COMPANY,Shared Services Business Systems,Business Systems,Printing
Cambridgeshire County Council,01-Dec-23,51302110737,"4,244.63",T & T PRIVATE HIRE LTD,TRADE SUPPLIER,Home to School Transport - Special,Home to School Transport Special - Secondary,Home to School - Contract
Cambridgeshire County Council,01-Dec-23,51302110734,"4,265.03",T & T PRIVATE HIRE LTD,TRADE SUPPLIER,Home to School Transport - Special,Home to School Transport Special - Special School,Home to School - Contract
Cambridgeshire County Council,01-Dec-23,51302110735,"4,265.03",T & T PRIVATE HIRE LTD,TRADE SUPPLIER,Home to School Transport - Special,Home to School Transport Special - Special School,Home to School - Contract
Cambridgeshire County Council,01-Dec-23,51302110769,"4,320.00",RAY-AL COACHES LTD,TRADE SUPPLIER,LD - Hunts Locality - Cost of Care,LD - Huntingdonshire - Care,Social Care Transport
Cambridgeshire County Council,01-Dec-23,51302095495,"4,344.00",Jackson Environmental Ltd,COMPANY,Capital Receipts Expenses,Capital Receipts Expenses,Professional Fees and Hired Services
Cambridgeshire County Council,01-Dec-23,51302110692,"4,510.08",EXPRESS CARS,TRADE SUPPLIER,Home to School Transport - Special,Home to School Transport Special - Special School,Home to School - Contract
Cambridgeshire County Council,01-Dec-23,51302110325,"4,700.00",CAMBRIDGE WOMENS AID,CHARITY,Domestic Violence & Sexual Violence,DLUHC Grant,Contributions to partnerships
Cambridgeshire County Council,01-Dec-23,51302110150,"4,774.28",Serenity Welfare Limited,CARE ESTABLISHMENT,LAC Placements,Placements - supported accommodation,Agency Placements - In County
Cambridgeshire County Council,01-Dec-23,51302098508,"4,800.00",Family Futures CIC,EDUCATION,Regional Adoption Agency,Adoption Support Fund,Research & Development
Cambridgeshire County Council,01-Dec-23,51302110626,"4,800.00",FEVACA,CARE ESTABLISHMENT,LAC Placements,Placements - supported accommodation,Agency Placements - In County
Cambridgeshire County Council,01-Dec-23,51302110627,"4,800.00",FEVACA,CARE ESTABLISHMENT,LAC Placements,Placements - supported accommodation,Agency Placements - In County
Cambridgeshire County Council,01-Dec-23,51302110628,"4,800.00",FEVACA,CARE ESTABLISHMENT,LAC Placements,Placements - supported accommodation,Agency Placements - In County
Cambridgeshire County Council,01-Dec-23,51302110613,"4,800.00",FEVACA,CARE ESTABLISHMENT,LAC Placements,Placements - supported accommodation,Agency Placements - In County
Cambridgeshire County Council,01-Dec-23,51302110616,"4,800.00",FEVACA,CARE ESTABLISHMENT,LAC Placements,Placements - supported accommodation,Agency Placements - In County
Cambridgeshire County Council,01-Dec-23,51302110601,"4,800.00",FEVACA,CARE ESTABLISHMENT,LAC Placements,Placements - supported accommodation,Agency Placements - In County
Cambridgeshire County Council,01-Dec-23,51302110604,"4,800.00",FEVACA,CARE ESTABLISHMENT,LAC Placements,Placements - supported accommodation,Agency Placements - In County
Cambridgeshire County Council,01-Dec-23,51302110607,"4,800.00",FEVACA,CARE ESTABLISHMENT,LAC Placements,Placements - supported accommodation,Agency Placements - In County
Cambridgeshire County Council,01-Dec-23,51302110610,"4,800.00",FEVACA,CARE ESTABLISHMENT,LAC Placements,Placements - supported accommodation,Agency Placements - In County
Cambridgeshire County Council,01-Dec-23,51302110598,"4,800.00",FEVACA,CARE ESTABLISHMENT,LAC Placements,Placements - supported accommodation,Agency Placements - In County
Cambridgeshire County Council,01-Dec-23,51302097129,"4,800.00",Redstone Psychology and PBS Ltd,COMPANY,RSS Therapeutic Hub,RSS Therapeutic Hub,Staff Training & Development
Cambridgeshire County Council,01-Dec-23,51302110746,"4,856.63",T & T PRIVATE HIRE LTD,TRADE SUPPLIER,Home to School Transport - Special,Home to School Transport Special - Out of County,Home to School - Contract
Cambridgeshire County Council,01-Dec-23,51302110732,"4,877.03",T & T PRIVATE HIRE LTD,TRADE SUPPLIER,Home to School Transport - Special,Home to School Transport Special - Post 16,Home to School - Contract
Cambridgeshire County Council,01-Dec-23,51302098506,"4,880.00",Family Futures CIC,EDUCATION,Regional Adoption Agency,Adoption Support Fund,Research & Development
Cambridgeshire County Council,01-Dec-23,51302110739,"4,958.63",T & T PRIVATE HIRE LTD,TRADE SUPPLIER,Home to School Transport - Special,Home to School Transport Special - Special School,Home to School - Contract
Cambridgeshire County Council,01-Dec-23,51302110731,"5,024.63",T & T PRIVATE HIRE LTD,TRADE SUPPLIER,Home to School Transport - Special,Home to School Transport Special - Special School,Home to School - Contract
Cambridgeshire County Council,01-Dec-23,51302110595,"5,040.00",FEVACA,CARE ESTABLISHMENT,LAC Placements,Placements - supported accommodation,Agency Placements - In County
Cambridgeshire County Council,01-Dec-23,51302110664,"5,043.60",ADAMS CABS,TRADE SUPPLIER,Home to School Transport - Special,Home to School Transport Special - Out of County,Home to School - Contract
Cambridgeshire County Council,01-Dec-23,51302110319,"5,500.00",Redacted Personal Data,PARENT/GUARDIAN,Early Years Specialist Support,"SEND - Legal, Tribunal & Mediation",Independent School Placements
Cambridgeshire County Council,01-Dec-23,51302110718,"5,637.60",Panther Cambridge Ltd,COMPANY,Home to School Transport - Mainstream,Home to School Transport Mainstream - Primary,Home to School - Contract
Cambridgeshire County Council,01-Dec-23,51302110717,"5,642.44",Panther Cambridge Ltd,COMPANY,Home to School Transport - Mainstream,Home to School Transport Mainstream - Secondary,Home to School - Contract
Cambridgeshire County Council,01-Dec-23,51302110679,"5,813.04",Cambs Private Hire,COMPANY,Home to School Transport - Special,Home to School Transport Special - Out of County,Home to School - Contract
Cambridgeshire County Council,01-Dec-23,51302099130,"5,856.00",React2it (Building Refurbishments) Limited,COMPANY,Corporate Offices,Burwell House,Other Term maintenance contracts
Cambridgeshire County Council,01-Dec-23,51302110729,"5,876.63",T & T PRIVATE HIRE LTD,TRADE SUPPLIER,Home to School Transport - Special,Home to School Transport Special - Post 16,Home to School - Contract
Cambridgeshire County Council,01-Dec-23,51302110696,"5,935.20",Fencabs Ltd,TRADE SUPPLIER,Home to School Transport - Special,Home to School Transport Special - Post 16,Home to School - Contract
Cambridgeshire County Council,01-Dec-23,51302110559,"5,936.70",Stapleford Nursery Class,NURSERY,Nursery Schools,Early Years - Funded 3s/4s,Care & Ed Childcare Settings
Cambridgeshire County Council,01-Dec-23,51302110256,"5,941.56",GSH Group Company,COMPANY,Condition Survey Works,CS23050106 Sackville House CB23 6HL,"New Construction, Conversion and Renovation"
Cambridgeshire County Council,01-Dec-23,51302110669,"6,113.10",ADAMS CABS,TRADE SUPPLIER,Home to School Transport - Mainstream,Home to School Transport Mainstream - Secondary,Home to School - Contract
Cambridgeshire County Council,01-Dec-23,51302110677,"6,204.66",Cambridge and Huntingdon Airport Travel Service,COMPANY,Home to School Transport - Special,Home to School Transport Special - Primary,Home to School - Contract
Cambridgeshire County Council,01-Dec-23,51302110106,"6,840.00",Young Technicians CIC,EDUCATION,Out of School Tuition,Out of School Provision EHCPs,Independent School Placements
Cambridgeshire County Council,01-Dec-23,51302110726,"6,896.63",T & T PRIVATE HIRE LTD,TRADE SUPPLIER,Home to School Transport - Special,Home to School Transport Special - Secondary,Home to School - Contract
Cambridgeshire County Council,01-Dec-23,51302110716,"7,094.16",Panther Cambridge Ltd,COMPANY,Home to School Transport - Special,Home to School Transport Special - Out of County,Home to School - Contract
Cambridgeshire County Council,01-Dec-23,51302110675,"7,256.64",Cambridge and Huntingdon Airport Travel Service,COMPANY,Home to School Transport - Special,Home to School Transport Special - Special School,Home to School - Contract
Cambridgeshire County Council,01-Dec-23,51302101964,"7,686.27",Cottenham Parish Council,OTHER PUBLIC BODIES,Section 106,"Land at Rampton Road, Cottenham",S106 Expenditure
Cambridgeshire County Council,01-Dec-23,51302110719,"8,128.56",Panther Cambridge Ltd,COMPANY,Home to School Transport - Special,Home to School Transport Special - Out of County,Home to School - Contract
Cambridgeshire County Council,01-Dec-23,51302110665,"8,474.64",ADAMS CABS,TRADE SUPPLIER,Home to School Transport - Mainstream,Home to School Transport Mainstream - Primary,Home to School - Contract
Cambridgeshire County Council,01-Dec-23,51302109232,"8,612.04",Pathfinder Legal Services Limited,TRADE SUPPLIER,Legal Proceedings,Legal Proceedings,External Legal Fees
Cambridgeshire County Council,01-Dec-23,51302110576,"8,642.00",Ortu Specialised Home,CARE ESTABLISHMENT,LAC Placements,Placements - supported accommodation,Agency Placements - In County
Cambridgeshire County Council,01-Dec-23,51302110577,"8,642.00",Ortu Specialised Home,CARE ESTABLISHMENT,LAC Placements,Placements - supported accommodation,Agency Placements - In County
Cambridgeshire County Council,01-Dec-23,51302110578,"8,642.00",Ortu Specialised Home,CARE ESTABLISHMENT,LAC Placements,Placements - supported accommodation,Agency Placements - In County
Cambridgeshire County Council,01-Dec-23,51302110579,"8,642.00",Ortu Specialised Home,CARE ESTABLISHMENT,LAC Placements,Placements - supported accommodation,Agency Placements - In County
Cambridgeshire County Council,01-Dec-23,51302110580,"8,642.00",Ortu Specialised Home,CARE ESTABLISHMENT,LAC Placements,Placements - supported accommodation,Agency Placements - In County
Cambridgeshire County Council,01-Dec-23,51302110581,"8,642.00",Ortu Specialised Home,CARE ESTABLISHMENT,LAC Placements,Placements - supported accommodation,Agency Placements - In County
Cambridgeshire County Council,01-Dec-23,51302110146,"8,812.80",Serenity Welfare Limited,CARE ESTABLISHMENT,LAC Placements,Placements - supported accommodation,Agency Placements - In County
Cambridgeshire County Council,01-Dec-23,51302110713,"9,063.56",Panther Cambridge Ltd,COMPANY,Home to School Transport - Special,Home to School Transport Special - Secondary,Home to School - Contract
Cambridgeshire County Council,01-Dec-23,51302110570,"9,189.00",Redacted Personal Data,INDIVIDUAL,Fostering,Fostering Support and Supervision,Professional Fees and Hired Services
Cambridgeshire County Council,01-Dec-23,51302110709,"10,436.38",Panther Cambridge Ltd,COMPANY,Home to School Transport - Special,Home to School Transport Special - Secondary,Home to School - Contract
Cambridgeshire County Council,01-Dec-23,51302110682,"10,466.88",Cambs Private Hire,COMPANY,Home to School Transport - Special,Home to School Transport Special - Post 16,Home to School - Contract
Cambridgeshire County Council,01-Dec-23,51302110525,"10,516.63",D A PAYNE COACH HIRE LTD,TRADE SUPPLIER,Home to School Transport - Mainstream,Home to School Transport Mainstream - Primary,Home to School - Contract
Cambridgeshire County Council,01-Dec-23,51302110681,"11,007.48",Cambs Private Hire,COMPANY,Home to School Transport - Special,Home to School Transport Special - Special School,Home to School - Contract
Cambridgeshire County Council,01-Dec-23,51302110697,"11,154.72",Fencabs Ltd,TRADE SUPPLIER,Home to School Transport - Mainstream,Home to School Transport Mainstream - Secondary,Home to School - Contract
Cambridgeshire County Council,01-Dec-23,51302110158,"12,495.96",CHELSEA AND WESTMINSTER HOSPITAL NHS FOUNDATION TRUST,TRUST (OTHER),SH STI - PH Sexual Health & Health Checks,SH STI - Hospital SH Services - Out of Area Trusts,Professional Fees and Hired Services
Cambridgeshire County Council,01-Dec-23,51302110126,"13,049.22",BEDAZZLE EXPRESSIVE ARTS,EDUCATION,SEND High Needs Top Up,High Needs Top Up - Post 16,Independent School Placements
Cambridgeshire County Council,01-Dec-23,51302110698,"13,162.66",Fencabs Ltd,TRADE SUPPLIER,Home to School Transport - Mainstream,Home to School Transport Mainstream - Primary,Home to School - Contract
Cambridgeshire County Council,01-Dec-23,51302110571,"14,307.00",Vcare24 Limited,CARE ESTABLISHMENT,LAC Placements,Placements - residential disability,Agency Placements - Out of  County
Cambridgeshire County Council,01-Dec-23,51302110680,"14,483.23",Cambs Private Hire,COMPANY,Home to School Transport - Mainstream,Home to School Transport Mainstream - Primary,Home to School - Contract
Cambridgeshire County Council,01-Dec-23,51302110309,"15,302.33",CALDECOTE PARISH COUNCIL,OTHER PUBLIC BODIES,Section 106,Land off Highfields Road 2,S106 Expenditure
Cambridgeshire County Council,01-Dec-23,51302110672,"15,326.40",Akmal cabs Ltd,COMPANY,Home to School Transport - Special,Home to School Transport Special - Special School,Home to School - Contract
Cambridgeshire County Council,01-Dec-23,51302110676,"19,696.22",Cambridge and Huntingdon Airport Travel Service,COMPANY,Home to School Transport - Special,Home to School Transport Special - Post 16,Home to School - Contract
Cambridgeshire County Council,01-Dec-23,51302110511,"19,860.13",LINCOLNSHIRE COUNTY COUNCIL,OTHER PUBLIC BODIES,Recoupment,Other LA Mainstream,Independent School Placements
Cambridgeshire County Council,01-Dec-23,51302110584,"20,476.80",Keys PCE Ltd,CARE ESTABLISHMENT,LAC Placements,Placements - residential disability,Agency Placements - Out of  County
Cambridgeshire County Council,01-Dec-23,51302110575,"20,476.80",Keys PCE Ltd,CARE ESTABLISHMENT,LAC Placements,Placements - residential homes,Agency Placements - Out of  County
Cambridgeshire County Council,01-Dec-23,51302110582,"20,476.80",Keys PCE Ltd,CARE ESTABLISHMENT,LAC Placements,Placements - residential homes,Agency Placements - In County
Cambridgeshire County Council,01-Dec-23,51302110583,"20,476.80",Keys PCE Ltd,CARE ESTABLISHMENT,LAC Placements,Placements - residential homes,Agency Placements - Out of  County
Cambridgeshire County Council,01-Dec-23,51302110585,"20,476.80",Keys PCE Ltd,CARE ESTABLISHMENT,LAC Placements,Placements - residential homes,Agency Placements - Out of  County
Cambridgeshire County Council,01-Dec-23,51302110497,"21,667.64",West Northamptonshire Council,OTHER PUBLIC BODIES,Payroll & HR Transactions,HR Payroll,Joint Arrangements
Cambridgeshire County Council,01-Dec-23,51302110666,"23,717.58",ADAMS CABS,TRADE SUPPLIER,Home to School Transport - Special,Home to School Transport Special - Secondary,Home to School - Contract
Cambridgeshire County Council,01-Dec-23,51302110653,"24,505.58",Cambridge and Huntingdon Airport Travel Service,COMPANY,Home to School Transport - Special,Home to School Transport Special - Post 16,Home to School - Contract
Cambridgeshire County Council,01-Dec-23,51302110667,"25,900.08",ADAMS CABS,TRADE SUPPLIER,Home to School Transport - Special,Home to School Transport Special - Special School,Home to School - Contract
Cambridgeshire County Council,01-Dec-23,51302109497,"28,570.06",Pathfinder Legal Services Limited,TRADE SUPPLIER,Legal Proceedings,Legal Proceedings,External Legal Fees
Cambridgeshire County Council,01-Dec-23,51302110694,"28,855.97",Fencabs Ltd,TRADE SUPPLIER,Home to School Transport - Special,Home to School Transport Special - Special School,Home to School - Contract
Cambridgeshire County Council,01-Dec-23,51302108779,"30,240.00",PayGate Solutions Ltd,COMPANY,Shared Services Business Systems,Business Systems,Computer software - annual licence agreement
Cambridgeshire County Council,01-Dec-23,51302109194,"30,504.00",MOLA Stansted,COMPANY,GCP - Cambourne to Cambridge (A428),GCP - Cambourne to Cambridge (A428),Archaeology
Cambridgeshire County Council,01-Dec-23,51302109496,"32,344.74",Pathfinder Legal Services Limited,TRADE SUPPLIER,Legal Proceedings,Legal Proceedings,External Legal Fees
Cambridgeshire County Council,01-Dec-23,51302110333,"32,924.90",Top Notch Tutors,EDUCATION,Out of School Tuition,Out of School Provision EHCPs,Independent School Placements
Cambridgeshire County Council,01-Dec-23,51302110711,"33,064.22",Panther Cambridge Ltd,COMPANY,Home to School Transport - Special,Home to School Transport Special - Special School,Home to School - Contract
Cambridgeshire County Council,01-Dec-23,51302110586,"33,420.00",Serenity Welfare Limited,CARE ESTABLISHMENT,LAC Placements,Placements - supported accommodation,Agency Placements - In County
Cambridgeshire County Council,01-Dec-23,51302110668,"34,359.02",ADAMS CABS,TRADE SUPPLIER,Home to School Transport - Special,Home to School Transport Special - Post 16,Home to School - Contract
Cambridgeshire County Council,01-Dec-23,51302110115,"35,890.25",David Reed Homes Ltd,COMPANY,Highways Development Management,S106 Pampisford Rd Gt Abington G106/559,Developers Funds
Cambridgeshire County Council,01-Dec-23,51302110590,"39,429.00",Serenity Welfare Limited,CARE ESTABLISHMENT,LAC Placements,Placements - supported accommodation,Agency Placements - In County
Cambridgeshire County Council,01-Dec-23,51302110594,"39,429.00",Serenity Welfare Limited,CARE ESTABLISHMENT,LAC Placements,Placements - supported accommodation,Agency Placements - In County
Cambridgeshire County Council,01-Dec-23,51302110114,"40,135.70",Balfour Beatty Investments Ltd,COMPANY,Highways Development Management,Section 278 Deposits,Developers Funds
Cambridgeshire County Council,01-Dec-23,51302110714,"46,794.91",Panther Cambridge Ltd,COMPANY,Home to School Transport - Special,Home to School Transport Special - Special School,Home to School - Contract
Cambridgeshire County Council,01-Dec-23,51302112794,"57,281.20",Wrightspace Ltd,COMPANY,Temporary Accommodation,Temporary Accommodation,Mobile - Buildings
Cambridgeshire County Council,01-Dec-23,51302110508,"62,190.87",In Toto Ed Ltd,COMPANY,SEND High Needs Top Up,High Needs Top Up - Post 16,Independent School Placements
Cambridgeshire County Council,01-Dec-23,51302110231,"67,032.86",ANGLIAN WATER SERVICES LIMITED,COMPANY,Authority-wide Miscellaneous,Gas & Electricity Bills Recharges,Water charges
Cambridgeshire County Council,01-Dec-23,51302108337,"71,786.69",LOCAL PARTNERSHIPS,OTHER PUBLIC BODIES,Waste Disposal incl PFI,WOSP,Professional Fees and Hired Services
Cambridgeshire County Council,01-Dec-23,51302098313,"84,025.28",THE CHURCH SCHOOLS OF CAMBRIDGE (THE OLD SCHOOLS),EDUCATION,St Philips,St Philips,"New Construction, Conversion and Renovation"
Cambridgeshire County Council,01-Dec-23,51302105354,"110,945.36",BOUYGUES EES FM UK LTD,COMPANY,Large Energy Projects - Heat Projects,Swaffham Prior Energy Project,Environmental Works
Cambridgeshire County Council,01-Dec-23,51302099128,"197,868.00",React2it (Building Refurbishments) Limited,COMPANY,Building Maintenance,33 Haviland Way CB4 2RE,"New Construction, Conversion and Renovation"
Cambridgeshire County Council,03-Dec-23,65300040397,"-1,296.00",Ceridwen Theatre Company (InterAct Imaginations),PARTNERSHIP,Cultural Services,The Library Presents,Professional Fees and Hired Services
Cambridgeshire County Council,03-Dec-23,51302112104,"1,296.00",Ceridwen Theatre Company (InterAct Imaginations),PARTNERSHIP,Cultural Services,The Library Presents,Professional Fees and Hired Services
Cambridgeshire County Council,04-Dec-23,51302110889,"-2,062.08",Serenity Welfare Limited,CARE ESTABLISHMENT,LAC Placements,Placements - supported accommodation,Agency Placements - In County
Cambridgeshire County Council,04-Dec-23,51302110843,"-1,249.90",WEIGHTMANS LLP,TRADE SUPPLIER,Insurance Fund,Liability,Insurance Claims Paid
Cambridgeshire County Council,04-Dec-23,51302110912,-508.00,Redacted Personal Data,SERVICE USER,Head of Corporate Parenting,Staying Put,Living Spport Grants - Financial Assistance 18+
Cambridgeshire County Council,04-Dec-23,51302111326,504.00,Redacted Personal Data,INDIVIDUAL,Fostering,FCP allowances,Childrens Lodgings
Cambridgeshire County Council,04-Dec-23,51302111597,504.00,Redacted Personal Data,INDIVIDUAL,Fostering,FCP allowances,Adoption Allowances
Cambridgeshire County Council,04-Dec-23,51302111715,504.00,Redacted Personal Data,INDIVIDUAL,Fostering,FCP allowances,Childrens Lodgings
Cambridgeshire County Council,04-Dec-23,51302111560,504.00,Redacted Personal Data,FOSTER PARENT,Fostering,FCP allowances,Childrens Lodgings
Cambridgeshire County Council,04-Dec-23,51302110913,507.00,Redacted Personal Data,SERVICE USER,Head of Corporate Parenting,Staying Put,Living Spport Grants - Financial Assistance 18+
Cambridgeshire County Council,04-Dec-23,51302111731,508.40,Redacted Personal Data,FOSTER PARENT,Adoption Allowances,Adoption Allowances,Adoption Allowances
Cambridgeshire County Council,04-Dec-23,51302096864,516.00,Traffic Survey Partners (TSP) UK Ltd,COMPANY,Delivering Transport Strategy Aims,MID - Cycling DTSA,Construction - External Professional Fees
Cambridgeshire County Council,04-Dec-23,51302111121,519.10,Redacted Personal Data,FOSTER PARENT,Adoption Allowances,Adoption Allowances,Adoption Allowances
Cambridgeshire County Council,04-Dec-23,51302111661,519.76,Redacted Personal Data,FOSTER PARENT,Adoption Allowances,Adoption Allowances,Adoption Allowances
Cambridgeshire County Council,04-Dec-23,51302097340,540.00,YOUNG PEOPLE MARCH LTD,LOCAL CLUBS & GROUPS,Out of School Tuition,Out of School Provision EHCPs,Independent School Placements
Cambridgeshire County Council,04-Dec-23,51302111362,546.00,Redacted Personal Data,INDIVIDUAL,Fostering,FCP allowances,Adoption Allowances
Cambridgeshire County Council,04-Dec-23,51302111363,546.00,Redacted Personal Data,INDIVIDUAL,Fostering,FCP allowances,Adoption Allowances
Cambridgeshire County Council,04-Dec-23,51302111364,546.00,Redacted Personal Data,INDIVIDUAL,Fostering,FCP allowances,Adoption Allowances
Cambridgeshire County Council,04-Dec-23,51302111551,546.00,Redacted Personal Data,FOSTER PARENT,Fostering,FCP allowances,Adoption Allowances
Cambridgeshire County Council,04-Dec-23,51302111516,546.00,Redacted Personal Data,PARENT/GUARDIAN,Fostering,FCP allowances,Adoption Allowances
Cambridgeshire County Council,04-Dec-23,51302111443,546.00,Redacted Personal Data,PARENT/GUARDIAN,Fostering,FCP allowances,Adoption Allowances
Cambridgeshire County Council,04-Dec-23,51302111212,546.00,Redacted Personal Data,FOSTER PARENT,Fostering,FCP allowances,Adoption Allowances
Cambridgeshire County Council,04-Dec-23,51302098315,547.20,Fire Security (Sprinkler Installations) Ltd,COMPANY,Corporate Offices,Ely Archive centre,Building Stuctural Maintenance - Planned
Cambridgeshire County Council,04-Dec-23,51302111650,547.44,Redacted Personal Data,FOSTER PARENT,Fostering,FCP allowances,Enhanced Payments
Cambridgeshire County Council,04-Dec-23,51302100583,552.00,Randstad Solutions Limited,COMPANY,Out of School Tuition,Out of School Provision EHCPs,Independent School Placements
Cambridgeshire County Council,04-Dec-23,51302098047,566.36,RED2GREEN,CARE ESTABLISHMENT,SEND High Needs Top Up,High Needs Top Up - Post 16,Independent School Placements
Cambridgeshire County Council,04-Dec-23,51302098263,569.12,KIDS R US @ ST MATTHEWS,LOCAL CLUBS & GROUPS,Early Years Specialist Support,SEND - Childcare Access Funding,Independent School Placements
Cambridgeshire County Council,04-Dec-23,51302098376,569.64,James Mayhew,SOLETRADER,SIS Head of Service,SIS Numeracy & Literacy Team,Professional Fees and Hired Services
Cambridgeshire County Council,04-Dec-23,51302111478,570.00,Redacted Personal Data,FOSTER PARENT,Fostering,FCP allowances,Adoption Allowances
Cambridgeshire County Council,04-Dec-23,51302111143,570.00,Redacted Personal Data,INDIVIDUAL,Fostering,FCP allowances,Adoption Allowances
Cambridgeshire County Council,04-Dec-23,51302111474,570.00,Redacted Personal Data,FOSTER PARENT,Fostering,FCP allowances,Childrens Lodgings
Cambridgeshire County Council,04-Dec-23,51302101965,585.00,1ST REACTION SECURITY LIMITED,TRADE SUPPLIER,Corporate Offices,County Offices General,Security Equipment
Cambridgeshire County Council,04-Dec-23,51302111120,586.40,Redacted Personal Data,FOSTER PARENT,Adoption Allowances,Adoption Allowances,Adoption Allowances
Cambridgeshire County Council,04-Dec-23,51302111203,592.00,Redacted Personal Data,INDIVIDUAL,Fostering,FCP allowances,Adoption Allowances
Cambridgeshire County Council,04-Dec-23,51302111500,592.00,Redacted Personal Data,FOSTER PARENT,Fostering,FCP allowances,Adoption Allowances
Cambridgeshire County Council,04-Dec-23,51302111427,592.00,Redacted Personal Data,FOSTER PARENT,Fostering,FCP allowances,Adoption Allowances
Cambridgeshire County Council,04-Dec-23,51302111452,592.00,Redacted Personal Data,FOSTER PARENT,Fostering,FCP allowances,Adoption Allowances
Cambridgeshire County Council,04-Dec-23,51302111144,600.00,Redacted Personal Data,INDIVIDUAL,Fostering,FCP allowances,Adoption Allowances
Cambridgeshire County Council,04-Dec-23,51302100497,600.00,Parker Clinical Psychology Limited,EDUCATION,Regional Adoption Agency,Adoption Support Fund,Professional Fees and Hired Services
Cambridgeshire County Council,04-Dec-23,51302111122,601.10,Redacted Personal Data,FOSTER PARENT,Adoption Allowances,Adoption Allowances,Adoption Allowances
Cambridgeshire County Council,04-Dec-23,51302111399,609.44,Redacted Personal Data,PARENT/GUARDIAN,Adoption Allowances,Adoption Allowances,Adoption Allowances
Cambridgeshire County Council,04-Dec-23,51302099669,612.00,Randstad Solutions Limited,COMPANY,EY - Oasis,Trumpington Park Early Years,Agency Staff
Cambridgeshire County Council,04-Dec-23,51302096933,614.50,ESPO,TRADE SUPPLIER,Park & Ride Parking,Park and Ride Admin,Cleaning and Domestic Supplies
Cambridgeshire County Council,04-Dec-23,51302111706,630.00,Redacted Personal Data,FOSTER PARENT,Adoption Allowances,Adoption Allowances,Adoption Allowances
Cambridgeshire County Council,04-Dec-23,51302110120,630.00,MindJam,COMPANY,Out of School Tuition,Out of School Provision EHCPs,Independent School Placements
Cambridgeshire County Council,04-Dec-23,51302109362,633.60,Redacted Personal Data,INDIVIDUAL,Regional Adoption Agency,Regional Adoption Agency,Staff Training & Development
Cambridgeshire County Council,04-Dec-23,51302110818,636.40,THOMAS RIDLEY & SON LTD,TRADE SUPPLIER,Burwell House,Burwell House Residential Centre,Catering Provisions
Cambridgeshire County Council,04-Dec-23,51302096932,641.10,ESPO,TRADE SUPPLIER,Park & Ride Parking,Park and Ride Admin,Cleaning and Domestic Supplies
Cambridgeshire County Council,04-Dec-23,51302111789,641.67,Redacted Personal Data,PARENT/GUARDIAN,Children's Disability Direct Payments,CSC Direct Payments,Direct Payments
Cambridgeshire County Council,04-Dec-23,51302096268,650.00,Helen Bovey,TRADE SUPPLIER,Cultural Services,The Library Presents,Professional Fees and Hired Services
Cambridgeshire County Council,04-Dec-23,51302111547,656.00,Redacted Personal Data,FOSTER PARENT,Fostering,FCP allowances,Adoption Allowances
Cambridgeshire County Council,04-Dec-23,51302111615,656.00,Redacted Personal Data,INDIVIDUAL,Fostering,FCP allowances,Adoption Allowances
Cambridgeshire County Council,04-Dec-23,51302111497,656.00,Redacted Personal Data,FOSTER PARENT,Fostering,FCP allowances,Adoption Allowances
Cambridgeshire County Council,04-Dec-23,51302111166,656.00,Redacted Personal Data,FOSTER PARENT,Fostering,FCP allowances,Childrens Lodgings
Cambridgeshire County Council,04-Dec-23,51302111167,656.00,Redacted Personal Data,FOSTER PARENT,Fostering,FCP allowances,Childrens Lodgings
Cambridgeshire County Council,04-Dec-23,51302111168,656.00,Redacted Personal Data,FOSTER PARENT,Fostering,FCP allowances,Childrens Lodgings
Cambridgeshire County Council,04-Dec-23,51302111439,656.00,Redacted Personal Data,FOSTER PARENT,Fostering,FCP allowances,Adoption Allowances
Cambridgeshire County Council,04-Dec-23,51302111440,656.00,Redacted Personal Data,FOSTER PARENT,Fostering,FCP allowances,Adoption Allowances
Cambridgeshire County Council,04-Dec-23,51302097886,678.00,OVER COMMUNITY ENTERPRISES LTD,LOCAL CLUBS & GROUPS,Education Safeguarding,Education Safeguarding,Casual hire of facilities
Cambridgeshire County Council,04-Dec-23,51302111367,680.00,Redacted Personal Data,FOSTER PARENT,Fostering,FCP allowances,Childrens Lodgings
Cambridgeshire County Council,04-Dec-23,51302111263,688.20,Redacted Personal Data,FOSTER PARENT,Adoption Allowances,Adoption Allowances,Adoption Allowances
Cambridgeshire County Council,04-Dec-23,51302110904,696.00,Redacted Personal Data,FOSTER PARENT,Head of Corporate Parenting,Staying Put,Living Spport Grants - Financial Assistance 18+
Cambridgeshire County Council,04-Dec-23,51302111614,722.00,Redacted Personal Data,INDIVIDUAL,Fostering,FCP allowances,Adoption Allowances
Cambridgeshire County Council,04-Dec-23,51302111165,722.00,Redacted Personal Data,FOSTER PARENT,Fostering,FCP allowances,Childrens Lodgings
Cambridgeshire County Council,04-Dec-23,51302111459,722.00,Redacted Personal Data,FOSTER PARENT,Fostering,FCP allowances,Adoption Allowances
Cambridgeshire County Council,04-Dec-23,51302111460,722.00,Redacted Personal Data,FOSTER PARENT,Fostering,FCP allowances,Adoption Allowances
Cambridgeshire County Council,04-Dec-23,51302097333,726.00,G4S SECURE SOLUTIONS (UK) LTD,TRADE SUPPLIER,Corporate Offices,Scott House,Security Equipment
Cambridgeshire County Council,04-Dec-23,51302097885,727.50,OVER COMMUNITY ENTERPRISES LTD,LOCAL CLUBS & GROUPS,Education Safeguarding,Education Safeguarding,Casual hire of facilities
Cambridgeshire County Council,04-Dec-23,51302097388,730.84,Alfafado Ltd t/a BatteryStation,COMPANY,Libraries - Support,Support - Business Support,General Office Expenses & Stationery
Cambridgeshire County Council,04-Dec-23,51302111606,731.71,Redacted Personal Data,INDIVIDUAL,Fostering,FCP allowances,Adoption Allowances
Cambridgeshire County Council,04-Dec-23,51302110909,739.06,Redacted Personal Data,PARENT/GUARDIAN,Head of Corporate Parenting,Staying Put,Living Spport Grants - Financial Assistance 18+
Cambridgeshire County Council,04-Dec-23,51302111530,748.14,Redacted Personal Data,PARENT/GUARDIAN,Adoption Allowances,Adoption Allowances,Adoption Allowances
Cambridgeshire County Council,04-Dec-23,51302111172,750.00,Redacted Personal Data,INDIVIDUAL,Adoption Allowances,Adoption Allowances,Adoption Allowances
Cambridgeshire County Council,04-Dec-23,51302111174,750.00,Redacted Personal Data,INDIVIDUAL,Adoption Allowances,Adoption Allowances,Adoption Allowances
Cambridgeshire County Council,04-Dec-23,51302096860,780.00,Traffic Survey Partners (TSP) UK Ltd,COMPANY,Delivering Transport Strategy Aims,standalone S106 - Cycling Improvements,Construction - External Professional Fees
Cambridgeshire County Council,04-Dec-23,51302111705,781.00,Redacted Personal Data,FOSTER PARENT,Adoption Allowances,Adoption Allowances,Adoption Allowances
Cambridgeshire County Council,04-Dec-23,51302110877,782.48,Redacted Personal Data,INDIVIDUAL,North Child Looked After Team 2,North Child Looked After Team 2,Grants and support for other Service Users � Direct to Service User
Cambridgeshire County Council,04-Dec-23,51302111437,788.00,Redacted Personal Data,FOSTER PARENT,Fostering,FCP allowances,Adoption Allowances
Cambridgeshire County Council,04-Dec-23,51302111438,788.00,Redacted Personal Data,FOSTER PARENT,Fostering,FCP allowances,Adoption Allowances
Cambridgeshire County Council,04-Dec-23,51302111429,788.00,Redacted Personal Data,FOSTER PARENT,Fostering,FCP allowances,Adoption Allowances
Cambridgeshire County Council,04-Dec-23,51302111544,788.00,Redacted Personal Data,FOSTER PARENT,Fostering,FCP allowances,Adoption Allowances
Cambridgeshire County Council,04-Dec-23,51302111545,788.00,Redacted Personal Data,FOSTER PARENT,Fostering,FCP allowances,Adoption Allowances
Cambridgeshire County Council,04-Dec-23,51302111475,788.00,Redacted Personal Data,FOSTER PARENT,Fostering,FCP allowances,Adoption Allowances
Cambridgeshire County Council,04-Dec-23,51302111476,788.00,Redacted Personal Data,FOSTER PARENT,Fostering,FCP allowances,Adoption Allowances
Cambridgeshire County Council,04-Dec-23,51302111552,788.00,Redacted Personal Data,FOSTER PARENT,Fostering,FCP allowances,Adoption Allowances
Cambridgeshire County Council,04-Dec-23,51302111249,788.00,Redacted Personal Data,FOSTER PARENT,Fostering,FCP allowances,Adoption Allowances
Cambridgeshire County Council,04-Dec-23,51302111671,788.00,Redacted Personal Data,FOSTER PARENT,Fostering,FCP allowances,Adoption Allowances
Cambridgeshire County Council,04-Dec-23,51302111275,788.00,Redacted Personal Data,FOSTER PARENT,Fostering,FCP allowances,Adoption Allowances
Cambridgeshire County Council,04-Dec-23,51302111276,788.00,Redacted Personal Data,FOSTER PARENT,Fostering,FCP allowances,Adoption Allowances
Cambridgeshire County Council,04-Dec-23,51302111483,788.00,Redacted Personal Data,FOSTER PARENT,Fostering,FCP allowances,Adoption Allowances
Cambridgeshire County Council,04-Dec-23,51302111288,788.00,Redacted Personal Data,INDIVIDUAL,Fostering,FCP allowances,Adoption Allowances
Cambridgeshire County Council,04-Dec-23,51302111289,788.00,Redacted Personal Data,INDIVIDUAL,Fostering,FCP allowances,Adoption Allowances
Cambridgeshire County Council,04-Dec-23,51302111449,788.00,Redacted Personal Data,FOSTER PARENT,Fostering,FCP allowances,Adoption Allowances
Cambridgeshire County Council,04-Dec-23,51302111450,788.00,Redacted Personal Data,FOSTER PARENT,Fostering,FCP allowances,Adoption Allowances
Cambridgeshire County Council,04-Dec-23,51302111297,788.00,Redacted Personal Data,FOSTER PARENT,Fostering,FCP allowances,Adoption Allowances
Cambridgeshire County Council,04-Dec-23,51302111513,788.00,Redacted Personal Data,INDIVIDUAL,Fostering,FCP allowances,Adoption Allowances
Cambridgeshire County Council,04-Dec-23,51302111514,788.00,Redacted Personal Data,INDIVIDUAL,Fostering,FCP allowances,Adoption Allowances
Cambridgeshire County Council,04-Dec-23,51302111469,788.00,Redacted Personal Data,FOSTER PARENT,Fostering,FCP allowances,Adoption Allowances
Cambridgeshire County Council,04-Dec-23,51302111554,788.00,Redacted Personal Data,FOSTER PARENT,Fostering,FCP allowances,Adoption Allowances
Cambridgeshire County Council,04-Dec-23,51302111563,788.00,Redacted Personal Data,INDIVIDUAL,Fostering,FCP allowances,Adoption Allowances
Cambridgeshire County Council,04-Dec-23,51302111728,800.00,Redacted Personal Data,PARENT/GUARDIAN,Adoption Allowances,Adoption Allowances,Adoption Allowances
Cambridgeshire County Council,04-Dec-23,51302111729,800.00,Redacted Personal Data,PARENT/GUARDIAN,Adoption Allowances,Adoption Allowances,Adoption Allowances
Cambridgeshire County Council,04-Dec-23,51302110188,816.94,Clearwater Technology Limited,COMPANY,Health & Safety,POD - Health & Safety,Building Structural Maintenance - Reactive
Cambridgeshire County Council,04-Dec-23,51302098029,829.26,RED2GREEN,CARE ESTABLISHMENT,SEND High Needs Top Up,High Needs Top Up - Post 16,Independent School Placements
Cambridgeshire County Council,04-Dec-23,51302111811,881.00,MELBOURN PLAYGROUP AND OUT OF SCHOOL CLUB,NURSERY,Nursery Schools,Early Years - Funded 3s/4s,Care & Ed Childcare Settings
Cambridgeshire County Council,04-Dec-23,51302111428,898.00,Redacted Personal Data,FOSTER PARENT,Fostering,FCP allowances,Adoption Allowances
Cambridgeshire County Council,04-Dec-23,51302111430,898.00,Redacted Personal Data,FOSTER PARENT,Fostering,FCP allowances,Adoption Allowances
Cambridgeshire County Council,04-Dec-23,51302111559,898.00,Redacted Personal Data,FOSTER PARENT,Fostering,FCP allowances,Adoption Allowances
Cambridgeshire County Council,04-Dec-23,51302111491,898.00,Redacted Personal Data,FOSTER PARENT,Fostering,FCP allowances,Adoption Allowances
Cambridgeshire County Council,04-Dec-23,51302111569,898.00,Redacted Personal Data,FOSTER PARENT,Fostering,FCP allowances,Adoption Allowances
Cambridgeshire County Council,04-Dec-23,51302111422,898.00,Redacted Personal Data,FOSTER PARENT,Fostering,FCP allowances,Adoption Allowances
Cambridgeshire County Council,04-Dec-23,51302111445,898.00,Redacted Personal Data,FOSTER PARENT,Fostering,FCP allowances,Adoption Allowances
Cambridgeshire County Council,04-Dec-23,51302111727,898.00,Redacted Personal Data,INDIVIDUAL,Fostering,FCP allowances,Adoption Allowances
Cambridgeshire County Council,04-Dec-23,51302111696,898.00,Redacted Personal Data,INDIVIDUAL,Fostering,FCP allowances,Adoption Allowances
Cambridgeshire County Council,04-Dec-23,51302111697,898.00,Redacted Personal Data,INDIVIDUAL,Fostering,FCP allowances,Adoption Allowances
Cambridgeshire County Council,04-Dec-23,51302111605,898.00,Redacted Personal Data,INDIVIDUAL,Fostering,FCP allowances,Adoption Allowances
Cambridgeshire County Council,04-Dec-23,51302111110,898.00,Redacted Personal Data,INDIVIDUAL,Fostering,FCP allowances,Adoption Allowances
Cambridgeshire County Council,04-Dec-23,51302111484,898.00,Redacted Personal Data,FOSTER PARENT,Fostering,FCP allowances,Adoption Allowances
Cambridgeshire County Council,04-Dec-23,51302111417,898.00,Redacted Personal Data,FOSTER PARENT,Fostering,FCP allowances,Adoption Allowances
Cambridgeshire County Council,04-Dec-23,51302111418,898.00,Redacted Personal Data,FOSTER PARENT,Fostering,FCP allowances,Adoption Allowances
Cambridgeshire County Council,04-Dec-23,51302111251,898.00,Redacted Personal Data,FOSTER PARENT,Fostering,FCP allowances,Adoption Allowances
Cambridgeshire County Council,04-Dec-23,51302111411,898.00,Redacted Personal Data,FOSTER PARENT,Fostering,FCP allowances,Adoption Allowances
Cambridgeshire County Council,04-Dec-23,51302111412,898.00,Redacted Personal Data,FOSTER PARENT,Fostering,FCP allowances,Adoption Allowances
Cambridgeshire County Council,04-Dec-23,51302111451,898.00,Redacted Personal Data,FOSTER PARENT,Fostering,FCP allowances,Adoption Allowances
Cambridgeshire County Council,04-Dec-23,51302111564,898.00,Redacted Personal Data,FOSTER PARENT,Fostering,FCP allowances,Adoption Allowances
Cambridgeshire County Council,04-Dec-23,51302111426,898.00,Redacted Personal Data,FOSTER PARENT,Fostering,FCP allowances,Adoption Allowances
Cambridgeshire County Council,04-Dec-23,51302111515,898.00,Redacted Personal Data,INDIVIDUAL,Fostering,FCP allowances,Adoption Allowances
Cambridgeshire County Council,04-Dec-23,51302111499,898.00,Redacted Personal Data,PARENT/GUARDIAN,Fostering,FCP allowances,Adoption Allowances
Cambridgeshire County Council,04-Dec-23,51302111561,898.00,Redacted Personal Data,INDIVIDUAL,Fostering,FCP allowances,Adoption Allowances
Cambridgeshire County Council,04-Dec-23,51302111562,898.00,Redacted Personal Data,INDIVIDUAL,Fostering,FCP allowances,Adoption Allowances
Cambridgeshire County Council,04-Dec-23,51302110847,900.00,APC (Pathology) Ltd,COMPANY,Coroners,Coroners General,Professional Fees and Hired Services
Cambridgeshire County Council,04-Dec-23,51302111117,914.96,Redacted Personal Data,FOSTER PARENT,Adoption Allowances,Adoption Allowances,Adoption Allowances
Cambridgeshire County Council,04-Dec-23,51302111394,940.00,Redacted Personal Data,FOSTER PARENT,Fostering,FCP allowances,Adoption Allowances
Cambridgeshire County Council,04-Dec-23,51302111395,940.00,Redacted Personal Data,FOSTER PARENT,Fostering,FCP allowances,Adoption Allowances
Cambridgeshire County Council,04-Dec-23,51302111424,940.00,Redacted Personal Data,FOSTER PARENT,Fostering,FCP allowances,Adoption Allowances
Cambridgeshire County Council,04-Dec-23,51302111556,940.00,Redacted Personal Data,PARENT/GUARDIAN,Fostering,FCP allowances,Adoption Allowances
Cambridgeshire County Council,04-Dec-23,51302111481,940.00,Redacted Personal Data,FOSTER PARENT,Fostering,FCP allowances,Adoption Allowances
Cambridgeshire County Council,04-Dec-23,51302111496,940.00,Redacted Personal Data,FOSTER PARENT,Fostering,FCP allowances,Adoption Allowances
Cambridgeshire County Council,04-Dec-23,51302111396,940.00,Redacted Personal Data,PARENT/GUARDIAN,Fostering,FCP allowances,Childrens Lodgings
Cambridgeshire County Council,04-Dec-23,51302111529,940.00,Redacted Personal Data,PARENT/GUARDIAN,Fostering,FCP allowances,Adoption Allowances
Cambridgeshire County Council,04-Dec-23,51302111509,940.00,Redacted Personal Data,PARENT/GUARDIAN,Fostering,FCP allowances,Adoption Allowances
Cambridgeshire County Council,04-Dec-23,51302111652,940.00,Redacted Personal Data,PARENT/GUARDIAN,Fostering,FCP allowances,Adoption Allowances
Cambridgeshire County Council,04-Dec-23,51302111653,940.00,Redacted Personal Data,PARENT/GUARDIAN,Fostering,FCP allowances,Adoption Allowances
Cambridgeshire County Council,04-Dec-23,51302111546,940.00,Redacted Personal Data,FOSTER PARENT,Fostering,FCP allowances,Adoption Allowances
Cambridgeshire County Council,04-Dec-23,51302111479,940.00,Redacted Personal Data,FOSTER PARENT,Fostering,FCP allowances,Adoption Allowances
Cambridgeshire County Council,04-Dec-23,51302111504,940.00,Redacted Personal Data,FOSTER PARENT,Fostering,FCP allowances,Adoption Allowances
Cambridgeshire County Council,04-Dec-23,51302111506,940.00,Redacted Personal Data,FOSTER PARENT,Fostering,FCP allowances,Adoption Allowances
Cambridgeshire County Council,04-Dec-23,51302111507,940.00,Redacted Personal Data,FOSTER PARENT,Fostering,FCP allowances,Adoption Allowances
Cambridgeshire County Council,04-Dec-23,51302111555,940.00,Redacted Personal Data,FOSTER PARENT,Fostering,FCP allowances,Adoption Allowances
Cambridgeshire County Council,04-Dec-23,51302111432,940.00,Redacted Personal Data,FOSTER PARENT,Fostering,FCP allowances,Adoption Allowances
Cambridgeshire County Council,04-Dec-23,51302111433,940.00,Redacted Personal Data,FOSTER PARENT,Fostering,FCP allowances,Adoption Allowances
Cambridgeshire County Council,04-Dec-23,51302111511,940.00,Redacted Personal Data,FOSTER PARENT,Fostering,FCP allowances,Childrens Lodgings
Cambridgeshire County Council,04-Dec-23,51302111486,940.00,Redacted Personal Data,FOSTER PARENT,Fostering,FCP allowances,Adoption Allowances
Cambridgeshire County Council,04-Dec-23,51302111487,940.00,Redacted Personal Data,FOSTER PARENT,Fostering,FCP allowances,Adoption Allowances
Cambridgeshire County Council,04-Dec-23,51302111464,940.00,Redacted Personal Data,PARENT/GUARDIAN,Fostering,FCP allowances,Adoption Allowances
Cambridgeshire County Council,04-Dec-23,51302111465,940.00,Redacted Personal Data,PARENT/GUARDIAN,Fostering,FCP allowances,Adoption Allowances
Cambridgeshire County Council,04-Dec-23,51302111518,940.00,Redacted Personal Data,FOSTER PARENT,Fostering,FCP allowances,Adoption Allowances
Cambridgeshire County Council,04-Dec-23,51302111519,940.00,Redacted Personal Data,FOSTER PARENT,Fostering,FCP allowances,Adoption Allowances
Cambridgeshire County Council,04-Dec-23,51302111520,940.00,Redacted Personal Data,FOSTER PARENT,Fostering,FCP allowances,Adoption Allowances
Cambridgeshire County Council,04-Dec-23,51302111521,940.00,Redacted Personal Data,FOSTER PARENT,Fostering,FCP allowances,Adoption Allowances
Cambridgeshire County Council,04-Dec-23,51302111454,940.00,Redacted Personal Data,FOSTER PARENT,Fostering,FCP allowances,Adoption Allowances
Cambridgeshire County Council,04-Dec-23,51302111456,940.00,Redacted Personal Data,FOSTER PARENT,Fostering,FCP allowances,Adoption Allowances
Cambridgeshire County Council,04-Dec-23,51302111457,940.00,Redacted Personal Data,FOSTER PARENT,Fostering,FCP allowances,Adoption Allowances
Cambridgeshire County Council,04-Dec-23,51302111548,940.00,Redacted Personal Data,FOSTER PARENT,Fostering,FCP allowances,Adoption Allowances
Cambridgeshire County Council,04-Dec-23,51302111410,940.00,Redacted Personal Data,FOSTER PARENT,Fostering,FCP allowances,Adoption Allowances
Cambridgeshire County Council,04-Dec-23,51302111470,940.00,Redacted Personal Data,FOSTER PARENT,Fostering,FCP allowances,Adoption Allowances
Cambridgeshire County Council,04-Dec-23,51302111472,940.00,Redacted Personal Data,FOSTER PARENT,Fostering,FCP allowances,Adoption Allowances
Cambridgeshire County Council,04-Dec-23,51302111473,940.00,Redacted Personal Data,FOSTER PARENT,Fostering,FCP allowances,Adoption Allowances
Cambridgeshire County Council,04-Dec-23,51302111250,940.00,Redacted Personal Data,FOSTER PARENT,Fostering,FCP allowances,Adoption Allowances
Cambridgeshire County Council,04-Dec-23,51302111248,940.00,Redacted Personal Data,FOSTER PARENT,Fostering,FCP allowances,Adoption Allowances
Cambridgeshire County Council,04-Dec-23,51302111274,940.00,Redacted Personal Data,FOSTER PARENT,Fostering,FCP allowances,Adoption Allowances
Cambridgeshire County Council,04-Dec-23,51302111508,940.00,Redacted Personal Data,FOSTER PARENT,Fostering,FCP allowances,Adoption Allowances
Cambridgeshire County Council,04-Dec-23,51302111498,940.00,Redacted Personal Data,FOSTER PARENT,Fostering,FCP allowances,Adoption Allowances
Cambridgeshire County Council,04-Dec-23,51302111414,940.00,Redacted Personal Data,FOSTER PARENT,Fostering,FCP allowances,Adoption Allowances
Cambridgeshire County Council,04-Dec-23,51302111415,940.00,Redacted Personal Data,FOSTER PARENT,Fostering,FCP allowances,Adoption Allowances
Cambridgeshire County Council,04-Dec-23,51302111446,940.00,Redacted Personal Data,FOSTER PARENT,Fostering,FCP allowances,Adoption Allowances
Cambridgeshire County Council,04-Dec-23,51302111145,940.00,Redacted Personal Data,INDIVIDUAL,Fostering,FCP allowances,Adoption Allowances
Cambridgeshire County Council,04-Dec-23,51302111444,940.00,Redacted Personal Data,FOSTER PARENT,Fostering,FCP allowances,Adoption Allowances
Cambridgeshire County Council,04-Dec-23,51302111570,940.00,Redacted Personal Data,FOSTER PARENT,Fostering,FCP allowances,Adoption Allowances
Cambridgeshire County Council,04-Dec-23,51302111568,940.00,Redacted Personal Data,FOSTER PARENT,Fostering,FCP allowances,Adoption Allowances
Cambridgeshire County Council,04-Dec-23,51302111436,940.00,Redacted Personal Data,FOSTER PARENT,Fostering,FCP allowances,Adoption Allowances
Cambridgeshire County Council,04-Dec-23,51302111493,940.00,Redacted Personal Data,FOSTER PARENT,Fostering,FCP allowances,Adoption Allowances
Cambridgeshire County Council,04-Dec-23,51302111536,940.00,Redacted Personal Data,FOSTER PARENT,Fostering,FCP allowances,Adoption Allowances
Cambridgeshire County Council,04-Dec-23,51302111538,940.00,Redacted Personal Data,FOSTER PARENT,Fostering,FCP allowances,Adoption Allowances
Cambridgeshire County Council,04-Dec-23,51302111501,940.00,Redacted Personal Data,FOSTER PARENT,Fostering,FCP allowances,Adoption Allowances
Cambridgeshire County Council,04-Dec-23,51302111557,940.00,Redacted Personal Data,FOSTER PARENT,Fostering,FCP allowances,Adoption Allowances
Cambridgeshire County Council,04-Dec-23,51302111558,940.00,Redacted Personal Data,FOSTER PARENT,Fostering,FCP allowances,Adoption Allowances
Cambridgeshire County Council,04-Dec-23,51302111466,940.00,Redacted Personal Data,FOSTER PARENT,Fostering,FCP allowances,Adoption Allowances
Cambridgeshire County Council,04-Dec-23,51302111467,940.00,Redacted Personal Data,FOSTER PARENT,Fostering,FCP allowances,Adoption Allowances
Cambridgeshire County Council,04-Dec-23,51302111489,940.00,Redacted Personal Data,FOSTER PARENT,Fostering,FCP allowances,Adoption Allowances
Cambridgeshire County Council,04-Dec-23,51302111490,940.00,Redacted Personal Data,FOSTER PARENT,Fostering,FCP allowances,Adoption Allowances
Cambridgeshire County Council,04-Dec-23,51302111421,940.00,Redacted Personal Data,FOSTER PARENT,Unaccompanied Asylum Seeking Children,Separated Migrant Children < 18,Adoption Allowances
Cambridgeshire County Council,04-Dec-23,51302111425,940.00,Redacted Personal Data,FOSTER PARENT,Unaccompanied Asylum Seeking Children,Separated Migrant Children < 18,Adoption Allowances
Cambridgeshire County Council,04-Dec-23,51302111539,965.04,Redacted Personal Data,FOSTER PARENT,Fostering,FCP allowances,Enhanced Payments
Cambridgeshire County Council,04-Dec-23,51302111146,965.04,Redacted Personal Data,FOSTER PARENT,Fostering,FCP allowances,Enhanced Payments
Cambridgeshire County Council,04-Dec-23,51302111387,965.04,Redacted Personal Data,FOSTER PARENT,Fostering,FCP allowances,Enhanced Payments
Cambridgeshire County Council,04-Dec-23,51302098262,981.25,KIDS R US @ ST MATTHEWS,LOCAL CLUBS & GROUPS,Early Years Specialist Support,SEND - Childcare Access Funding,Independent School Placements
Cambridgeshire County Council,04-Dec-23,51302111794,"1,000.00",Redacted Personal Data,INDIVIDUAL,Children's Disability Direct Payments,CSC Direct Payments,Direct Payments
Cambridgeshire County Council,04-Dec-23,51302111190,"1,026.00",Redacted Personal Data,INDIVIDUAL,Adoption Allowances,Adoption Allowances,Childcare Costs
Cambridgeshire County Council,04-Dec-23,51302111262,"1,040.00",Redacted Personal Data,INDIVIDUAL,Fostering,Fostering Support and Supervision,Support and Grants to Foster Carers
Cambridgeshire County Council,04-Dec-23,51302098576,"1,050.46",GSH Group Company,COMPANY,BM - Corporate Offices,Building Maintenance,Building Stuctural Maintenance - Planned
Cambridgeshire County Council,04-Dec-23,51302100501,"1,080.00",Parker Clinical Psychology Limited,EDUCATION,Regional Adoption Agency,Adoption Support Fund,Professional Fees and Hired Services
Cambridgeshire County Council,04-Dec-23,51302111604,"1,132.18",Redacted Personal Data,FOSTER PARENT,Adoption Allowances,Adoption Allowances,Adoption Allowances
Cambridgeshire County Council,04-Dec-23,51302111115,"1,138.20",Redacted Personal Data,INDIVIDUAL,Adoption Allowances,Adoption Allowances,Childcare Costs
Cambridgeshire County Council,04-Dec-23,51302097368,"1,140.00",Little Angel Theatre,COMPANY,Cultural Services,The Library Presents,Professional Fees and Hired Services
Cambridgeshire County Council,04-Dec-23,51302097270,"1,140.00",Eddisons Commercial Limited,COMPANY,C&CS - Libraries capital,C&CS - Libraries capital,Construction - External Professional Fees
Cambridgeshire County Council,04-Dec-23,51302111223,"1,148.00",Redacted Personal Data,INDIVIDUAL,Adoption Allowances,Adoption Allowances,Adoption Allowances
Cambridgeshire County Council,04-Dec-23,51302097909,"1,150.00",Psychology Direct Ltd,EDUCATION,SEND Specialist Services - Education Psychology,SEND Specialist Services - Education Psychology,Professional Fees and Hired Services
Cambridgeshire County Council,04-Dec-23,51302097912,"1,150.00",Psychology Direct Ltd,EDUCATION,SEND Specialist Services - Education Psychology,SEND Specialist Services - Education Psychology,Professional Fees and Hired Services
Cambridgeshire County Council,04-Dec-23,51302098049,"1,150.00",Psychology Direct Ltd,EDUCATION,SEND Specialist Services - Education Psychology,SEND Specialist Services - Education Psychology,Professional Fees and Hired Services
Cambridgeshire County Council,04-Dec-23,51302111191,"1,170.00",Redacted Personal Data,INDIVIDUAL,Adoption Allowances,Adoption Allowances,Adoption Allowances
Cambridgeshire County Council,04-Dec-23,51302111831,"1,170.00",NATIONAL TEACHING & ADVISORY SERVICE FOR LOOKED AFTER CHILDREN (NT & AS),OTHER PUBLIC BODIES,Out of School Tuition,Out of School Provision EHCPs,Independent School Placements
Cambridgeshire County Council,04-Dec-23,51302098015,"1,200.00",STRONGER PSYCHOLOGICAL SERVICES LTD,COMPANY,SEND Specialist Services - Education Psychology,SEND Specialist Services - Education Psychology,Professional Fees and Hired Services
Cambridgeshire County Council,04-Dec-23,51302111793,"1,200.00",Redacted Personal Data,PARENT/GUARDIAN,Children's Disability Direct Payments,CSC Direct Payments,Direct Payments
Cambridgeshire County Council,04-Dec-23,51302111792,"1,200.00",Redacted Personal Data,PARENT/GUARDIAN,Children's Disability Direct Payments,CSC Direct Payments,Direct Payments
Cambridgeshire County Council,04-Dec-23,51302099675,"1,288.00",Breakthrough Therapy Solutions Ltd t/a Bursting with Potential,EDUCATION,Early Years Specialist Support,SEND - Independent Therapy,Independent School Placements
Cambridgeshire County Council,04-Dec-23,51302111791,"1,300.00",Redacted Personal Data,PARENT/GUARDIAN,Children's Disability Direct Payments,CSC Direct Payments,Direct Payments
Cambridgeshire County Council,04-Dec-23,51302097943,"1,380.00",Linq Health Recruitment Specialists Ltd,COMPANY,SEND Specialist Services - Education Psychology,SEND Specialist Services - Education Psychology,Professional Fees and Hired Services
Cambridgeshire County Council,04-Dec-23,51302097900,"1,425.00",Provident Recruitment Ltd T/A Psychology People,COMPANY,SEND Specialist Services - Education Psychology,SEND Specialist Services - Education Psychology,Professional Fees and Hired Services
Cambridgeshire County Council,04-Dec-23,51302110886,"1,435.50",YMCA Trinity Group,COMPANY,LAC Placements,Placements - 16+,Agency Placements - In County
Cambridgeshire County Council,04-Dec-23,51302110884,"1,435.59",YMCA Trinity Group,COMPANY,LAC Placements,Placements - 16+,Agency Placements - In County
Cambridgeshire County Council,04-Dec-23,51302110883,"1,549.16",THE RIVERSIDE GROUP LTD,CARE ESTABLISHMENT,LAC Placements,Placements - 16+,Agency Placements - In County
Cambridgeshire County Council,04-Dec-23,51302096959,"1,549.25",JOLLIFFE DAKING LLP,TRADE SUPPLIER,Buildings and Capital,Education Property Strategy Manager,Rents and Leases
Cambridgeshire County Council,04-Dec-23,51302110848,"1,649.98",Redacted Personal Data,INDIVIDUAL,Coroners,Coroners General,Professional Fees and Hired Services
Cambridgeshire County Council,04-Dec-23,51302098529,"1,656.00",Performance Interpreting Ltd,COMPANY,Cultural Services,The Library Presents,External Communcations
Cambridgeshire County Council,04-Dec-23,51302097709,"1,787.04",TIDEY ELECTRICAL LTD,TRADE SUPPLIER,Operations,IT Strategy - Chord Park,"New Construction, Conversion and Renovation"
Cambridgeshire County Council,04-Dec-23,51302111086,"1,800.00",Crown Social Care Ltd,CARE ESTABLISHMENT,Unaccompanied Asylum Seeking Children,Separated Migrant Children > 18,Living Spport Grants - Financial Assistance 18+
Cambridgeshire County Council,04-Dec-23,51302111091,"1,800.00",Crown Social Care Ltd,CARE ESTABLISHMENT,Unaccompanied Asylum Seeking Children,Separated Migrant Children > 18,Living Spport Grants - Financial Assistance 18+
Cambridgeshire County Council,04-Dec-23,51302111092,"1,800.00",Crown Social Care Ltd,CARE ESTABLISHMENT,Unaccompanied Asylum Seeking Children,Separated Migrant Children > 18,Living Spport Grants - Financial Assistance 18+
Cambridgeshire County Council,04-Dec-23,51302111095,"1,800.00",Crown Social Care Ltd,CARE ESTABLISHMENT,Unaccompanied Asylum Seeking Children,Separated Migrant Children > 18,Living Spport Grants - Financial Assistance 18+
Cambridgeshire County Council,04-Dec-23,51302097305,"1,890.00",Gordon Chancellor,TRADE SUPPLIER,Historic Environment,Historic Environment,Design
Cambridgeshire County Council,04-Dec-23,51302098021,"1,917.27",RED2GREEN,CARE ESTABLISHMENT,SEND High Needs Top Up,High Needs Top Up - Post 16,Independent School Placements
Cambridgeshire County Council,04-Dec-23,51302097062,"1,946.98",CAMBRIDGE CITY COUNCIL,OTHER PUBLIC BODIES,GCP - Communications,GCP - Strategic Communicatations,Staffing Recharges - External
Cambridgeshire County Council,04-Dec-23,51302110890,"2,062.08",Serenity Welfare Limited,CARE ESTABLISHMENT,LAC Placements,Placements - supported accommodation,Agency Placements - In County
Cambridgeshire County Council,04-Dec-23,51302098333,"2,073.90",Herons' Preschool Waterbeach (CIO),EDUCATION,SEND High Needs Top Up,High Needs Top Up - Early Years,Independent School Placements
Cambridgeshire County Council,04-Dec-23,51302111083,"2,468.57",Crown Social Care Ltd,CARE ESTABLISHMENT,Unaccompanied Asylum Seeking Children,Separated Migrant Children > 18,Living Spport Grants - Financial Assistance 18+
Cambridgeshire County Council,04-Dec-23,51302111077,"2,468.57",Crown Social Care Ltd,CARE ESTABLISHMENT,Unaccompanied Asylum Seeking Children,Separated Migrant Children > 18,Living Spport Grants - Financial Assistance 18+
Cambridgeshire County Council,04-Dec-23,51302111085,"2,468.57",Crown Social Care Ltd,CARE ESTABLISHMENT,Unaccompanied Asylum Seeking Children,Separated Migrant Children < 18,Asylum Seekers
Cambridgeshire County Council,04-Dec-23,51302111088,"2,468.57",Crown Social Care Ltd,CARE ESTABLISHMENT,Unaccompanied Asylum Seeking Children,Separated Migrant Children < 18,Asylum Seekers
Cambridgeshire County Council,04-Dec-23,51302111090,"2,468.57",Crown Social Care Ltd,CARE ESTABLISHMENT,Unaccompanied Asylum Seeking Children,Separated Migrant Children < 18,Asylum Seekers
Cambridgeshire County Council,04-Dec-23,51302111094,"2,468.57",Crown Social Care Ltd,CARE ESTABLISHMENT,Unaccompanied Asylum Seeking Children,Separated Migrant Children < 18,Asylum Seekers
Cambridgeshire County Council,04-Dec-23,51302111079,"2,468.57",Crown Social Care Ltd,CARE ESTABLISHMENT,Unaccompanied Asylum Seeking Children,Separated Migrant Children < 18,Asylum Seekers
Cambridgeshire County Council,04-Dec-23,51302096257,"2,565.00",SOFTCAT LTD,TRADE SUPPLIER,Corporate IT Managed,Hardware & Infrastructure,Computer software - annual licence agreement
Cambridgeshire County Council,04-Dec-23,51302097286,"2,640.00",DB Driveways & Paving Ltd,COMPANY,County Farms,County Farms,County Farms Maintenance unplanned
Cambridgeshire County Council,04-Dec-23,51302096205,"2,662.52",SC Electrical Contracting Ltd,COMPANY,County Farms,County Farms,County Farms Maintenance unplanned
Cambridgeshire County Council,04-Dec-23,51302109421,"2,733.91",MARSHLAND HIGH SCHOOL,EDUCATION,SEND - PEX support,SEND - Support for PEX without EHCP,Schools Professional Services (Curriculum)
Cambridgeshire County Council,04-Dec-23,51302098023,"2,921.36",RED2GREEN,CARE ESTABLISHMENT,SEND High Needs Top Up,High Needs Top Up - Post 16,Independent School Placements
Cambridgeshire County Council,04-Dec-23,51302098027,"2,924.09",RED2GREEN,CARE ESTABLISHMENT,SEND High Needs Top Up,High Needs Top Up - Post 16,Independent School Placements
Cambridgeshire County Council,04-Dec-23,51302111081,"2,931.43",Crown Social Care Ltd,CARE ESTABLISHMENT,Unaccompanied Asylum Seeking Children,Separated Migrant Children < 18,Asylum Seekers
Cambridgeshire County Council,04-Dec-23,51302110329,"2,940.00",Pathfinder Legal Services Limited,TRADE SUPPLIER,Legal Proceedings,Legal Proceedings,External Legal Fees
Cambridgeshire County Council,04-Dec-23,51302098579,"2,985.56",GSH Group Company,COMPANY,BM - Corporate Offices,Building Maintenance,Building Structural Maintenance - Reactive
Cambridgeshire County Council,04-Dec-23,51302097711,"3,066.00",HUNTINGDON  MARRIOTT,TRADE SUPPLIER,SIS Head of Service,SIS Numeracy & Literacy Team,Casual hire of facilities
Cambridgeshire County Council,04-Dec-23,51302110835,"3,104.40",EDUFOCUS LIMITED,TRADE SUPPLIER,Outdoor Education,"Education, Health, Safety and Wellbeing - Outdoor Education",Computer software - annual licence agreement
Cambridgeshire County Council,04-Dec-23,51302098018,"3,140.18",RED2GREEN,CARE ESTABLISHMENT,SEND High Needs Top Up,High Needs Top Up - Post 16,Independent School Placements
Cambridgeshire County Council,04-Dec-23,51302097051,"3,300.00",SOUTH CAMBRIDGESHIRE DISTRICT COUNCIL,OTHER PUBLIC BODIES,County Farms Investment (Viability),Lower Valley Farm,Construction - External Professional Fees
Cambridgeshire County Council,04-Dec-23,51302096269,"3,357.50",J & G GROUNDWORKS & SURFACING,COMPANY,Highways - Rights of Way,Highways - Rights of Way,Highways - Bridges
Cambridgeshire County Council,04-Dec-23,51302110920,"3,357.60",BG Children�s Care Homes Limited,COMPANY,Unaccompanied Asylum Seeking Children,Separated Migrant Children < 18,Asylum Seekers
Cambridgeshire County Council,04-Dec-23,51302111108,"3,385.71",UK Care Partnership Ltd,CARE ESTABLISHMENT,Unaccompanied Asylum Seeking Children,Separated Migrant Children > 18,Living Spport Grants - Financial Assistance 18+
Cambridgeshire County Council,04-Dec-23,51302111075,"3,407.14",Clover Fostering LTD,COMPANY,Unaccompanied Asylum Seeking Children,Separated Migrant Children < 18,Agency Placements - In County
Cambridgeshire County Council,04-Dec-23,51302111788,"3,436.16",Redacted Personal Data,INDIVIDUAL,Children's Disability Direct Payments,CSC Direct Payments,Direct Payments
Cambridgeshire County Council,04-Dec-23,51302097219,"3,650.59",SC Electrical Contracting Ltd,COMPANY,County Farms,County Farms,County Farms Maintenance
Cambridgeshire County Council,04-Dec-23,51302099643,"3,664.64",OCS UK&I Limited,COMPANY,Corporate Offices,County Offices General,Building Cleaning
Cambridgeshire County Council,04-Dec-23,51302111828,"3,822.00",NATIONAL TEACHING & ADVISORY SERVICE FOR LOOKED AFTER CHILDREN (NT & AS),OTHER PUBLIC BODIES,Out of School Tuition,Out of School Provision EHCPs,Independent School Placements
Cambridgeshire County Council,04-Dec-23,51302111101,"3,841.93",Family First Fostering Ltd,COMPANY,Unaccompanied Asylum Seeking Children,Separated Migrant Children < 18,Agency Placements - In County
Cambridgeshire County Council,04-Dec-23,51302111103,"3,880.71",Family First Fostering Ltd,COMPANY,Unaccompanied Asylum Seeking Children,Separated Migrant Children < 18,Agency Placements - In County
Cambridgeshire County Council,04-Dec-23,51302111104,"3,880.71",Family First Fostering Ltd,COMPANY,Unaccompanied Asylum Seeking Children,Separated Migrant Children < 18,Agency Placements - In County
Cambridgeshire County Council,04-Dec-23,51302111096,"3,880.71",Family First Fostering Ltd,COMPANY,Unaccompanied Asylum Seeking Children,Separated Migrant Children < 18,Agency Placements - In County
Cambridgeshire County Council,04-Dec-23,51302111826,"3,900.00",NATIONAL TEACHING & ADVISORY SERVICE FOR LOOKED AFTER CHILDREN (NT & AS),OTHER PUBLIC BODIES,Out of School Tuition,Out of School Provision EHCPs,Independent School Placements
Cambridgeshire County Council,04-Dec-23,51302110879,"3,942.60",TRANSITION CARE PETERBOROUGH LTD,CARE ESTABLISHMENT,LAC Placements,Placements - supported accommodation,Agency Placements - In County
Cambridgeshire County Council,04-Dec-23,51302110880,"3,942.60",TRANSITION CARE PETERBOROUGH LTD,CARE ESTABLISHMENT,LAC Placements,Placements - supported accommodation,Agency Placements - In County
Cambridgeshire County Council,04-Dec-23,51302110881,"3,942.60",TRANSITION CARE PETERBOROUGH LTD,CARE ESTABLISHMENT,LAC Placements,Placements - supported accommodation,Agency Placements - In County
Cambridgeshire County Council,04-Dec-23,51302111829,"3,978.00",NATIONAL TEACHING & ADVISORY SERVICE FOR LOOKED AFTER CHILDREN (NT & AS),OTHER PUBLIC BODIES,Out of School Tuition,Out of School Provision EHCPs,Independent School Placements
Cambridgeshire County Council,04-Dec-23,51302111097,"4,071.43",Family First Fostering Ltd,COMPANY,Unaccompanied Asylum Seeking Children,Separated Migrant Children < 18,Agency Placements - In County
Cambridgeshire County Council,04-Dec-23,51302111100,"4,071.43",Family First Fostering Ltd,COMPANY,Unaccompanied Asylum Seeking Children,Separated Migrant Children < 18,Agency Placements - In County
Cambridgeshire County Council,04-Dec-23,51302111107,"4,371.43",Transforming Lives Company,CARE ESTABLISHMENT,Unaccompanied Asylum Seeking Children,Separated Migrant Children > 18,Living Spport Grants - Financial Assistance 18+
Cambridgeshire County Council,04-Dec-23,51302109226,"4,427.65",SWARCO UK & Ireland Ltd,COMPANY,Signals,Signals Works,Traffic Signs and Lines Maintenance
Cambridgeshire County Council,04-Dec-23,51302110862,"4,444.40",OLD WEST INTERNAL DRAINAGE BOARD,TRADE SUPPLIER,County Farms,County Farms,Business rates
Cambridgeshire County Council,04-Dec-23,51302096986,"4,806.00",Tile Hill Interim & Executive Ltd,COMPANY,Executive Director,Executive Director CEF,Agency Staff
Cambridgeshire County Council,04-Dec-23,51302111102,"5,337.86",Family First Fostering Ltd,COMPANY,Unaccompanied Asylum Seeking Children,Separated Migrant Children < 18,Agency Placements - In County
Cambridgeshire County Council,04-Dec-23,51302097284,"5,374.85",Boxxe Limited,COMPANY,Corporate IT Managed,Hardware & Infrastructure,Computer software - annual licence agreement
Cambridgeshire County Council,04-Dec-23,51302111745,"5,575.95",Matthew Redman,PARTNERSHIP,County Farms Investment (Viability),Oldfield Farm,Construction - External Professional Fees
Cambridgeshire County Council,04-Dec-23,51302111777,"6,257.15",WEIGHTMANS LLP,TRADE SUPPLIER,Insurance Fund,Liability,Insurance Claims Paid
Cambridgeshire County Council,04-Dec-23,51302097878,"6,600.00",SHINE PSYCHOLOGY,EDUCATION,SEND Specialist Services - Education Psychology,SEND Specialist Services - Education Psychology,Professional Fees and Hired Services
Cambridgeshire County Council,04-Dec-23,51302111771,"6,749.40",WEIGHTMANS LLP,TRADE SUPPLIER,Insurance Fund,Liability,Insurance Claims Paid
Cambridgeshire County Council,04-Dec-23,51302096254,"7,006.50",NATIONAL EXTENSION COLLEGE,EDUCATION,SEND High Needs Top Up,High Needs Top Up - Post 16,Independent School Placements
Cambridgeshire County Council,04-Dec-23,51302110844,"7,499.40",WEIGHTMANS LLP,TRADE SUPPLIER,Insurance Fund,Liability,Insurance Claims Paid
Cambridgeshire County Council,04-Dec-23,51302097255,"8,400.00",CAMBRIDGE CITY COUNCIL,OTHER PUBLIC BODIES,Strategic management - Communities and Partnerships,Strategic management - Communities and Partnerships,Partnership Costs and Expenses
Cambridgeshire County Council,04-Dec-23,51302097877,"8,800.00",SHINE PSYCHOLOGY,EDUCATION,SEND Specialist Services - Education Psychology,SEND Specialist Services - Education Psychology,Professional Fees and Hired Services
Cambridgeshire County Council,04-Dec-23,51302110336,"10,018.26",Pathfinder Legal Services Limited,TRADE SUPPLIER,Legal Proceedings,Legal Proceedings,External Legal Fees
Cambridgeshire County Council,04-Dec-23,51302111778,"10,182.60",WEIGHTMANS LLP,TRADE SUPPLIER,Insurance Fund,Liability,Insurance Claims Paid
Cambridgeshire County Council,04-Dec-23,51302110125,"10,232.36",Roadworks Information Ltd t/a one.network,TRADE SUPPLIER,Traffic Management Centre,Traffic Management Centre,Computer software - annual licence agreement
Cambridgeshire County Council,04-Dec-23,51302098580,"10,560.77",GSH Group Company,COMPANY,BM - Corporate Offices,Building Maintenance,Building Stuctural Maintenance - Planned
Cambridgeshire County Council,04-Dec-23,51302099137,"11,276.13",Infinigate Cloud UK Ltd,COMPANY,ICT Service,ICT Service Technical Support,Computer software - purchase
Cambridgeshire County Council,04-Dec-23,51302097218,"12,000.00",THERA EAST ANGLIA,CARE ESTABLISHMENT,LD - East Locality - Cost of Care,LD - East Cambs - Care,Supported Living
Cambridgeshire County Council,04-Dec-23,51302097382,"12,942.00",Mobilityways Limited,COMPANY,Travel Plan,Northstowe Phase 1,Advertising / Publicity (non Recruitment)
Cambridgeshire County Council,04-Dec-23,51302110808,"17,322.00",WEIGHTMANS LLP,TRADE SUPPLIER,Insurance Fund,Liability,Insurance Claims Paid
Cambridgeshire County Council,04-Dec-23,51302098578,"18,725.81",GSH Group Company,COMPANY,BM - Corporate Offices,Building Maintenance,Building Structural Maintenance - Reactive
Cambridgeshire County Council,04-Dec-23,51302110887,"25,067.83",Serenity Welfare Limited,CARE ESTABLISHMENT,LAC Placements,Placements - supported accommodation,Agency Placements - In County
Cambridgeshire County Council,04-Dec-23,51302097691,"29,323.85",Barclays Bank UK Retirement Fund � Service Charge Account c/o Workman Client,COMPANY,Corporate Offices,Cambridge Central Library,Service Charges
Cambridgeshire County Council,04-Dec-23,51302098575,"40,905.58",GSH Group Company,COMPANY,BM - Corporate Offices,Building Maintenance,Building Stuctural Maintenance - Planned
Cambridgeshire County Council,04-Dec-23,51302111758,"43,504.80",The 4OC Ltd,COMPANY,Business Systems,IT Strategy - Highways system replacement,Capital Consultancy
Cambridgeshire County Council,04-Dec-23,51302101963,"46,117.91",WSP UK LTD T/A WSP INTEGRATED BUILDING SERVICES,TRADE SUPPLIER,GCP - Cambourne to Cambridge (A428),GCP - Cambourne to Cambridge (A428),Construction - External Professional Fees
Cambridgeshire County Council,04-Dec-23,51302099172,"50,150.93",CPS Building Services Ltd,COMPANY,Condition Survey Works,Signet Court CB5 8LA CS22050108,"New Construction, Conversion and Renovation"
Cambridgeshire County Council,04-Dec-23,51302098231,"58,296.73",G & S HUTCHINSON LTD,COMPANY,County Farms Investment (Viability),"Throckenhalt Farm, Spalding",Construction - External Professional Fees
Cambridgeshire County Council,04-Dec-23,51302110361,"122,945.34",Pathfinder Legal Services Limited,TRADE SUPPLIER,Legal Proceedings,Legal Proceedings,External Legal Fees
Cambridgeshire County Council,04-Dec-23,51302109961,"378,000.00",Octavius Infrastructure Limited,COMPANY,March Broad Street FHSF/MATS,March Broad Street FHSF/MATS,Construction - External Professional Fees
Cambridgeshire County Council,04-Dec-23,51302110833,"407,038.67",OPUS LGSS (PEOPLE SOLUTIONS) LTD,TRADE SUPPLIER,Corporate Services Default,Opus agency charges - central allocation,Agency Staff
Cambridgeshire County Council,04-Dec-23,51302108717,"509,951.39",PETERBOROUGH CITY COUNCIL,OTHER PUBLIC BODIES,Integrated Community Equipment Service,ICES (Pool),Payments to Other Local Authorities
Cambridgeshire County Council,06-Dec-23,51302109526,"-25,502.51",ATKINS LTD,COMPANY,Kennett Primary,Kennett Primary,Construction - External Professional Fees
Cambridgeshire County Council,06-Dec-23,51302112452,"-2,592.86",CAPSTONE FOSTER CARE (SOUTH EAST) LTD,CARE ESTABLISHMENT,LAC Placements,Placements - independent fostering,Agency Placements - Out of  County
Cambridgeshire County Council,06-Dec-23,51302112055,"-1,701.27",Redacted Personal Data,SERVICE USER,LD - City Locality - Cost of Care,LD - City - Care,Direct Payments
Cambridgeshire County Council,06-Dec-23,51302112055,"-1,701.27",Redacted Personal Data,SERVICE USER,LD - City Locality - Cost of Care,LD - City - Care,Direct Payments
Cambridgeshire County Council,06-Dec-23,51302112055,"-1,701.27",Redacted Personal Data,SERVICE USER,LD - City Locality - Cost of Care,LD - City - Care,Direct Payments
Cambridgeshire County Council,06-Dec-23,51302112055,"-1,701.27",Redacted Personal Data,SERVICE USER,LD - City Locality - Cost of Care,LD - City - Care,Direct Payments
Cambridgeshire County Council,06-Dec-23,51302112055,"-1,701.27",Redacted Personal Data,SERVICE USER,LD - City Locality - Cost of Care,LD - City - Care,Direct Payments
Cambridgeshire County Council,06-Dec-23,51302112055,"-1,701.27",Redacted Personal Data,SERVICE USER,LD - City Locality - Cost of Care,LD - City - Care,Direct Payments
Cambridgeshire County Council,06-Dec-23,51302112055,"-1,701.27",Redacted Personal Data,SERVICE USER,LD - City Locality - Cost of Care,LD - City - Care,Direct Payments
Cambridgeshire County Council,06-Dec-23,51302112055,"-1,701.27",Redacted Personal Data,SERVICE USER,LD - City Locality - Cost of Care,LD - City - Care,Direct Payments
Cambridgeshire County Council,06-Dec-23,51302112055,"-1,701.27",Redacted Personal Data,SERVICE USER,LD - City Locality - Cost of Care,LD - City - Care,Direct Payments
Cambridgeshire County Council,06-Dec-23,51302112055,"-1,654.13",Redacted Personal Data,SERVICE USER,LD - City Locality - Cost of Care,LD - City - Care,Direct Payments
Cambridgeshire County Council,06-Dec-23,51302112055,"-1,654.13",Redacted Personal Data,SERVICE USER,LD - City Locality - Cost of Care,LD - City - Care,Direct Payments
Cambridgeshire County Council,06-Dec-23,51302112055,"-1,654.13",Redacted Personal Data,SERVICE USER,LD - City Locality - Cost of Care,LD - City - Care,Direct Payments
Cambridgeshire County Council,06-Dec-23,51302112055,"-1,654.13",Redacted Personal Data,SERVICE USER,LD - City Locality - Cost of Care,LD - City - Care,Direct Payments
Cambridgeshire County Council,06-Dec-23,51302112055,"-1,654.13",Redacted Personal Data,SERVICE USER,LD - City Locality - Cost of Care,LD - City - Care,Direct Payments
Cambridgeshire County Council,06-Dec-23,51302112037,-810.35,HATLEY COURT HAVEN LTD,CARE ESTABLISHMENT,OPMH - City & South,Older People Mental Health City & South,Residential Care
Cambridgeshire County Council,06-Dec-23,51302112037,-810.35,HATLEY COURT HAVEN LTD,CARE ESTABLISHMENT,OPMH - City & South,Older People Mental Health City & South,Residential Care
Cambridgeshire County Council,06-Dec-23,51302112037,-810.35,HATLEY COURT HAVEN LTD,CARE ESTABLISHMENT,OPMH - City & South,Older People Mental Health City & South,Residential Care
Cambridgeshire County Council,06-Dec-23,51302112037,-810.35,HATLEY COURT HAVEN LTD,CARE ESTABLISHMENT,OPMH - City & South,Older People Mental Health City & South,Residential Care
Cambridgeshire County Council,06-Dec-23,51302112037,-810.35,HATLEY COURT HAVEN LTD,CARE ESTABLISHMENT,OPMH - City & South,Older People Mental Health City & South,Residential Care
Cambridgeshire County Council,06-Dec-23,51302112037,-810.35,HATLEY COURT HAVEN LTD,CARE ESTABLISHMENT,OPMH - City & South,Older People Mental Health City & South,Residential Care
Cambridgeshire County Council,06-Dec-23,51302112037,-810.35,HATLEY COURT HAVEN LTD,CARE ESTABLISHMENT,OPMH - City & South,Older People Mental Health City & South,Residential Care
Cambridgeshire County Council,06-Dec-23,51302112037,-810.35,HATLEY COURT HAVEN LTD,CARE ESTABLISHMENT,OPMH - City & South,Older People Mental Health City & South,Residential Care
Cambridgeshire County Council,06-Dec-23,51302112037,-810.35,HATLEY COURT HAVEN LTD,CARE ESTABLISHMENT,OPMH - City & South,Older People Mental Health City & South,Residential Care
Cambridgeshire County Council,06-Dec-23,51302112037,-810.35,HATLEY COURT HAVEN LTD,CARE ESTABLISHMENT,OPMH - City & South,Older People Mental Health City & South,Residential Care
Cambridgeshire County Council,06-Dec-23,51302112037,-810.35,HATLEY COURT HAVEN LTD,CARE ESTABLISHMENT,OPMH - City & South,Older People Mental Health City & South,Residential Care
Cambridgeshire County Council,06-Dec-23,51302112037,-810.35,HATLEY COURT HAVEN LTD,CARE ESTABLISHMENT,OPMH - City & South,Older People Mental Health City & South,Residential Care
Cambridgeshire County Council,06-Dec-23,51302112037,-810.35,HATLEY COURT HAVEN LTD,CARE ESTABLISHMENT,OPMH - City & South,Older People Mental Health City & South,Residential Care
Cambridgeshire County Council,06-Dec-23,51302112037,-810.35,HATLEY COURT HAVEN LTD,CARE ESTABLISHMENT,OPMH - City & South,Older People Mental Health City & South,Residential Care
Cambridgeshire County Council,06-Dec-23,51302112037,-810.35,HATLEY COURT HAVEN LTD,CARE ESTABLISHMENT,OPMH - City & South,Older People Mental Health City & South,Residential Care
Cambridgeshire County Council,06-Dec-23,51302112037,-810.35,HATLEY COURT HAVEN LTD,CARE ESTABLISHMENT,OPMH - City & South,Older People Mental Health City & South,Residential Care
Cambridgeshire County Council,06-Dec-23,51302112037,-810.35,HATLEY COURT HAVEN LTD,CARE ESTABLISHMENT,OPMH - City & South,Older People Mental Health City & South,Residential Care
Cambridgeshire County Council,06-Dec-23,51302112037,-810.35,HATLEY COURT HAVEN LTD,CARE ESTABLISHMENT,OPMH - City & South,Older People Mental Health City & South,Residential Care
Cambridgeshire County Council,06-Dec-23,51302112037,-810.35,HATLEY COURT HAVEN LTD,CARE ESTABLISHMENT,OPMH - City & South,Older People Mental Health City & South,Residential Care
Cambridgeshire County Council,06-Dec-23,51302112037,-810.35,HATLEY COURT HAVEN LTD,CARE ESTABLISHMENT,OPMH - City & South,Older People Mental Health City & South,Residential Care
Cambridgeshire County Council,06-Dec-23,51302112037,-810.35,HATLEY COURT HAVEN LTD,CARE ESTABLISHMENT,OPMH - City & South,Older People Mental Health City & South,Residential Care
Cambridgeshire County Council,06-Dec-23,51302112037,-810.35,HATLEY COURT HAVEN LTD,CARE ESTABLISHMENT,OPMH - City & South,Older People Mental Health City & South,Residential Care
Cambridgeshire County Council,06-Dec-23,51302112037,-810.35,HATLEY COURT HAVEN LTD,CARE ESTABLISHMENT,OPMH - City & South,Older People Mental Health City & South,Residential Care
Cambridgeshire County Council,06-Dec-23,51302112037,-810.35,HATLEY COURT HAVEN LTD,CARE ESTABLISHMENT,OPMH - City & South,Older People Mental Health City & South,Residential Care
Cambridgeshire County Council,06-Dec-23,51302112037,-810.35,HATLEY COURT HAVEN LTD,CARE ESTABLISHMENT,OPMH - City & South,Older People Mental Health City & South,Residential Care
Cambridgeshire County Council,06-Dec-23,51302112037,-810.35,HATLEY COURT HAVEN LTD,CARE ESTABLISHMENT,OPMH - City & South,Older People Mental Health City & South,Residential Care
Cambridgeshire County Council,06-Dec-23,51302112037,-810.35,HATLEY COURT HAVEN LTD,CARE ESTABLISHMENT,OPMH - City & South,Older People Mental Health City & South,Residential Care
Cambridgeshire County Council,06-Dec-23,51302112037,-810.35,HATLEY COURT HAVEN LTD,CARE ESTABLISHMENT,OPMH - City & South,Older People Mental Health City & South,Residential Care
Cambridgeshire County Council,06-Dec-23,51302112037,-810.35,HATLEY COURT HAVEN LTD,CARE ESTABLISHMENT,OPMH - City & South,Older People Mental Health City & South,Residential Care
Cambridgeshire County Council,06-Dec-23,51302112037,-810.35,HATLEY COURT HAVEN LTD,CARE ESTABLISHMENT,OPMH - City & South,Older People Mental Health City & South,Residential Care
Cambridgeshire County Council,06-Dec-23,51302112037,-810.35,HATLEY COURT HAVEN LTD,CARE ESTABLISHMENT,OPMH - City & South,Older People Mental Health City & South,Residential Care
Cambridgeshire County Council,06-Dec-23,51302112037,-810.35,HATLEY COURT HAVEN LTD,CARE ESTABLISHMENT,OPMH - City & South,Older People Mental Health City & South,Residential Care
Cambridgeshire County Council,06-Dec-23,51302112037,-810.35,HATLEY COURT HAVEN LTD,CARE ESTABLISHMENT,OPMH - City & South,Older People Mental Health City & South,Residential Care
Cambridgeshire County Council,06-Dec-23,51302112037,-810.35,HATLEY COURT HAVEN LTD,CARE ESTABLISHMENT,OPMH - City & South,Older People Mental Health City & South,Residential Care
Cambridgeshire County Council,06-Dec-23,51302112037,-810.35,HATLEY COURT HAVEN LTD,CARE ESTABLISHMENT,OPMH - City & South,Older People Mental Health City & South,Residential Care
Cambridgeshire County Council,06-Dec-23,51302112036,-810.35,HATLEY COURT HAVEN LTD,CARE ESTABLISHMENT,OPPD - Cost of Care - East Cambs - Over 65,East Cambs - O P Team - Care,Residential Care
Cambridgeshire County Council,06-Dec-23,51302112036,-810.35,HATLEY COURT HAVEN LTD,CARE ESTABLISHMENT,OPPD - Cost of Care - East Cambs - Over 65,East Cambs - O P Team - Care,Residential Care
Cambridgeshire County Council,06-Dec-23,51302112036,-810.35,HATLEY COURT HAVEN LTD,CARE ESTABLISHMENT,OPPD - Cost of Care - East Cambs - Over 65,East Cambs - O P Team - Care,Residential Care
Cambridgeshire County Council,06-Dec-23,51302112036,-810.35,HATLEY COURT HAVEN LTD,CARE ESTABLISHMENT,OPPD - Cost of Care - East Cambs - Over 65,East Cambs - O P Team - Care,Residential Care
Cambridgeshire County Council,06-Dec-23,51302112036,-810.35,HATLEY COURT HAVEN LTD,CARE ESTABLISHMENT,OPPD - Cost of Care - East Cambs - Over 65,East Cambs - O P Team - Care,Residential Care
Cambridgeshire County Council,06-Dec-23,51302112036,-810.35,HATLEY COURT HAVEN LTD,CARE ESTABLISHMENT,OPPD - Cost of Care - East Cambs - Over 65,East Cambs - O P Team - Care,Residential Care
Cambridgeshire County Council,06-Dec-23,51302112036,-810.35,HATLEY COURT HAVEN LTD,CARE ESTABLISHMENT,OPPD - Cost of Care - East Cambs - Over 65,East Cambs - O P Team - Care,Residential Care
Cambridgeshire County Council,06-Dec-23,51302112036,-810.35,HATLEY COURT HAVEN LTD,CARE ESTABLISHMENT,OPPD - Cost of Care - East Cambs - Over 65,East Cambs - O P Team - Care,Residential Care
Cambridgeshire County Council,06-Dec-23,51302112036,-810.35,HATLEY COURT HAVEN LTD,CARE ESTABLISHMENT,OPPD - Cost of Care - East Cambs - Over 65,East Cambs - O P Team - Care,Residential Care
Cambridgeshire County Council,06-Dec-23,51302112036,-810.35,HATLEY COURT HAVEN LTD,CARE ESTABLISHMENT,OPPD - Cost of Care - East Cambs - Over 65,East Cambs - O P Team - Care,Residential Care
Cambridgeshire County Council,06-Dec-23,51302112036,-810.35,HATLEY COURT HAVEN LTD,CARE ESTABLISHMENT,OPPD - Cost of Care - East Cambs - Over 65,East Cambs - O P Team - Care,Residential Care
Cambridgeshire County Council,06-Dec-23,51302112036,-810.35,HATLEY COURT HAVEN LTD,CARE ESTABLISHMENT,OPPD - Cost of Care - East Cambs - Over 65,East Cambs - O P Team - Care,Residential Care
Cambridgeshire County Council,06-Dec-23,51302112036,-810.35,HATLEY COURT HAVEN LTD,CARE ESTABLISHMENT,OPPD - Cost of Care - East Cambs - Over 65,East Cambs - O P Team - Care,Residential Care
Cambridgeshire County Council,06-Dec-23,51302112036,-810.35,HATLEY COURT HAVEN LTD,CARE ESTABLISHMENT,OPPD - Cost of Care - East Cambs - Over 65,East Cambs - O P Team - Care,Residential Care
Cambridgeshire County Council,06-Dec-23,51302112036,-810.35,HATLEY COURT HAVEN LTD,CARE ESTABLISHMENT,OPPD - Cost of Care - East Cambs - Over 65,East Cambs - O P Team - Care,Residential Care
Cambridgeshire County Council,06-Dec-23,51302112036,-810.35,HATLEY COURT HAVEN LTD,CARE ESTABLISHMENT,OPPD - Cost of Care - East Cambs - Over 65,East Cambs - O P Team - Care,Residential Care
Cambridgeshire County Council,06-Dec-23,51302112036,-810.35,HATLEY COURT HAVEN LTD,CARE ESTABLISHMENT,OPPD - Cost of Care - East Cambs - Over 65,East Cambs - O P Team - Care,Residential Care
Cambridgeshire County Council,06-Dec-23,51302112036,-810.35,HATLEY COURT HAVEN LTD,CARE ESTABLISHMENT,OPPD - Cost of Care - East Cambs - Over 65,East Cambs - O P Team - Care,Residential Care
Cambridgeshire County Council,06-Dec-23,51302112044,-810.35,HATLEY COURT HAVEN LTD,CARE ESTABLISHMENT,OPPD - Cost of Care - City South - Over 65,Older People - City & South - Care,Residential Care
Cambridgeshire County Council,06-Dec-23,51302112044,-810.35,HATLEY COURT HAVEN LTD,CARE ESTABLISHMENT,OPPD - Cost of Care - City South - Over 65,Older People - City & South - Care,Residential Care
Cambridgeshire County Council,06-Dec-23,51302112044,-810.35,HATLEY COURT HAVEN LTD,CARE ESTABLISHMENT,OPPD - Cost of Care - City South - Over 65,Older People - City & South - Care,Residential Care
Cambridgeshire County Council,06-Dec-23,51302112044,-810.35,HATLEY COURT HAVEN LTD,CARE ESTABLISHMENT,OPPD - Cost of Care - City South - Over 65,Older People - City & South - Care,Residential Care
Cambridgeshire County Council,06-Dec-23,51302112045,-810.35,HATLEY COURT HAVEN LTD,CARE ESTABLISHMENT,OPPD - Cost of Care - City South - Over 65,Older People - City & South - Care,Residential Care
Cambridgeshire County Council,06-Dec-23,51302112044,-810.35,HATLEY COURT HAVEN LTD,CARE ESTABLISHMENT,OPPD - Cost of Care - City South - Over 65,Older People - City & South - Care,Residential Care
Cambridgeshire County Council,06-Dec-23,51302112045,-810.35,HATLEY COURT HAVEN LTD,CARE ESTABLISHMENT,OPPD - Cost of Care - City South - Over 65,Older People - City & South - Care,Residential Care
Cambridgeshire County Council,06-Dec-23,51302112045,-810.35,HATLEY COURT HAVEN LTD,CARE ESTABLISHMENT,OPPD - Cost of Care - City South - Over 65,Older People - City & South - Care,Residential Care
Cambridgeshire County Council,06-Dec-23,51302112045,-810.35,HATLEY COURT HAVEN LTD,CARE ESTABLISHMENT,OPPD - Cost of Care - City South - Over 65,Older People - City & South - Care,Residential Care
Cambridgeshire County Council,06-Dec-23,51302112045,-810.35,HATLEY COURT HAVEN LTD,CARE ESTABLISHMENT,OPPD - Cost of Care - City South - Over 65,Older People - City & South - Care,Residential Care
Cambridgeshire County Council,06-Dec-23,51302112045,-810.35,HATLEY COURT HAVEN LTD,CARE ESTABLISHMENT,OPPD - Cost of Care - City South - Over 65,Older People - City & South - Care,Residential Care
Cambridgeshire County Council,06-Dec-23,51302112045,-810.35,HATLEY COURT HAVEN LTD,CARE ESTABLISHMENT,OPPD - Cost of Care - City South - Over 65,Older People - City & South - Care,Residential Care
Cambridgeshire County Council,06-Dec-23,51302112045,-810.35,HATLEY COURT HAVEN LTD,CARE ESTABLISHMENT,OPPD - Cost of Care - City South - Over 65,Older People - City & South - Care,Residential Care
Cambridgeshire County Council,06-Dec-23,51302112045,-810.35,HATLEY COURT HAVEN LTD,CARE ESTABLISHMENT,OPPD - Cost of Care - City South - Over 65,Older People - City & South - Care,Residential Care
Cambridgeshire County Council,06-Dec-23,51302112045,-810.35,HATLEY COURT HAVEN LTD,CARE ESTABLISHMENT,OPPD - Cost of Care - City South - Over 65,Older People - City & South - Care,Residential Care
Cambridgeshire County Council,06-Dec-23,51302112045,-810.35,HATLEY COURT HAVEN LTD,CARE ESTABLISHMENT,OPPD - Cost of Care - City South - Over 65,Older People - City & South - Care,Residential Care
Cambridgeshire County Council,06-Dec-23,51302112045,-810.35,HATLEY COURT HAVEN LTD,CARE ESTABLISHMENT,OPPD - Cost of Care - City South - Over 65,Older People - City & South - Care,Residential Care
Cambridgeshire County Council,06-Dec-23,51302112045,-810.35,HATLEY COURT HAVEN LTD,CARE ESTABLISHMENT,OPPD - Cost of Care - City South - Over 65,Older People - City & South - Care,Residential Care
Cambridgeshire County Council,06-Dec-23,51302112045,-810.35,HATLEY COURT HAVEN LTD,CARE ESTABLISHMENT,OPPD - Cost of Care - City South - Over 65,Older People - City & South - Care,Residential Care
Cambridgeshire County Council,06-Dec-23,51302112045,-810.35,HATLEY COURT HAVEN LTD,CARE ESTABLISHMENT,OPPD - Cost of Care - City South - Over 65,Older People - City & South - Care,Residential Care
Cambridgeshire County Council,06-Dec-23,51302112045,-810.35,HATLEY COURT HAVEN LTD,CARE ESTABLISHMENT,OPPD - Cost of Care - City South - Over 65,Older People - City & South - Care,Residential Care
Cambridgeshire County Council,06-Dec-23,51302112045,-810.35,HATLEY COURT HAVEN LTD,CARE ESTABLISHMENT,OPPD - Cost of Care - City South - Over 65,Older People - City & South - Care,Residential Care
Cambridgeshire County Council,06-Dec-23,51302112045,-810.35,HATLEY COURT HAVEN LTD,CARE ESTABLISHMENT,OPPD - Cost of Care - City South - Over 65,Older People - City & South - Care,Residential Care
Cambridgeshire County Council,06-Dec-23,51302112045,-810.35,HATLEY COURT HAVEN LTD,CARE ESTABLISHMENT,OPPD - Cost of Care - City South - Over 65,Older People - City & South - Care,Residential Care
Cambridgeshire County Council,06-Dec-23,51302112045,-810.35,HATLEY COURT HAVEN LTD,CARE ESTABLISHMENT,OPPD - Cost of Care - City South - Over 65,Older People - City & South - Care,Residential Care
Cambridgeshire County Council,06-Dec-23,51302112045,-810.35,HATLEY COURT HAVEN LTD,CARE ESTABLISHMENT,OPPD - Cost of Care - City South - Over 65,Older People - City & South - Care,Residential Care
Cambridgeshire County Council,06-Dec-23,51302112045,-810.35,HATLEY COURT HAVEN LTD,CARE ESTABLISHMENT,OPPD - Cost of Care - City South - Over 65,Older People - City & South - Care,Residential Care
Cambridgeshire County Council,06-Dec-23,51302112045,-810.35,HATLEY COURT HAVEN LTD,CARE ESTABLISHMENT,OPPD - Cost of Care - City South - Over 65,Older People - City & South - Care,Residential Care
Cambridgeshire County Council,06-Dec-23,51302112045,-810.35,HATLEY COURT HAVEN LTD,CARE ESTABLISHMENT,OPPD - Cost of Care - City South - Over 65,Older People - City & South - Care,Residential Care
Cambridgeshire County Council,06-Dec-23,51302112045,-810.35,HATLEY COURT HAVEN LTD,CARE ESTABLISHMENT,OPPD - Cost of Care - City South - Over 65,Older People - City & South - Care,Residential Care
Cambridgeshire County Council,06-Dec-23,51302112045,-810.35,HATLEY COURT HAVEN LTD,CARE ESTABLISHMENT,OPPD - Cost of Care - City South - Over 65,Older People - City & South - Care,Residential Care
Cambridgeshire County Council,06-Dec-23,51302112045,-810.35,HATLEY COURT HAVEN LTD,CARE ESTABLISHMENT,OPPD - Cost of Care - City South - Over 65,Older People - City & South - Care,Residential Care
Cambridgeshire County Council,06-Dec-23,51302112045,-810.35,HATLEY COURT HAVEN LTD,CARE ESTABLISHMENT,OPPD - Cost of Care - City South - Over 65,Older People - City & South - Care,Residential Care
Cambridgeshire County Council,06-Dec-23,51302112045,-810.35,HATLEY COURT HAVEN LTD,CARE ESTABLISHMENT,OPPD - Cost of Care - City South - Over 65,Older People - City & South - Care,Residential Care
Cambridgeshire County Council,06-Dec-23,51302112045,-810.35,HATLEY COURT HAVEN LTD,CARE ESTABLISHMENT,OPPD - Cost of Care - City South - Over 65,Older People - City & South - Care,Residential Care
Cambridgeshire County Council,06-Dec-23,51302112045,-810.35,HATLEY COURT HAVEN LTD,CARE ESTABLISHMENT,OPPD - Cost of Care - City South - Over 65,Older People - City & South - Care,Residential Care
Cambridgeshire County Council,06-Dec-23,51302112045,-810.35,HATLEY COURT HAVEN LTD,CARE ESTABLISHMENT,OPPD - Cost of Care - City South - Over 65,Older People - City & South - Care,Residential Care
Cambridgeshire County Council,06-Dec-23,51302112045,-810.35,HATLEY COURT HAVEN LTD,CARE ESTABLISHMENT,OPPD - Cost of Care - City South - Over 65,Older People - City & South - Care,Residential Care
Cambridgeshire County Council,06-Dec-23,51302112045,-810.35,HATLEY COURT HAVEN LTD,CARE ESTABLISHMENT,OPPD - Cost of Care - City South - Over 65,Older People - City & South - Care,Residential Care
Cambridgeshire County Council,06-Dec-23,51302112045,-810.35,HATLEY COURT HAVEN LTD,CARE ESTABLISHMENT,OPPD - Cost of Care - City South - Over 65,Older People - City & South - Care,Residential Care
Cambridgeshire County Council,06-Dec-23,51302112046,-810.35,HATLEY COURT HAVEN LTD,CARE ESTABLISHMENT,OPPD - Cost of Care - City South - Over 65,Older People - City & South - Care,Residential Care
Cambridgeshire County Council,06-Dec-23,51302112046,-810.35,HATLEY COURT HAVEN LTD,CARE ESTABLISHMENT,OPPD - Cost of Care - City South - Over 65,Older People - City & South - Care,Residential Care
Cambridgeshire County Council,06-Dec-23,51302112046,-810.35,HATLEY COURT HAVEN LTD,CARE ESTABLISHMENT,OPPD - Cost of Care - City South - Over 65,Older People - City & South - Care,Residential Care
Cambridgeshire County Council,06-Dec-23,51302112046,-810.35,HATLEY COURT HAVEN LTD,CARE ESTABLISHMENT,OPPD - Cost of Care - City South - Over 65,Older People - City & South - Care,Residential Care
Cambridgeshire County Council,06-Dec-23,51302112046,-810.35,HATLEY COURT HAVEN LTD,CARE ESTABLISHMENT,OPPD - Cost of Care - City South - Over 65,Older People - City & South - Care,Residential Care
Cambridgeshire County Council,06-Dec-23,51302112046,-810.35,HATLEY COURT HAVEN LTD,CARE ESTABLISHMENT,OPPD - Cost of Care - City South - Over 65,Older People - City & South - Care,Residential Care
Cambridgeshire County Council,06-Dec-23,51302112046,-810.35,HATLEY COURT HAVEN LTD,CARE ESTABLISHMENT,OPPD - Cost of Care - City South - Over 65,Older People - City & South - Care,Residential Care
Cambridgeshire County Council,06-Dec-23,51302112046,-810.35,HATLEY COURT HAVEN LTD,CARE ESTABLISHMENT,OPPD - Cost of Care - City South - Over 65,Older People - City & South - Care,Residential Care
Cambridgeshire County Council,06-Dec-23,51302112046,-810.35,HATLEY COURT HAVEN LTD,CARE ESTABLISHMENT,OPPD - Cost of Care - City South - Over 65,Older People - City & South - Care,Residential Care
Cambridgeshire County Council,06-Dec-23,51302112046,-810.35,HATLEY COURT HAVEN LTD,CARE ESTABLISHMENT,OPPD - Cost of Care - City South - Over 65,Older People - City & South - Care,Residential Care
Cambridgeshire County Council,06-Dec-23,51302112046,-810.35,HATLEY COURT HAVEN LTD,CARE ESTABLISHMENT,OPPD - Cost of Care - City South - Over 65,Older People - City & South - Care,Residential Care
Cambridgeshire County Council,06-Dec-23,51302112046,-810.35,HATLEY COURT HAVEN LTD,CARE ESTABLISHMENT,OPPD - Cost of Care - City South - Over 65,Older People - City & South - Care,Residential Care
Cambridgeshire County Council,06-Dec-23,51302112046,-810.35,HATLEY COURT HAVEN LTD,CARE ESTABLISHMENT,OPPD - Cost of Care - City South - Over 65,Older People - City & South - Care,Residential Care
Cambridgeshire County Council,06-Dec-23,51302112046,-810.35,HATLEY COURT HAVEN LTD,CARE ESTABLISHMENT,OPPD - Cost of Care - City South - Over 65,Older People - City & South - Care,Residential Care
Cambridgeshire County Council,06-Dec-23,51302112046,-810.35,HATLEY COURT HAVEN LTD,CARE ESTABLISHMENT,OPPD - Cost of Care - City South - Over 65,Older People - City & South - Care,Residential Care
Cambridgeshire County Council,06-Dec-23,51302112046,-810.35,HATLEY COURT HAVEN LTD,CARE ESTABLISHMENT,OPPD - Cost of Care - City South - Over 65,Older People - City & South - Care,Residential Care
Cambridgeshire County Council,06-Dec-23,51302112046,-810.35,HATLEY COURT HAVEN LTD,CARE ESTABLISHMENT,OPPD - Cost of Care - City South - Over 65,Older People - City & South - Care,Residential Care
Cambridgeshire County Council,06-Dec-23,51302112046,-810.35,HATLEY COURT HAVEN LTD,CARE ESTABLISHMENT,OPPD - Cost of Care - City South - Over 65,Older People - City & South - Care,Residential Care
Cambridgeshire County Council,06-Dec-23,51302112046,-810.35,HATLEY COURT HAVEN LTD,CARE ESTABLISHMENT,OPPD - Cost of Care - City South - Over 65,Older People - City & South - Care,Residential Care
Cambridgeshire County Council,06-Dec-23,51302112046,-810.35,HATLEY COURT HAVEN LTD,CARE ESTABLISHMENT,OPPD - Cost of Care - City South - Over 65,Older People - City & South - Care,Residential Care
Cambridgeshire County Council,06-Dec-23,51302112046,-810.35,HATLEY COURT HAVEN LTD,CARE ESTABLISHMENT,OPPD - Cost of Care - City South - Over 65,Older People - City & South - Care,Residential Care
Cambridgeshire County Council,06-Dec-23,51302112046,-810.35,HATLEY COURT HAVEN LTD,CARE ESTABLISHMENT,OPPD - Cost of Care - City South - Over 65,Older People - City & South - Care,Residential Care
Cambridgeshire County Council,06-Dec-23,51302112046,-810.35,HATLEY COURT HAVEN LTD,CARE ESTABLISHMENT,OPPD - Cost of Care - City South - Over 65,Older People - City & South - Care,Residential Care
Cambridgeshire County Council,06-Dec-23,51302112046,-810.35,HATLEY COURT HAVEN LTD,CARE ESTABLISHMENT,OPPD - Cost of Care - City South - Over 65,Older People - City & South - Care,Residential Care
Cambridgeshire County Council,06-Dec-23,51302112046,-810.35,HATLEY COURT HAVEN LTD,CARE ESTABLISHMENT,OPPD - Cost of Care - City South - Over 65,Older People - City & South - Care,Residential Care
Cambridgeshire County Council,06-Dec-23,51302112046,-810.35,HATLEY COURT HAVEN LTD,CARE ESTABLISHMENT,OPPD - Cost of Care - City South - Over 65,Older People - City & South - Care,Residential Care
Cambridgeshire County Council,06-Dec-23,51302112046,-810.35,HATLEY COURT HAVEN LTD,CARE ESTABLISHMENT,OPPD - Cost of Care - City South - Over 65,Older People - City & South - Care,Residential Care
Cambridgeshire County Council,06-Dec-23,51302112046,-810.35,HATLEY COURT HAVEN LTD,CARE ESTABLISHMENT,OPPD - Cost of Care - City South - Over 65,Older People - City & South - Care,Residential Care
Cambridgeshire County Council,06-Dec-23,51302112046,-810.35,HATLEY COURT HAVEN LTD,CARE ESTABLISHMENT,OPPD - Cost of Care - City South - Over 65,Older People - City & South - Care,Residential Care
Cambridgeshire County Council,06-Dec-23,51302112046,-810.35,HATLEY COURT HAVEN LTD,CARE ESTABLISHMENT,OPPD - Cost of Care - City South - Over 65,Older People - City & South - Care,Residential Care
Cambridgeshire County Council,06-Dec-23,51302112046,-810.35,HATLEY COURT HAVEN LTD,CARE ESTABLISHMENT,OPPD - Cost of Care - City South - Over 65,Older People - City & South - Care,Residential Care
Cambridgeshire County Council,06-Dec-23,51302112046,-810.35,HATLEY COURT HAVEN LTD,CARE ESTABLISHMENT,OPPD - Cost of Care - City South - Over 65,Older People - City & South - Care,Residential Care
Cambridgeshire County Council,06-Dec-23,51302112046,-810.35,HATLEY COURT HAVEN LTD,CARE ESTABLISHMENT,OPPD - Cost of Care - City South - Over 65,Older People - City & South - Care,Residential Care
Cambridgeshire County Council,06-Dec-23,51302112046,-810.35,HATLEY COURT HAVEN LTD,CARE ESTABLISHMENT,OPPD - Cost of Care - City South - Over 65,Older People - City & South - Care,Residential Care
Cambridgeshire County Council,06-Dec-23,51302112046,-810.35,HATLEY COURT HAVEN LTD,CARE ESTABLISHMENT,OPPD - Cost of Care - City South - Over 65,Older People - City & South - Care,Residential Care
Cambridgeshire County Council,06-Dec-23,51302112047,-810.35,HATLEY COURT HAVEN LTD,CARE ESTABLISHMENT,OPPD - Cost of Care - City South - Over 65,Older People - City & South - Care,Residential Care
Cambridgeshire County Council,06-Dec-23,51302112047,-810.35,HATLEY COURT HAVEN LTD,CARE ESTABLISHMENT,OPPD - Cost of Care - City South - Over 65,Older People - City & South - Care,Residential Care
Cambridgeshire County Council,06-Dec-23,51302112047,-810.35,HATLEY COURT HAVEN LTD,CARE ESTABLISHMENT,OPPD - Cost of Care - City South - Over 65,Older People - City & South - Care,Residential Care
Cambridgeshire County Council,06-Dec-23,51302112047,-810.35,HATLEY COURT HAVEN LTD,CARE ESTABLISHMENT,OPPD - Cost of Care - City South - Over 65,Older People - City & South - Care,Residential Care
Cambridgeshire County Council,06-Dec-23,51302112047,-810.35,HATLEY COURT HAVEN LTD,CARE ESTABLISHMENT,OPPD - Cost of Care - City South - Over 65,Older People - City & South - Care,Residential Care
Cambridgeshire County Council,06-Dec-23,51302112047,-810.35,HATLEY COURT HAVEN LTD,CARE ESTABLISHMENT,OPPD - Cost of Care - City South - Over 65,Older People - City & South - Care,Residential Care
Cambridgeshire County Council,06-Dec-23,51302112047,-810.35,HATLEY COURT HAVEN LTD,CARE ESTABLISHMENT,OPPD - Cost of Care - City South - Over 65,Older People - City & South - Care,Residential Care
Cambridgeshire County Council,06-Dec-23,51302112047,-810.35,HATLEY COURT HAVEN LTD,CARE ESTABLISHMENT,OPPD - Cost of Care - City South - Over 65,Older People - City & South - Care,Residential Care
Cambridgeshire County Council,06-Dec-23,51302112047,-810.35,HATLEY COURT HAVEN LTD,CARE ESTABLISHMENT,OPPD - Cost of Care - City South - Over 65,Older People - City & South - Care,Residential Care
Cambridgeshire County Council,06-Dec-23,51302112047,-810.35,HATLEY COURT HAVEN LTD,CARE ESTABLISHMENT,OPPD - Cost of Care - City South - Over 65,Older People - City & South - Care,Residential Care
Cambridgeshire County Council,06-Dec-23,51302112047,-810.35,HATLEY COURT HAVEN LTD,CARE ESTABLISHMENT,OPPD - Cost of Care - City South - Over 65,Older People - City & South - Care,Residential Care
Cambridgeshire County Council,06-Dec-23,51302112047,-810.35,HATLEY COURT HAVEN LTD,CARE ESTABLISHMENT,OPPD - Cost of Care - City South - Over 65,Older People - City & South - Care,Residential Care
Cambridgeshire County Council,06-Dec-23,51302112047,-810.35,HATLEY COURT HAVEN LTD,CARE ESTABLISHMENT,OPPD - Cost of Care - City South - Over 65,Older People - City & South - Care,Residential Care
Cambridgeshire County Council,06-Dec-23,51302112047,-810.35,HATLEY COURT HAVEN LTD,CARE ESTABLISHMENT,OPPD - Cost of Care - City South - Over 65,Older People - City & South - Care,Residential Care
Cambridgeshire County Council,06-Dec-23,51302112047,-810.35,HATLEY COURT HAVEN LTD,CARE ESTABLISHMENT,OPPD - Cost of Care - City South - Over 65,Older People - City & South - Care,Residential Care
Cambridgeshire County Council,06-Dec-23,51302112047,-810.35,HATLEY COURT HAVEN LTD,CARE ESTABLISHMENT,OPPD - Cost of Care - City South - Over 65,Older People - City & South - Care,Residential Care
Cambridgeshire County Council,06-Dec-23,51302112047,-810.35,HATLEY COURT HAVEN LTD,CARE ESTABLISHMENT,OPPD - Cost of Care - City South - Over 65,Older People - City & South - Care,Residential Care
Cambridgeshire County Council,06-Dec-23,51302112047,-810.35,HATLEY COURT HAVEN LTD,CARE ESTABLISHMENT,OPPD - Cost of Care - City South - Over 65,Older People - City & South - Care,Residential Care
Cambridgeshire County Council,06-Dec-23,51302112047,-810.35,HATLEY COURT HAVEN LTD,CARE ESTABLISHMENT,OPPD - Cost of Care - City South - Over 65,Older People - City & South - Care,Residential Care
Cambridgeshire County Council,06-Dec-23,51302112047,-810.35,HATLEY COURT HAVEN LTD,CARE ESTABLISHMENT,OPPD - Cost of Care - City South - Over 65,Older People - City & South - Care,Residential Care
Cambridgeshire County Council,06-Dec-23,51302112047,-810.35,HATLEY COURT HAVEN LTD,CARE ESTABLISHMENT,OPPD - Cost of Care - City South - Over 65,Older People - City & South - Care,Residential Care
Cambridgeshire County Council,06-Dec-23,51302112047,-810.35,HATLEY COURT HAVEN LTD,CARE ESTABLISHMENT,OPPD - Cost of Care - City South - Over 65,Older People - City & South - Care,Residential Care
Cambridgeshire County Council,06-Dec-23,51302112047,-810.35,HATLEY COURT HAVEN LTD,CARE ESTABLISHMENT,OPPD - Cost of Care - City South - Over 65,Older People - City & South - Care,Residential Care
Cambridgeshire County Council,06-Dec-23,51302112047,-810.35,HATLEY COURT HAVEN LTD,CARE ESTABLISHMENT,OPPD - Cost of Care - City South - Over 65,Older People - City & South - Care,Residential Care
Cambridgeshire County Council,06-Dec-23,51302112047,-810.35,HATLEY COURT HAVEN LTD,CARE ESTABLISHMENT,OPPD - Cost of Care - City South - Over 65,Older People - City & South - Care,Residential Care
Cambridgeshire County Council,06-Dec-23,51302112047,-810.35,HATLEY COURT HAVEN LTD,CARE ESTABLISHMENT,OPPD - Cost of Care - City South - Over 65,Older People - City & South - Care,Residential Care
Cambridgeshire County Council,06-Dec-23,51302112047,-810.35,HATLEY COURT HAVEN LTD,CARE ESTABLISHMENT,OPPD - Cost of Care - City South - Over 65,Older People - City & South - Care,Residential Care
Cambridgeshire County Council,06-Dec-23,51302112047,-810.35,HATLEY COURT HAVEN LTD,CARE ESTABLISHMENT,OPPD - Cost of Care - City South - Over 65,Older People - City & South - Care,Residential Care
Cambridgeshire County Council,06-Dec-23,51302112047,-810.35,HATLEY COURT HAVEN LTD,CARE ESTABLISHMENT,OPPD - Cost of Care - City South - Over 65,Older People - City & South - Care,Residential Care
Cambridgeshire County Council,06-Dec-23,51302112047,-810.35,HATLEY COURT HAVEN LTD,CARE ESTABLISHMENT,OPPD - Cost of Care - City South - Over 65,Older People - City & South - Care,Residential Care
Cambridgeshire County Council,06-Dec-23,51302112047,-810.35,HATLEY COURT HAVEN LTD,CARE ESTABLISHMENT,OPPD - Cost of Care - City South - Over 65,Older People - City & South - Care,Residential Care
Cambridgeshire County Council,06-Dec-23,51302112047,-810.35,HATLEY COURT HAVEN LTD,CARE ESTABLISHMENT,OPPD - Cost of Care - City South - Over 65,Older People - City & South - Care,Residential Care
Cambridgeshire County Council,06-Dec-23,51302112047,-810.35,HATLEY COURT HAVEN LTD,CARE ESTABLISHMENT,OPPD - Cost of Care - City South - Over 65,Older People - City & South - Care,Residential Care
Cambridgeshire County Council,06-Dec-23,51302112047,-810.35,HATLEY COURT HAVEN LTD,CARE ESTABLISHMENT,OPPD - Cost of Care - City South - Over 65,Older People - City & South - Care,Residential Care
Cambridgeshire County Council,06-Dec-23,51302112047,-810.35,HATLEY COURT HAVEN LTD,CARE ESTABLISHMENT,OPPD - Cost of Care - City South - Over 65,Older People - City & South - Care,Residential Care
Cambridgeshire County Council,06-Dec-23,51302112044,-810.35,HATLEY COURT HAVEN LTD,CARE ESTABLISHMENT,OPPD - Cost of Care - City South - Over 65,Older People - City & South - Care,Residential Care
Cambridgeshire County Council,06-Dec-23,51302112044,-810.35,HATLEY COURT HAVEN LTD,CARE ESTABLISHMENT,OPPD - Cost of Care - City South - Over 65,Older People - City & South - Care,Residential Care
Cambridgeshire County Council,06-Dec-23,51302112044,-810.35,HATLEY COURT HAVEN LTD,CARE ESTABLISHMENT,OPPD - Cost of Care - City South - Over 65,Older People - City & South - Care,Residential Care
Cambridgeshire County Council,06-Dec-23,51302112044,-810.35,HATLEY COURT HAVEN LTD,CARE ESTABLISHMENT,OPPD - Cost of Care - City South - Over 65,Older People - City & South - Care,Residential Care
Cambridgeshire County Council,06-Dec-23,51302112027,-810.35,HATLEY COURT HAVEN LTD,CARE ESTABLISHMENT,OPPD - Cost of Care - City South - Over 65,Older People - City & South - Care,Residential Care
Cambridgeshire County Council,06-Dec-23,51302112027,-810.35,HATLEY COURT HAVEN LTD,CARE ESTABLISHMENT,OPPD - Cost of Care - City South - Over 65,Older People - City & South - Care,Residential Care
Cambridgeshire County Council,06-Dec-23,51302112027,-810.35,HATLEY COURT HAVEN LTD,CARE ESTABLISHMENT,OPPD - Cost of Care - City South - Over 65,Older People - City & South - Care,Residential Care
Cambridgeshire County Council,06-Dec-23,51302112027,-810.35,HATLEY COURT HAVEN LTD,CARE ESTABLISHMENT,OPPD - Cost of Care - City South - Over 65,Older People - City & South - Care,Residential Care
Cambridgeshire County Council,06-Dec-23,51302112027,-810.35,HATLEY COURT HAVEN LTD,CARE ESTABLISHMENT,OPPD - Cost of Care - City South - Over 65,Older People - City & South - Care,Residential Care
Cambridgeshire County Council,06-Dec-23,51302112027,-810.35,HATLEY COURT HAVEN LTD,CARE ESTABLISHMENT,OPPD - Cost of Care - City South - Over 65,Older People - City & South - Care,Residential Care
Cambridgeshire County Council,06-Dec-23,51302112027,-810.35,HATLEY COURT HAVEN LTD,CARE ESTABLISHMENT,OPPD - Cost of Care - City South - Over 65,Older People - City & South - Care,Residential Care
Cambridgeshire County Council,06-Dec-23,51302112027,-810.35,HATLEY COURT HAVEN LTD,CARE ESTABLISHMENT,OPPD - Cost of Care - City South - Over 65,Older People - City & South - Care,Residential Care
Cambridgeshire County Council,06-Dec-23,51302112027,-810.35,HATLEY COURT HAVEN LTD,CARE ESTABLISHMENT,OPPD - Cost of Care - City South - Over 65,Older People - City & South - Care,Residential Care
Cambridgeshire County Council,06-Dec-23,51302112027,-810.35,HATLEY COURT HAVEN LTD,CARE ESTABLISHMENT,OPPD - Cost of Care - City South - Over 65,Older People - City & South - Care,Residential Care
Cambridgeshire County Council,06-Dec-23,51302112027,-810.35,HATLEY COURT HAVEN LTD,CARE ESTABLISHMENT,OPPD - Cost of Care - City South - Over 65,Older People - City & South - Care,Residential Care
Cambridgeshire County Council,06-Dec-23,51302112027,-810.35,HATLEY COURT HAVEN LTD,CARE ESTABLISHMENT,OPPD - Cost of Care - City South - Over 65,Older People - City & South - Care,Residential Care
Cambridgeshire County Council,06-Dec-23,51302112027,-810.35,HATLEY COURT HAVEN LTD,CARE ESTABLISHMENT,OPPD - Cost of Care - City South - Over 65,Older People - City & South - Care,Residential Care
Cambridgeshire County Council,06-Dec-23,51302112027,-810.35,HATLEY COURT HAVEN LTD,CARE ESTABLISHMENT,OPPD - Cost of Care - City South - Over 65,Older People - City & South - Care,Residential Care
Cambridgeshire County Council,06-Dec-23,51302112027,-810.35,HATLEY COURT HAVEN LTD,CARE ESTABLISHMENT,OPPD - Cost of Care - City South - Over 65,Older People - City & South - Care,Residential Care
Cambridgeshire County Council,06-Dec-23,51302112027,-810.35,HATLEY COURT HAVEN LTD,CARE ESTABLISHMENT,OPPD - Cost of Care - City South - Over 65,Older People - City & South - Care,Residential Care
Cambridgeshire County Council,06-Dec-23,51302112027,-810.35,HATLEY COURT HAVEN LTD,CARE ESTABLISHMENT,OPPD - Cost of Care - City South - Over 65,Older People - City & South - Care,Residential Care
Cambridgeshire County Council,06-Dec-23,51302112027,-810.35,HATLEY COURT HAVEN LTD,CARE ESTABLISHMENT,OPPD - Cost of Care - City South - Over 65,Older People - City & South - Care,Residential Care
Cambridgeshire County Council,06-Dec-23,51302112027,-810.35,HATLEY COURT HAVEN LTD,CARE ESTABLISHMENT,OPPD - Cost of Care - City South - Over 65,Older People - City & South - Care,Residential Care
Cambridgeshire County Council,06-Dec-23,51302112027,-810.35,HATLEY COURT HAVEN LTD,CARE ESTABLISHMENT,OPPD - Cost of Care - City South - Over 65,Older People - City & South - Care,Residential Care
Cambridgeshire County Council,06-Dec-23,51302112027,-810.35,HATLEY COURT HAVEN LTD,CARE ESTABLISHMENT,OPPD - Cost of Care - City South - Over 65,Older People - City & South - Care,Residential Care
Cambridgeshire County Council,06-Dec-23,51302112027,-810.35,HATLEY COURT HAVEN LTD,CARE ESTABLISHMENT,OPPD - Cost of Care - City South - Over 65,Older People - City & South - Care,Residential Care
Cambridgeshire County Council,06-Dec-23,51302112027,-810.35,HATLEY COURT HAVEN LTD,CARE ESTABLISHMENT,OPPD - Cost of Care - City South - Over 65,Older People - City & South - Care,Residential Care
Cambridgeshire County Council,06-Dec-23,51302112027,-810.35,HATLEY COURT HAVEN LTD,CARE ESTABLISHMENT,OPPD - Cost of Care - City South - Over 65,Older People - City & South - Care,Residential Care
Cambridgeshire County Council,06-Dec-23,51302112027,-810.35,HATLEY COURT HAVEN LTD,CARE ESTABLISHMENT,OPPD - Cost of Care - City South - Over 65,Older People - City & South - Care,Residential Care
Cambridgeshire County Council,06-Dec-23,51302112027,-810.35,HATLEY COURT HAVEN LTD,CARE ESTABLISHMENT,OPPD - Cost of Care - City South - Over 65,Older People - City & South - Care,Residential Care
Cambridgeshire County Council,06-Dec-23,51302112031,-810.35,HATLEY COURT HAVEN LTD,CARE ESTABLISHMENT,OPPD - Cost of Care - City South - Over 65,Older People - City & South - Care,Residential Care
Cambridgeshire County Council,06-Dec-23,51302112031,-810.35,HATLEY COURT HAVEN LTD,CARE ESTABLISHMENT,OPPD - Cost of Care - City South - Over 65,Older People - City & South - Care,Residential Care
Cambridgeshire County Council,06-Dec-23,51302112031,-810.35,HATLEY COURT HAVEN LTD,CARE ESTABLISHMENT,OPPD - Cost of Care - City South - Over 65,Older People - City & South - Care,Residential Care
Cambridgeshire County Council,06-Dec-23,51302112031,-810.35,HATLEY COURT HAVEN LTD,CARE ESTABLISHMENT,OPPD - Cost of Care - City South - Over 65,Older People - City & South - Care,Residential Care
Cambridgeshire County Council,06-Dec-23,51302112031,-810.35,HATLEY COURT HAVEN LTD,CARE ESTABLISHMENT,OPPD - Cost of Care - City South - Over 65,Older People - City & South - Care,Residential Care
Cambridgeshire County Council,06-Dec-23,51302112031,-810.35,HATLEY COURT HAVEN LTD,CARE ESTABLISHMENT,OPPD - Cost of Care - City South - Over 65,Older People - City & South - Care,Residential Care
Cambridgeshire County Council,06-Dec-23,51302112031,-810.35,HATLEY COURT HAVEN LTD,CARE ESTABLISHMENT,OPPD - Cost of Care - City South - Over 65,Older People - City & South - Care,Residential Care
Cambridgeshire County Council,06-Dec-23,51302112031,-810.35,HATLEY COURT HAVEN LTD,CARE ESTABLISHMENT,OPPD - Cost of Care - City South - Over 65,Older People - City & South - Care,Residential Care
Cambridgeshire County Council,06-Dec-23,51302112031,-810.35,HATLEY COURT HAVEN LTD,CARE ESTABLISHMENT,OPPD - Cost of Care - City South - Over 65,Older People - City & South - Care,Residential Care
Cambridgeshire County Council,06-Dec-23,51302112031,-810.35,HATLEY COURT HAVEN LTD,CARE ESTABLISHMENT,OPPD - Cost of Care - City South - Over 65,Older People - City & South - Care,Residential Care
Cambridgeshire County Council,06-Dec-23,51302112031,-810.35,HATLEY COURT HAVEN LTD,CARE ESTABLISHMENT,OPPD - Cost of Care - City South - Over 65,Older People - City & South - Care,Residential Care
Cambridgeshire County Council,06-Dec-23,51302112031,-810.35,HATLEY COURT HAVEN LTD,CARE ESTABLISHMENT,OPPD - Cost of Care - City South - Over 65,Older People - City & South - Care,Residential Care
Cambridgeshire County Council,06-Dec-23,51302112031,-810.35,HATLEY COURT HAVEN LTD,CARE ESTABLISHMENT,OPPD - Cost of Care - City South - Over 65,Older People - City & South - Care,Residential Care
Cambridgeshire County Council,06-Dec-23,51302112031,-810.35,HATLEY COURT HAVEN LTD,CARE ESTABLISHMENT,OPPD - Cost of Care - City South - Over 65,Older People - City & South - Care,Residential Care
Cambridgeshire County Council,06-Dec-23,51302112031,-810.35,HATLEY COURT HAVEN LTD,CARE ESTABLISHMENT,OPPD - Cost of Care - City South - Over 65,Older People - City & South - Care,Residential Care
Cambridgeshire County Council,06-Dec-23,51302112031,-810.35,HATLEY COURT HAVEN LTD,CARE ESTABLISHMENT,OPPD - Cost of Care - City South - Over 65,Older People - City & South - Care,Residential Care
Cambridgeshire County Council,06-Dec-23,51302112031,-810.35,HATLEY COURT HAVEN LTD,CARE ESTABLISHMENT,OPPD - Cost of Care - City South - Over 65,Older People - City & South - Care,Residential Care
Cambridgeshire County Council,06-Dec-23,51302112031,-810.35,HATLEY COURT HAVEN LTD,CARE ESTABLISHMENT,OPPD - Cost of Care - City South - Over 65,Older People - City & South - Care,Residential Care
Cambridgeshire County Council,06-Dec-23,51302112031,-810.35,HATLEY COURT HAVEN LTD,CARE ESTABLISHMENT,OPPD - Cost of Care - City South - Over 65,Older People - City & South - Care,Residential Care
Cambridgeshire County Council,06-Dec-23,51302112031,-810.35,HATLEY COURT HAVEN LTD,CARE ESTABLISHMENT,OPPD - Cost of Care - City South - Over 65,Older People - City & South - Care,Residential Care
Cambridgeshire County Council,06-Dec-23,51302112031,-810.35,HATLEY COURT HAVEN LTD,CARE ESTABLISHMENT,OPPD - Cost of Care - City South - Over 65,Older People - City & South - Care,Residential Care
Cambridgeshire County Council,06-Dec-23,51302112031,-810.35,HATLEY COURT HAVEN LTD,CARE ESTABLISHMENT,OPPD - Cost of Care - City South - Over 65,Older People - City & South - Care,Residential Care
Cambridgeshire County Council,06-Dec-23,51302112031,-810.35,HATLEY COURT HAVEN LTD,CARE ESTABLISHMENT,OPPD - Cost of Care - City South - Over 65,Older People - City & South - Care,Residential Care
Cambridgeshire County Council,06-Dec-23,51302112031,-810.35,HATLEY COURT HAVEN LTD,CARE ESTABLISHMENT,OPPD - Cost of Care - City South - Over 65,Older People - City & South - Care,Residential Care
Cambridgeshire County Council,06-Dec-23,51302112031,-810.35,HATLEY COURT HAVEN LTD,CARE ESTABLISHMENT,OPPD - Cost of Care - City South - Over 65,Older People - City & South - Care,Residential Care
Cambridgeshire County Council,06-Dec-23,51302112031,-810.35,HATLEY COURT HAVEN LTD,CARE ESTABLISHMENT,OPPD - Cost of Care - City South - Over 65,Older People - City & South - Care,Residential Care
Cambridgeshire County Council,06-Dec-23,51302112031,-810.35,HATLEY COURT HAVEN LTD,CARE ESTABLISHMENT,OPPD - Cost of Care - City South - Over 65,Older People - City & South - Care,Residential Care
Cambridgeshire County Council,06-Dec-23,51302112031,-810.35,HATLEY COURT HAVEN LTD,CARE ESTABLISHMENT,OPPD - Cost of Care - City South - Over 65,Older People - City & South - Care,Residential Care
Cambridgeshire County Council,06-Dec-23,51302112031,-810.35,HATLEY COURT HAVEN LTD,CARE ESTABLISHMENT,OPPD - Cost of Care - City South - Over 65,Older People - City & South - Care,Residential Care
Cambridgeshire County Council,06-Dec-23,51302112031,-810.35,HATLEY COURT HAVEN LTD,CARE ESTABLISHMENT,OPPD - Cost of Care - City South - Over 65,Older People - City & South - Care,Residential Care
Cambridgeshire County Council,06-Dec-23,51302112031,-810.35,HATLEY COURT HAVEN LTD,CARE ESTABLISHMENT,OPPD - Cost of Care - City South - Over 65,Older People - City & South - Care,Residential Care
Cambridgeshire County Council,06-Dec-23,51302112031,-810.35,HATLEY COURT HAVEN LTD,CARE ESTABLISHMENT,OPPD - Cost of Care - City South - Over 65,Older People - City & South - Care,Residential Care
Cambridgeshire County Council,06-Dec-23,51302112031,-810.35,HATLEY COURT HAVEN LTD,CARE ESTABLISHMENT,OPPD - Cost of Care - City South - Over 65,Older People - City & South - Care,Residential Care
Cambridgeshire County Council,06-Dec-23,51302112031,-810.35,HATLEY COURT HAVEN LTD,CARE ESTABLISHMENT,OPPD - Cost of Care - City South - Over 65,Older People - City & South - Care,Residential Care
Cambridgeshire County Council,06-Dec-23,51302112031,-810.35,HATLEY COURT HAVEN LTD,CARE ESTABLISHMENT,OPPD - Cost of Care - City South - Over 65,Older People - City & South - Care,Residential Care
Cambridgeshire County Council,06-Dec-23,51302112032,-810.35,HATLEY COURT HAVEN LTD,CARE ESTABLISHMENT,OPPD - Cost of Care - City South - Over 65,Older People - City & South - Care,Residential Care
Cambridgeshire County Council,06-Dec-23,51302112032,-810.35,HATLEY COURT HAVEN LTD,CARE ESTABLISHMENT,OPPD - Cost of Care - City South - Over 65,Older People - City & South - Care,Residential Care
Cambridgeshire County Council,06-Dec-23,51302112032,-810.35,HATLEY COURT HAVEN LTD,CARE ESTABLISHMENT,OPPD - Cost of Care - City South - Over 65,Older People - City & South - Care,Residential Care
Cambridgeshire County Council,06-Dec-23,51302112044,-810.35,HATLEY COURT HAVEN LTD,CARE ESTABLISHMENT,OPPD - Cost of Care - City South - Over 65,Older People - City & South - Care,Residential Care
Cambridgeshire County Council,06-Dec-23,51302112044,-810.35,HATLEY COURT HAVEN LTD,CARE ESTABLISHMENT,OPPD - Cost of Care - City South - Over 65,Older People - City & South - Care,Residential Care
Cambridgeshire County Council,06-Dec-23,51302112044,-810.35,HATLEY COURT HAVEN LTD,CARE ESTABLISHMENT,OPPD - Cost of Care - City South - Over 65,Older People - City & South - Care,Residential Care
Cambridgeshire County Council,06-Dec-23,51302112044,-810.35,HATLEY COURT HAVEN LTD,CARE ESTABLISHMENT,OPPD - Cost of Care - City South - Over 65,Older People - City & South - Care,Residential Care
Cambridgeshire County Council,06-Dec-23,51302112044,-810.35,HATLEY COURT HAVEN LTD,CARE ESTABLISHMENT,OPPD - Cost of Care - City South - Over 65,Older People - City & South - Care,Residential Care
Cambridgeshire County Council,06-Dec-23,51302112044,-810.35,HATLEY COURT HAVEN LTD,CARE ESTABLISHMENT,OPPD - Cost of Care - City South - Over 65,Older People - City & South - Care,Residential Care
Cambridgeshire County Council,06-Dec-23,51302112044,-810.35,HATLEY COURT HAVEN LTD,CARE ESTABLISHMENT,OPPD - Cost of Care - City South - Over 65,Older People - City & South - Care,Residential Care
Cambridgeshire County Council,06-Dec-23,51302112044,-810.35,HATLEY COURT HAVEN LTD,CARE ESTABLISHMENT,OPPD - Cost of Care - City South - Over 65,Older People - City & South - Care,Residential Care
Cambridgeshire County Council,06-Dec-23,51302112044,-810.35,HATLEY COURT HAVEN LTD,CARE ESTABLISHMENT,OPPD - Cost of Care - City South - Over 65,Older People - City & South - Care,Residential Care
Cambridgeshire County Council,06-Dec-23,51302112044,-810.35,HATLEY COURT HAVEN LTD,CARE ESTABLISHMENT,OPPD - Cost of Care - City South - Over 65,Older People - City & South - Care,Residential Care
Cambridgeshire County Council,06-Dec-23,51302112044,-810.35,HATLEY COURT HAVEN LTD,CARE ESTABLISHMENT,OPPD - Cost of Care - City South - Over 65,Older People - City & South - Care,Residential Care
Cambridgeshire County Council,06-Dec-23,51302112044,-810.35,HATLEY COURT HAVEN LTD,CARE ESTABLISHMENT,OPPD - Cost of Care - City South - Over 65,Older People - City & South - Care,Residential Care
Cambridgeshire County Council,06-Dec-23,51302112044,-810.35,HATLEY COURT HAVEN LTD,CARE ESTABLISHMENT,OPPD - Cost of Care - City South - Over 65,Older People - City & South - Care,Residential Care
Cambridgeshire County Council,06-Dec-23,51302112044,-810.35,HATLEY COURT HAVEN LTD,CARE ESTABLISHMENT,OPPD - Cost of Care - City South - Over 65,Older People - City & South - Care,Residential Care
Cambridgeshire County Council,06-Dec-23,51302112044,-810.35,HATLEY COURT HAVEN LTD,CARE ESTABLISHMENT,OPPD - Cost of Care - City South - Over 65,Older People - City & South - Care,Residential Care
Cambridgeshire County Council,06-Dec-23,51302112044,-810.35,HATLEY COURT HAVEN LTD,CARE ESTABLISHMENT,OPPD - Cost of Care - City South - Over 65,Older People - City & South - Care,Residential Care
Cambridgeshire County Council,06-Dec-23,51302112044,-810.35,HATLEY COURT HAVEN LTD,CARE ESTABLISHMENT,OPPD - Cost of Care - City South - Over 65,Older People - City & South - Care,Residential Care
Cambridgeshire County Council,06-Dec-23,51302112044,-810.35,HATLEY COURT HAVEN LTD,CARE ESTABLISHMENT,OPPD - Cost of Care - City South - Over 65,Older People - City & South - Care,Residential Care
Cambridgeshire County Council,06-Dec-23,51302112044,-810.35,HATLEY COURT HAVEN LTD,CARE ESTABLISHMENT,OPPD - Cost of Care - City South - Over 65,Older People - City & South - Care,Residential Care
Cambridgeshire County Council,06-Dec-23,51302112044,-810.35,HATLEY COURT HAVEN LTD,CARE ESTABLISHMENT,OPPD - Cost of Care - City South - Over 65,Older People - City & South - Care,Residential Care
Cambridgeshire County Council,06-Dec-23,51302112044,-810.35,HATLEY COURT HAVEN LTD,CARE ESTABLISHMENT,OPPD - Cost of Care - City South - Over 65,Older People - City & South - Care,Residential Care
Cambridgeshire County Council,06-Dec-23,51302112044,-810.35,HATLEY COURT HAVEN LTD,CARE ESTABLISHMENT,OPPD - Cost of Care - City South - Over 65,Older People - City & South - Care,Residential Care
Cambridgeshire County Council,06-Dec-23,51302112044,-810.35,HATLEY COURT HAVEN LTD,CARE ESTABLISHMENT,OPPD - Cost of Care - City South - Over 65,Older People - City & South - Care,Residential Care
Cambridgeshire County Council,06-Dec-23,51302112044,-810.35,HATLEY COURT HAVEN LTD,CARE ESTABLISHMENT,OPPD - Cost of Care - City South - Over 65,Older People - City & South - Care,Residential Care
Cambridgeshire County Council,06-Dec-23,51302112044,-810.35,HATLEY COURT HAVEN LTD,CARE ESTABLISHMENT,OPPD - Cost of Care - City South - Over 65,Older People - City & South - Care,Residential Care
Cambridgeshire County Council,06-Dec-23,51302112044,-810.35,HATLEY COURT HAVEN LTD,CARE ESTABLISHMENT,OPPD - Cost of Care - City South - Over 65,Older People - City & South - Care,Residential Care
Cambridgeshire County Council,06-Dec-23,51302112032,-810.35,HATLEY COURT HAVEN LTD,CARE ESTABLISHMENT,OPPD - Cost of Care - City South - Over 65,Older People - City & South - Care,Residential Care
Cambridgeshire County Council,06-Dec-23,51302112032,-810.35,HATLEY COURT HAVEN LTD,CARE ESTABLISHMENT,OPPD - Cost of Care - City South - Over 65,Older People - City & South - Care,Residential Care
Cambridgeshire County Council,06-Dec-23,51302112032,-810.35,HATLEY COURT HAVEN LTD,CARE ESTABLISHMENT,OPPD - Cost of Care - City South - Over 65,Older People - City & South - Care,Residential Care
Cambridgeshire County Council,06-Dec-23,51302112035,-810.35,HATLEY COURT HAVEN LTD,CARE ESTABLISHMENT,OPPD - Cost of Care - City South - Over 65,Older People - City & South - Care,Residential Care
Cambridgeshire County Council,06-Dec-23,51302112035,-810.35,HATLEY COURT HAVEN LTD,CARE ESTABLISHMENT,OPPD - Cost of Care - City South - Over 65,Older People - City & South - Care,Residential Care
Cambridgeshire County Council,06-Dec-23,51302112035,-810.35,HATLEY COURT HAVEN LTD,CARE ESTABLISHMENT,OPPD - Cost of Care - City South - Over 65,Older People - City & South - Care,Residential Care
Cambridgeshire County Council,06-Dec-23,51302112035,-810.35,HATLEY COURT HAVEN LTD,CARE ESTABLISHMENT,OPPD - Cost of Care - City South - Over 65,Older People - City & South - Care,Residential Care
Cambridgeshire County Council,06-Dec-23,51302112035,-810.35,HATLEY COURT HAVEN LTD,CARE ESTABLISHMENT,OPPD - Cost of Care - City South - Over 65,Older People - City & South - Care,Residential Care
Cambridgeshire County Council,06-Dec-23,51302112035,-810.35,HATLEY COURT HAVEN LTD,CARE ESTABLISHMENT,OPPD - Cost of Care - City South - Over 65,Older People - City & South - Care,Residential Care
Cambridgeshire County Council,06-Dec-23,51302112035,-810.35,HATLEY COURT HAVEN LTD,CARE ESTABLISHMENT,OPPD - Cost of Care - City South - Over 65,Older People - City & South - Care,Residential Care
Cambridgeshire County Council,06-Dec-23,51302112035,-810.35,HATLEY COURT HAVEN LTD,CARE ESTABLISHMENT,OPPD - Cost of Care - City South - Over 65,Older People - City & South - Care,Residential Care
Cambridgeshire County Council,06-Dec-23,51302112035,-810.35,HATLEY COURT HAVEN LTD,CARE ESTABLISHMENT,OPPD - Cost of Care - City South - Over 65,Older People - City & South - Care,Residential Care
Cambridgeshire County Council,06-Dec-23,51302112035,-810.35,HATLEY COURT HAVEN LTD,CARE ESTABLISHMENT,OPPD - Cost of Care - City South - Over 65,Older People - City & South - Care,Residential Care
Cambridgeshire County Council,06-Dec-23,51302112035,-810.35,HATLEY COURT HAVEN LTD,CARE ESTABLISHMENT,OPPD - Cost of Care - City South - Over 65,Older People - City & South - Care,Residential Care
Cambridgeshire County Council,06-Dec-23,51302112035,-810.35,HATLEY COURT HAVEN LTD,CARE ESTABLISHMENT,OPPD - Cost of Care - City South - Over 65,Older People - City & South - Care,Residential Care
Cambridgeshire County Council,06-Dec-23,51302112035,-810.35,HATLEY COURT HAVEN LTD,CARE ESTABLISHMENT,OPPD - Cost of Care - City South - Over 65,Older People - City & South - Care,Residential Care
Cambridgeshire County Council,06-Dec-23,51302112035,-810.35,HATLEY COURT HAVEN LTD,CARE ESTABLISHMENT,OPPD - Cost of Care - City South - Over 65,Older People - City & South - Care,Residential Care
Cambridgeshire County Council,06-Dec-23,51302112035,-810.35,HATLEY COURT HAVEN LTD,CARE ESTABLISHMENT,OPPD - Cost of Care - City South - Over 65,Older People - City & South - Care,Residential Care
Cambridgeshire County Council,06-Dec-23,51302112035,-810.35,HATLEY COURT HAVEN LTD,CARE ESTABLISHMENT,OPPD - Cost of Care - City South - Over 65,Older People - City & South - Care,Residential Care
Cambridgeshire County Council,06-Dec-23,51302112035,-810.35,HATLEY COURT HAVEN LTD,CARE ESTABLISHMENT,OPPD - Cost of Care - City South - Over 65,Older People - City & South - Care,Residential Care
Cambridgeshire County Council,06-Dec-23,51302112035,-810.35,HATLEY COURT HAVEN LTD,CARE ESTABLISHMENT,OPPD - Cost of Care - City South - Over 65,Older People - City & South - Care,Residential Care
Cambridgeshire County Council,06-Dec-23,51302112035,-810.35,HATLEY COURT HAVEN LTD,CARE ESTABLISHMENT,OPPD - Cost of Care - City South - Over 65,Older People - City & South - Care,Residential Care
Cambridgeshire County Council,06-Dec-23,51302112035,-810.35,HATLEY COURT HAVEN LTD,CARE ESTABLISHMENT,OPPD - Cost of Care - City South - Over 65,Older People - City & South - Care,Residential Care
Cambridgeshire County Council,06-Dec-23,51302112035,-810.35,HATLEY COURT HAVEN LTD,CARE ESTABLISHMENT,OPPD - Cost of Care - City South - Over 65,Older People - City & South - Care,Residential Care
Cambridgeshire County Council,06-Dec-23,51302112035,-810.35,HATLEY COURT HAVEN LTD,CARE ESTABLISHMENT,OPPD - Cost of Care - City South - Over 65,Older People - City & South - Care,Residential Care
Cambridgeshire County Council,06-Dec-23,51302112035,-810.35,HATLEY COURT HAVEN LTD,CARE ESTABLISHMENT,OPPD - Cost of Care - City South - Over 65,Older People - City & South - Care,Residential Care
Cambridgeshire County Council,06-Dec-23,51302112035,-810.35,HATLEY COURT HAVEN LTD,CARE ESTABLISHMENT,OPPD - Cost of Care - City South - Over 65,Older People - City & South - Care,Residential Care
Cambridgeshire County Council,06-Dec-23,51302112035,-810.35,HATLEY COURT HAVEN LTD,CARE ESTABLISHMENT,OPPD - Cost of Care - City South - Over 65,Older People - City & South - Care,Residential Care
Cambridgeshire County Council,06-Dec-23,51302112035,-810.35,HATLEY COURT HAVEN LTD,CARE ESTABLISHMENT,OPPD - Cost of Care - City South - Over 65,Older People - City & South - Care,Residential Care
Cambridgeshire County Council,06-Dec-23,51302112035,-810.35,HATLEY COURT HAVEN LTD,CARE ESTABLISHMENT,OPPD - Cost of Care - City South - Over 65,Older People - City & South - Care,Residential Care
Cambridgeshire County Council,06-Dec-23,51302112035,-810.35,HATLEY COURT HAVEN LTD,CARE ESTABLISHMENT,OPPD - Cost of Care - City South - Over 65,Older People - City & South - Care,Residential Care
Cambridgeshire County Council,06-Dec-23,51302112035,-810.35,HATLEY COURT HAVEN LTD,CARE ESTABLISHMENT,OPPD - Cost of Care - City South - Over 65,Older People - City & South - Care,Residential Care
Cambridgeshire County Council,06-Dec-23,51302112035,-810.35,HATLEY COURT HAVEN LTD,CARE ESTABLISHMENT,OPPD - Cost of Care - City South - Over 65,Older People - City & South - Care,Residential Care
Cambridgeshire County Council,06-Dec-23,51302112035,-810.35,HATLEY COURT HAVEN LTD,CARE ESTABLISHMENT,OPPD - Cost of Care - City South - Over 65,Older People - City & South - Care,Residential Care
Cambridgeshire County Council,06-Dec-23,51302112035,-810.35,HATLEY COURT HAVEN LTD,CARE ESTABLISHMENT,OPPD - Cost of Care - City South - Over 65,Older People - City & South - Care,Residential Care
Cambridgeshire County Council,06-Dec-23,51302112035,-810.35,HATLEY COURT HAVEN LTD,CARE ESTABLISHMENT,OPPD - Cost of Care - City South - Over 65,Older People - City & South - Care,Residential Care
Cambridgeshire County Council,06-Dec-23,51302112035,-810.35,HATLEY COURT HAVEN LTD,CARE ESTABLISHMENT,OPPD - Cost of Care - City South - Over 65,Older People - City & South - Care,Residential Care
Cambridgeshire County Council,06-Dec-23,51302112035,-810.35,HATLEY COURT HAVEN LTD,CARE ESTABLISHMENT,OPPD - Cost of Care - City South - Over 65,Older People - City & South - Care,Residential Care
Cambridgeshire County Council,06-Dec-23,51302112039,-810.35,HATLEY COURT HAVEN LTD,CARE ESTABLISHMENT,OPPD - Cost of Care - City South - Over 65,Older People - City & South - Care,Residential Care
Cambridgeshire County Council,06-Dec-23,51302112039,-810.35,HATLEY COURT HAVEN LTD,CARE ESTABLISHMENT,OPPD - Cost of Care - City South - Over 65,Older People - City & South - Care,Residential Care
Cambridgeshire County Council,06-Dec-23,51302112039,-810.35,HATLEY COURT HAVEN LTD,CARE ESTABLISHMENT,OPPD - Cost of Care - City South - Over 65,Older People - City & South - Care,Residential Care
Cambridgeshire County Council,06-Dec-23,51302112039,-810.35,HATLEY COURT HAVEN LTD,CARE ESTABLISHMENT,OPPD - Cost of Care - City South - Over 65,Older People - City & South - Care,Residential Care
Cambridgeshire County Council,06-Dec-23,51302112039,-810.35,HATLEY COURT HAVEN LTD,CARE ESTABLISHMENT,OPPD - Cost of Care - City South - Over 65,Older People - City & South - Care,Residential Care
Cambridgeshire County Council,06-Dec-23,51302112039,-810.35,HATLEY COURT HAVEN LTD,CARE ESTABLISHMENT,OPPD - Cost of Care - City South - Over 65,Older People - City & South - Care,Residential Care
Cambridgeshire County Council,06-Dec-23,51302112039,-810.35,HATLEY COURT HAVEN LTD,CARE ESTABLISHMENT,OPPD - Cost of Care - City South - Over 65,Older People - City & South - Care,Residential Care
Cambridgeshire County Council,06-Dec-23,51302112039,-810.35,HATLEY COURT HAVEN LTD,CARE ESTABLISHMENT,OPPD - Cost of Care - City South - Over 65,Older People - City & South - Care,Residential Care
Cambridgeshire County Council,06-Dec-23,51302112039,-810.35,HATLEY COURT HAVEN LTD,CARE ESTABLISHMENT,OPPD - Cost of Care - City South - Over 65,Older People - City & South - Care,Residential Care
Cambridgeshire County Council,06-Dec-23,51302112039,-810.35,HATLEY COURT HAVEN LTD,CARE ESTABLISHMENT,OPPD - Cost of Care - City South - Over 65,Older People - City & South - Care,Residential Care
Cambridgeshire County Council,06-Dec-23,51302112039,-810.35,HATLEY COURT HAVEN LTD,CARE ESTABLISHMENT,OPPD - Cost of Care - City South - Over 65,Older People - City & South - Care,Residential Care
Cambridgeshire County Council,06-Dec-23,51302112039,-810.35,HATLEY COURT HAVEN LTD,CARE ESTABLISHMENT,OPPD - Cost of Care - City South - Over 65,Older People - City & South - Care,Residential Care
Cambridgeshire County Council,06-Dec-23,51302112039,-810.35,HATLEY COURT HAVEN LTD,CARE ESTABLISHMENT,OPPD - Cost of Care - City South - Over 65,Older People - City & South - Care,Residential Care
Cambridgeshire County Council,06-Dec-23,51302112039,-810.35,HATLEY COURT HAVEN LTD,CARE ESTABLISHMENT,OPPD - Cost of Care - City South - Over 65,Older People - City & South - Care,Residential Care
Cambridgeshire County Council,06-Dec-23,51302112039,-810.35,HATLEY COURT HAVEN LTD,CARE ESTABLISHMENT,OPPD - Cost of Care - City South - Over 65,Older People - City & South - Care,Residential Care
Cambridgeshire County Council,06-Dec-23,51302112039,-810.35,HATLEY COURT HAVEN LTD,CARE ESTABLISHMENT,OPPD - Cost of Care - City South - Over 65,Older People - City & South - Care,Residential Care
Cambridgeshire County Council,06-Dec-23,51302112039,-810.35,HATLEY COURT HAVEN LTD,CARE ESTABLISHMENT,OPPD - Cost of Care - City South - Over 65,Older People - City & South - Care,Residential Care
Cambridgeshire County Council,06-Dec-23,51302112027,-810.35,HATLEY COURT HAVEN LTD,CARE ESTABLISHMENT,OPPD - Cost of Care - City South - Over 65,Older People - City & South - Care,Residential Care
Cambridgeshire County Council,06-Dec-23,51302112027,-810.35,HATLEY COURT HAVEN LTD,CARE ESTABLISHMENT,OPPD - Cost of Care - City South - Over 65,Older People - City & South - Care,Residential Care
Cambridgeshire County Council,06-Dec-23,51302112027,-810.35,HATLEY COURT HAVEN LTD,CARE ESTABLISHMENT,OPPD - Cost of Care - City South - Over 65,Older People - City & South - Care,Residential Care
Cambridgeshire County Council,06-Dec-23,51302112027,-810.35,HATLEY COURT HAVEN LTD,CARE ESTABLISHMENT,OPPD - Cost of Care - City South - Over 65,Older People - City & South - Care,Residential Care
Cambridgeshire County Council,06-Dec-23,51302112027,-810.35,HATLEY COURT HAVEN LTD,CARE ESTABLISHMENT,OPPD - Cost of Care - City South - Over 65,Older People - City & South - Care,Residential Care
Cambridgeshire County Council,06-Dec-23,51302112027,-810.35,HATLEY COURT HAVEN LTD,CARE ESTABLISHMENT,OPPD - Cost of Care - City South - Over 65,Older People - City & South - Care,Residential Care
Cambridgeshire County Council,06-Dec-23,51302112027,-810.35,HATLEY COURT HAVEN LTD,CARE ESTABLISHMENT,OPPD - Cost of Care - City South - Over 65,Older People - City & South - Care,Residential Care
Cambridgeshire County Council,06-Dec-23,51302112027,-810.35,HATLEY COURT HAVEN LTD,CARE ESTABLISHMENT,OPPD - Cost of Care - City South - Over 65,Older People - City & South - Care,Residential Care
Cambridgeshire County Council,06-Dec-23,51302112027,-810.35,HATLEY COURT HAVEN LTD,CARE ESTABLISHMENT,OPPD - Cost of Care - City South - Over 65,Older People - City & South - Care,Residential Care
Cambridgeshire County Council,06-Dec-23,51302112041,-782.80,HATLEY COURT HAVEN LTD,CARE ESTABLISHMENT,OPPD - Cost of Care - East Cambs - Over 65,East Cambs - O P Team - Care,Residential Care
Cambridgeshire County Council,06-Dec-23,51302112041,-782.80,HATLEY COURT HAVEN LTD,CARE ESTABLISHMENT,OPPD - Cost of Care - East Cambs - Over 65,East Cambs - O P Team - Care,Residential Care
Cambridgeshire County Council,06-Dec-23,51302112030,-782.80,HATLEY COURT HAVEN LTD,CARE ESTABLISHMENT,OPPD - Cost of Care - City South - Over 65,Older People - City & South - Care,Residential Care
Cambridgeshire County Council,06-Dec-23,51302112030,-782.80,HATLEY COURT HAVEN LTD,CARE ESTABLISHMENT,OPPD - Cost of Care - City South - Over 65,Older People - City & South - Care,Residential Care
Cambridgeshire County Council,06-Dec-23,51302112030,-782.80,HATLEY COURT HAVEN LTD,CARE ESTABLISHMENT,OPPD - Cost of Care - City South - Over 65,Older People - City & South - Care,Residential Care
Cambridgeshire County Council,06-Dec-23,51302112030,-782.80,HATLEY COURT HAVEN LTD,CARE ESTABLISHMENT,OPPD - Cost of Care - City South - Over 65,Older People - City & South - Care,Residential Care
Cambridgeshire County Council,06-Dec-23,51302112030,-782.80,HATLEY COURT HAVEN LTD,CARE ESTABLISHMENT,OPPD - Cost of Care - City South - Over 65,Older People - City & South - Care,Residential Care
Cambridgeshire County Council,06-Dec-23,51302112030,-782.80,HATLEY COURT HAVEN LTD,CARE ESTABLISHMENT,OPPD - Cost of Care - City South - Over 65,Older People - City & South - Care,Residential Care
Cambridgeshire County Council,06-Dec-23,51302112030,-782.80,HATLEY COURT HAVEN LTD,CARE ESTABLISHMENT,OPPD - Cost of Care - City South - Over 65,Older People - City & South - Care,Residential Care
Cambridgeshire County Council,06-Dec-23,51302112030,-782.80,HATLEY COURT HAVEN LTD,CARE ESTABLISHMENT,OPPD - Cost of Care - City South - Over 65,Older People - City & South - Care,Residential Care
Cambridgeshire County Council,06-Dec-23,51302112043,-782.80,HATLEY COURT HAVEN LTD,CARE ESTABLISHMENT,OPPD - Cost of Care - City South - Over 65,Older People - City & South - Care,Residential Care
Cambridgeshire County Council,06-Dec-23,51302112042,-782.80,HATLEY COURT HAVEN LTD,CARE ESTABLISHMENT,OPPD - Cost of Care - City South - Over 65,Older People - City & South - Care,Residential Care
Cambridgeshire County Council,06-Dec-23,51302112042,-782.80,HATLEY COURT HAVEN LTD,CARE ESTABLISHMENT,OPPD - Cost of Care - City South - Over 65,Older People - City & South - Care,Residential Care
Cambridgeshire County Council,06-Dec-23,51302112042,-782.80,HATLEY COURT HAVEN LTD,CARE ESTABLISHMENT,OPPD - Cost of Care - City South - Over 65,Older People - City & South - Care,Residential Care
Cambridgeshire County Council,06-Dec-23,51302112042,-782.80,HATLEY COURT HAVEN LTD,CARE ESTABLISHMENT,OPPD - Cost of Care - City South - Over 65,Older People - City & South - Care,Residential Care
Cambridgeshire County Council,06-Dec-23,51302112042,-782.80,HATLEY COURT HAVEN LTD,CARE ESTABLISHMENT,OPPD - Cost of Care - City South - Over 65,Older People - City & South - Care,Residential Care
Cambridgeshire County Council,06-Dec-23,51302112042,-782.80,HATLEY COURT HAVEN LTD,CARE ESTABLISHMENT,OPPD - Cost of Care - City South - Over 65,Older People - City & South - Care,Residential Care
Cambridgeshire County Council,06-Dec-23,51302112042,-782.80,HATLEY COURT HAVEN LTD,CARE ESTABLISHMENT,OPPD - Cost of Care - City South - Over 65,Older People - City & South - Care,Residential Care
Cambridgeshire County Council,06-Dec-23,51302112042,-782.80,HATLEY COURT HAVEN LTD,CARE ESTABLISHMENT,OPPD - Cost of Care - City South - Over 65,Older People - City & South - Care,Residential Care
Cambridgeshire County Council,06-Dec-23,51302112042,-782.80,HATLEY COURT HAVEN LTD,CARE ESTABLISHMENT,OPPD - Cost of Care - City South - Over 65,Older People - City & South - Care,Residential Care
Cambridgeshire County Council,06-Dec-23,51302112042,-782.80,HATLEY COURT HAVEN LTD,CARE ESTABLISHMENT,OPPD - Cost of Care - City South - Over 65,Older People - City & South - Care,Residential Care
